﻿Body Name,Body,Service Area Categorisation,Service Division Categorisation,Responsible Unit,Expenses Type,Detailed Expenses Type,Payment Date,Transaction Number,Payment Amount,Supplier Type,Supplier Name,Supplier Id
Portsmouth City Council,PCC,Adult Social Care,Support with Memory and Cognition Older People (65 - 74),ADULT SERVICES,Supplies and Services,Catering,08/01/2018,6199572,37.06,VENDOR,CJS PORTSMOUTH LTD,100139
Portsmouth City Council,PCC,Planning Services,Business support,REGENERATION,Premises-Related Expenditure,"Repairs, alterations and maintenance of buildings",12/01/2018,6200749,600,SOLETRADER,Classified as 'personal data' (under the Data Protection Act 1998),Redacted
Portsmouth City Council,PCC,Planning Services,Business support,REGENERATION,Premises-Related Expenditure,"Repairs, alterations and maintenance of buildings",12/01/2018,6200749,150,SOLETRADER,Classified as 'personal data' (under the Data Protection Act 1998),Redacted
Portsmouth City Council,PCC,Cultural and Related Services,Culture and Heritage,CULTURE & CITY DEVELOPMENT,Third Party Payments,Private contractors,10/01/2018,6199856,520,VENDOR,BOARHUNT GROUP LTD,103726
Portsmouth City Council,PCC,Highways and Transport Services,Parking Services,REGENERATION,Third Party Payments,Private contractors,05/01/2018,6199425,845,VENDOR,BOARHUNT GROUP LTD,103726
Portsmouth City Council,PCC,Highways and Transport Services,Parking Services,REGENERATION,Third Party Payments,Private contractors,05/01/2018,6199425,845,VENDOR,BOARHUNT GROUP LTD,103726
Portsmouth City Council,PCC,Highways and Transport Services,Parking Services,REGENERATION,Third Party Payments,Private contractors,11/01/2018,6200429,50,VENDOR,BOARHUNT GROUP LTD,103726
Portsmouth City Council,PCC,Highways and Transport Services,Parking Services,REGENERATION,Third Party Payments,Private contractors,11/01/2018,6200429,50,VENDOR,BOARHUNT GROUP LTD,103726
Portsmouth City Council,PCC,Highways and Transport Services,Parking Services,REGENERATION,Third Party Payments,Private contractors,11/01/2018,6200429,44,VENDOR,BOARHUNT GROUP LTD,103726
Portsmouth City Council,PCC,Highways and Transport Services,Parking Services,REGENERATION,Third Party Payments,Private contractors,11/01/2018,6200429,330,VENDOR,BOARHUNT GROUP LTD,103726
Portsmouth City Council,PCC,Highways and Transport Services,Parking Services,REGENERATION,Third Party Payments,Private contractors,11/01/2018,6200429,50,VENDOR,BOARHUNT GROUP LTD,103726
Portsmouth City Council,PCC,Highways and Transport Services,Parking Services,REGENERATION,Third Party Payments,Private contractors,17/01/2018,6201183,42.5,VENDOR,BOARHUNT GROUP LTD,103726
Portsmouth City Council,PCC,Highways and Transport Services,Parking Services,REGENERATION,Premises-Related Expenditure,Rents,17/01/2018,6201183,1325,VENDOR,BOARHUNT GROUP LTD,103726
Portsmouth City Council,PCC,Adult Social Care,Social Care Activities,ADULT SERVICES,Premises-Related Expenditure,Rents,05/01/2018,6199493,4869.32,VENDOR,NHS PROPERTY SERVICES LTD,137912
Portsmouth City Council,PCC,Adult Social Care,Social Care Activities,ADULT SERVICES,Premises-Related Expenditure,Rents,05/01/2018,6199493,4869.32,VENDOR,NHS PROPERTY SERVICES LTD,137912
Portsmouth City Council,PCC,Adult Social Care,Social Care Activities,ADULT SERVICES,Premises-Related Expenditure,Rents,05/01/2018,6199493,10704,VENDOR,NHS PROPERTY SERVICES LTD,137912
Portsmouth City Council,PCC,Adult Social Care,Social Care Activities,ADULT SERVICES,Premises-Related Expenditure,Rents,05/01/2018,6199493,5352,VENDOR,NHS PROPERTY SERVICES LTD,137912
Portsmouth City Council,PCC,Housing Revenue Account,Repairs and Maintenance,PROPERTY & HOUSING,Premises-Related Expenditure,"Repairs, alterations and maintenance of buildings",17/01/2018,6201166,1360,VENDOR,ACCORDIAL LTD,142309
Portsmouth City Council,PCC,Cultural and Related Services,Open Spaces,CULTURE & CITY DEVELOPMENT,Premises-Related Expenditure,Grounds maintenance costs,05/01/2018,6199480,3406.32,COMPANY,J B CORRIE AND CO LTD,100911
Portsmouth City Council,PCC,Cultural and Related Services,Open Spaces,CULTURE & CITY DEVELOPMENT,Premises-Related Expenditure,Grounds maintenance costs,05/01/2018,6199479,4992.04,COMPANY,J B CORRIE AND CO LTD,100911
Portsmouth City Council,PCC,Children's and Education Services,Asylum seekers,CHILDREN SERVICES AND EDUCATION,Third Party Payments,Other establishments,19/01/2018,6202374,897.3,VENDOR,YMCA LONDON SOUTH WEST,142325
Portsmouth City Council,PCC,Children's and Education Services,Asylum seekers,CHILDREN SERVICES AND EDUCATION,Third Party Payments,Other establishments,19/01/2018,6202374,288,VENDOR,YMCA LONDON SOUTH WEST,142325
Portsmouth City Council,PCC,Children's and Education Services,Asylum seekers,CHILDREN SERVICES AND EDUCATION,Third Party Payments,Other establishments,19/01/2018,6202374,20.11,VENDOR,YMCA LONDON SOUTH WEST,142325
Portsmouth City Council,PCC,Children's and Education Services,Asylum seekers,CHILDREN SERVICES AND EDUCATION,Third Party Payments,Other establishments,19/01/2018,6202374,1204.7,VENDOR,YMCA LONDON SOUTH WEST,142325
Portsmouth City Council,PCC,Children's and Education Services,Children Looked After,CHILDREN SERVICES AND EDUCATION,Third Party Payments,Other establishments,25/01/2018,6203255,38484.91,VENDOR,PRIORS COURT SCHOOL,126243
Portsmouth City Council,PCC,Cultural and Related Services,Culture and Heritage,CULTURE & CITY DEVELOPMENT,Supplies and Services,"Equipment, furniture and materials",31/01/2018,6203611,1110.02,VENDOR,EMBLEM PRINT PRODUCTS LTD,109501
Portsmouth City Council,PCC,Adult Social Care,Assistive Equipment & Technology,PROPERTY & HOUSING,Supplies and Services,"Equipment, furniture and materials",02/01/2018,6199112,419.75,VENDOR,TYNETEC B/U OF LEGRAND ELECTRIC LTD,140439
Portsmouth City Council,PCC,Adult Social Care,Assistive Equipment & Technology,PROPERTY & HOUSING,Supplies and Services,"Equipment, furniture and materials",02/01/2018,6199112,348.8,VENDOR,TYNETEC B/U OF LEGRAND ELECTRIC LTD,140439
Portsmouth City Council,PCC,Adult Social Care,Assistive Equipment & Technology,PROPERTY & HOUSING,Supplies and Services,"Equipment, furniture and materials",02/01/2018,6199112,225.6,VENDOR,TYNETEC B/U OF LEGRAND ELECTRIC LTD,140439
Portsmouth City Council,PCC,Adult Social Care,Assistive Equipment & Technology,PROPERTY & HOUSING,Supplies and Services,"Equipment, furniture and materials",02/01/2018,6199112,717.4,VENDOR,TYNETEC B/U OF LEGRAND ELECTRIC LTD,140439
Portsmouth City Council,PCC,Adult Social Care,Assistive Equipment & Technology,PROPERTY & HOUSING,Supplies and Services,"Equipment, furniture and materials",02/01/2018,6199112,405.6,VENDOR,TYNETEC B/U OF LEGRAND ELECTRIC LTD,140439
Portsmouth City Council,PCC,Adult Social Care,Assistive Equipment & Technology,PROPERTY & HOUSING,Supplies and Services,"Equipment, furniture and materials",02/01/2018,6199112,156,VENDOR,TYNETEC B/U OF LEGRAND ELECTRIC LTD,140439
Portsmouth City Council,PCC,Adult Social Care,Assistive Equipment & Technology,PROPERTY & HOUSING,Supplies and Services,"Equipment, furniture and materials",02/01/2018,6199112,440.8,VENDOR,TYNETEC B/U OF LEGRAND ELECTRIC LTD,140439
Portsmouth City Council,PCC,Adult Social Care,Assistive Equipment & Technology,PROPERTY & HOUSING,Supplies and Services,"Equipment, furniture and materials",02/01/2018,6199112,717.4,VENDOR,TYNETEC B/U OF LEGRAND ELECTRIC LTD,140439
Portsmouth City Council,PCC,Adult Social Care,Assistive Equipment & Technology,PROPERTY & HOUSING,Supplies and Services,"Equipment, furniture and materials",02/01/2018,6199112,2404.25,VENDOR,TYNETEC B/U OF LEGRAND ELECTRIC LTD,140439
Portsmouth City Council,PCC,Adult Social Care,Commissioning & service delivery,ADULT SERVICES,Supplies and Services,"Equipment, furniture and materials",10/01/2018,6200326,150,VENDOR,MANGAR INTERNATIONAL LTD,100983
Portsmouth City Council,PCC,Adult Social Care,Commissioning & service delivery,ADULT SERVICES,Supplies and Services,"Equipment, furniture and materials",10/01/2018,6200326,1110.21,VENDOR,MANGAR INTERNATIONAL LTD,100983
Portsmouth City Council,PCC,Adult Social Care,Commissioning & service delivery,ADULT SERVICES,Supplies and Services,"Equipment, furniture and materials",10/01/2018,6200326,150,VENDOR,MANGAR INTERNATIONAL LTD,100983
Portsmouth City Council,PCC,Adult Social Care,Commissioning & service delivery,ADULT SERVICES,Supplies and Services,"Equipment, furniture and materials",10/01/2018,6200326,1110.21,VENDOR,MANGAR INTERNATIONAL LTD,100983
Portsmouth City Council,PCC,Adult Social Care,Commissioning & service delivery,ADULT SERVICES,Supplies and Services,"Equipment, furniture and materials",10/01/2018,6200326,150,VENDOR,MANGAR INTERNATIONAL LTD,100983
Portsmouth City Council,PCC,Adult Social Care,Commissioning & service delivery,ADULT SERVICES,Supplies and Services,"Equipment, furniture and materials",10/01/2018,6200326,1110.21,VENDOR,MANGAR INTERNATIONAL LTD,100983
Portsmouth City Council,PCC,Adult Social Care,Commissioning & service delivery,ADULT SERVICES,Supplies and Services,"Equipment, furniture and materials",10/01/2018,6200326,150,VENDOR,MANGAR INTERNATIONAL LTD,100983
Portsmouth City Council,PCC,Adult Social Care,Commissioning & service delivery,ADULT SERVICES,Supplies and Services,"Equipment, furniture and materials",10/01/2018,6200326,1110.21,VENDOR,MANGAR INTERNATIONAL LTD,100983
Portsmouth City Council,PCC,Adult Social Care,Commissioning & service delivery,ADULT SERVICES,Supplies and Services,"Equipment, furniture and materials",10/01/2018,6200326,150,VENDOR,MANGAR INTERNATIONAL LTD,100983
Portsmouth City Council,PCC,Adult Social Care,Commissioning & service delivery,ADULT SERVICES,Supplies and Services,"Equipment, furniture and materials",10/01/2018,6200326,1110.21,VENDOR,MANGAR INTERNATIONAL LTD,100983
Portsmouth City Council,PCC,Support Service / Transparency Costs Unallocated,AMS,PROPERTY & HOUSING,Supplies and Services,"Equipment, furniture and materials",03/01/2018,6199214,3250,VENDOR,PORTSDOWN OFFICE LTD,100059
Portsmouth City Council,PCC,Support Service / Transparency Costs Unallocated,AMS,PROPERTY & HOUSING,Supplies and Services,"Equipment, furniture and materials",11/01/2018,6200505,483.64,VENDOR,PORTSDOWN OFFICE LTD,100059
Portsmouth City Council,PCC,Support Service / Transparency Costs Unallocated,AMS,PROPERTY & HOUSING,Supplies and Services,"Equipment, furniture and materials",11/01/2018,6200505,467.24,VENDOR,PORTSDOWN OFFICE LTD,100059
Portsmouth City Council,PCC,Support Service / Transparency Costs Unallocated,AMS,PROPERTY & HOUSING,Supplies and Services,"Equipment, furniture and materials",11/01/2018,6200505,467.24,VENDOR,PORTSDOWN OFFICE LTD,100059
Portsmouth City Council,PCC,Solent LEP,Business support,OTHER,Supplies and Services,"Equipment, furniture and materials",22/01/2018,6202462,558,VENDOR,PORTSDOWN OFFICE LTD,100059
Portsmouth City Council,PCC,Support Service / Transparency Costs Unallocated,AMS,PROPERTY & HOUSING,Supplies and Services,"Equipment, furniture and materials",25/01/2018,6203250,467.24,VENDOR,PORTSDOWN OFFICE LTD,100059
Portsmouth City Council,PCC,Environmental and Regulatory Services,Regulatory Services,CULTURE & CITY DEVELOPMENT,Supplies and Services,Services,25/01/2018,6203073,760,VENDOR,ALERE TOXICOLOGY PLC,121708
Portsmouth City Council,PCC,Environmental and Regulatory Services,Regulatory Services,CULTURE & CITY DEVELOPMENT,Supplies and Services,Services,31/01/2018,6203575,264,VENDOR,ALERE TOXICOLOGY PLC,121708
Portsmouth City Council,PCC,Environmental and Regulatory Services,Regulatory Services,CULTURE & CITY DEVELOPMENT,Supplies and Services,Services,31/01/2018,6203575,264,VENDOR,ALERE TOXICOLOGY PLC,121708
Portsmouth City Council,PCC,Support Service / Transparency Costs Unallocated,Information Services,FINANCE & IS,Supplies and Services,Communications and computing,29/01/2018,6203445,55,VENDOR,VODAFONE LTD,100173
Portsmouth City Council,PCC,Support Service / Transparency Costs Unallocated,Information Services,FINANCE & IS,Supplies and Services,Communications and computing,30/01/2018,6203569,55,VENDOR,VODAFONE LTD,100173
Portsmouth City Council,PCC,Adult Social Care,Social Care Activities,ADULT SERVICES,Third Party Payments,Other establishments,30/01/2018,6203502,6315,VENDOR,HELPING HANDS HOMECARE,141367
Portsmouth City Council,PCC,Housing Revenue Account,Special Services,PROPERTY & HOUSING,Premises-Related Expenditure,Water Services,12/01/2018,6200612,121.77,VENDOR,CASTLE WATER LIMITED,142798
Portsmouth City Council,PCC,Other,Suspense and Capital Schemes,Capital - Health & Social Care,Capital Charges,Capital Expenditure (WIP),03/01/2018,6199200,194678.12,COMPANY,MOUNTJOY LIMITED,129869
Portsmouth City Council,PCC,Environmental and Regulatory Services,"Cemetery, Cremation and Mortuary Services",CULTURE & CITY DEVELOPMENT,Premises-Related Expenditure,Water Services,02/01/2018,6198928,246.87,VENDOR,CASTLE WATER LIMITED,142798
Portsmouth City Council,PCC,Cultural and Related Services,Open Spaces,CULTURE & CITY DEVELOPMENT,Premises-Related Expenditure,Water Services,02/01/2018,6198928,1391.01,VENDOR,CASTLE WATER LIMITED,142798
Portsmouth City Council,PCC,Cultural and Related Services,Open Spaces,CULTURE & CITY DEVELOPMENT,Premises-Related Expenditure,Water Services,05/01/2018,6199431,389.5,VENDOR,CASTLE WATER LIMITED,142798
Portsmouth City Council,PCC,Cultural and Related Services,Open Spaces,CULTURE & CITY DEVELOPMENT,Premises-Related Expenditure,Water Services,05/01/2018,6199431,234.71,VENDOR,CASTLE WATER LIMITED,142798
Portsmouth City Council,PCC,Cultural and Related Services,Open Spaces,CULTURE & CITY DEVELOPMENT,Premises-Related Expenditure,Water Services,12/01/2018,6200612,2585.49,VENDOR,CASTLE WATER LIMITED,142798
Portsmouth City Council,PCC,Cultural and Related Services,Recreation and Sport,CULTURE & CITY DEVELOPMENT,Premises-Related Expenditure,Water Services,12/01/2018,6200612,22.31,VENDOR,CASTLE WATER LIMITED,142798
Portsmouth City Council,PCC,Housing Revenue Account,Special Services,PROPERTY & HOUSING,Premises-Related Expenditure,Water Services,12/01/2018,6200612,249.68,VENDOR,CASTLE WATER LIMITED,142798
Portsmouth City Council,PCC,Housing Revenue Account,"Rents, Rates, Taxes and Other Charges",PROPERTY & HOUSING,Premises-Related Expenditure,Water Services,12/01/2018,6200612,16.7,VENDOR,CASTLE WATER LIMITED,142798
Portsmouth City Council,PCC,Housing Revenue Account,"Rents, Rates, Taxes and Other Charges",PROPERTY & HOUSING,Premises-Related Expenditure,Water Services,12/01/2018,6200612,23.9,VENDOR,CASTLE WATER LIMITED,142798
Portsmouth City Council,PCC,Housing Revenue Account,Special Services,PROPERTY & HOUSING,Premises-Related Expenditure,Water Services,12/01/2018,6200612,473.33,VENDOR,CASTLE WATER LIMITED,142798
Portsmouth City Council,PCC,Cultural and Related Services,Library Service,CULTURE & CITY DEVELOPMENT,Premises-Related Expenditure,Water Services,12/01/2018,6200612,84.73,VENDOR,CASTLE WATER LIMITED,142798
Portsmouth City Council,PCC,Costs below Net Cost of Services,Trading,REGENERATION,Premises-Related Expenditure,Water Services,22/01/2018,6202395,309.86,VENDOR,CASTLE WATER LIMITED,142798
Portsmouth City Council,PCC,Housing Revenue Account,Special Services,PROPERTY & HOUSING,Premises-Related Expenditure,Water Services,22/01/2018,6202395,17.8,VENDOR,CASTLE WATER LIMITED,142798
Portsmouth City Council,PCC,Housing Revenue Account,Supervision and Management,PROPERTY & HOUSING,Premises-Related Expenditure,Water Services,22/01/2018,6202395,172.16,VENDOR,CASTLE WATER LIMITED,142798
Portsmouth City Council,PCC,Housing Revenue Account,Special Services,PROPERTY & HOUSING,Premises-Related Expenditure,Water Services,23/01/2018,6202511,298.1,VENDOR,CASTLE WATER LIMITED,142798
Portsmouth City Council,PCC,Costs below Net Cost of Services,Trading,REGENERATION,Premises-Related Expenditure,Water Services,22/01/2018,6202395,17.5,VENDOR,CASTLE WATER LIMITED,142798
Portsmouth City Council,PCC,Housing Revenue Account,"Rents, Rates, Taxes and Other Charges",PROPERTY & HOUSING,Premises-Related Expenditure,Water Services,25/01/2018,6203111,317.16,VENDOR,CASTLE WATER LIMITED,142798
Portsmouth City Council,PCC,Adult Social Care,Social Care Activities,ADULT SERVICES,Third Party Payments,Other establishments,02/01/2018,6198987,5120,VENDOR,HELPING HANDS HOMECARE,141367
Portsmouth City Council,PCC,Adult Social Care,Social Care Activities,ADULT SERVICES,Third Party Payments,Other establishments,02/01/2018,6198987,4620,VENDOR,HELPING HANDS HOMECARE,141367
Portsmouth City Council,PCC,Adult Social Care,Social Care Activities,ADULT SERVICES,Third Party Payments,Other establishments,31/01/2018,6204007,5295,VENDOR,HELPING HANDS HOMECARE,141367
Portsmouth City Council,PCC,Adult Social Care,Social Care Activities,ADULT SERVICES,Third Party Payments,Other establishments,31/01/2018,6204007,3234,VENDOR,HELPING HANDS HOMECARE,141367
Portsmouth City Council,PCC,Other,Suspense and Capital Schemes,Capital - Housing GF,Capital Charges,REFCUS,24/01/2018,6203062,3780,COMPANY,YOUNG AND YOUNG BUILDING SERVICES LTD,104996
Portsmouth City Council,PCC,Children's and Education Services,Children Looked After,CHILDREN SERVICES AND EDUCATION,Supplies and Services,Services,08/01/2018,6199674,633.33,VENDOR,ST JOHNS COLLEGE,102786
Portsmouth City Council,PCC,Other,Suspense and Capital Schemes,Capital - Culture Leisure & Sport,Capital Charges,Capital Expenditure (WIP),23/01/2018,6202535,3000.95,VENDOR,FOCUS CONSULTANTS 2010 LLP,139982
Portsmouth City Council,PCC,Other,Suspense and Capital Schemes,Capital - Culture Leisure & Sport,Capital Charges,Capital Expenditure (WIP),30/01/2018,6203493,3475,VENDOR,FOCUS CONSULTANTS 2010 LLP,139982
Portsmouth City Council,PCC,Other,Suspense and Capital Schemes,Capital - Housing GF,Capital Charges,REFCUS,31/01/2018,6203589,810.22,VENDOR,BJC DESIGN,143700
Portsmouth City Council,PCC,Adult Social Care,Physical Support Adults (18 - 64),ADULT SERVICES,Third Party Payments,Other establishments,25/01/2018,6203085,102.18,VENDOR,ASTER CARE LTD,130238
Portsmouth City Council,PCC,Housing Services,Supporting People,PROPERTY & HOUSING,Third Party Payments,Other establishments,22/01/2018,6202492,33025,VENDOR,TWO SAINTS LTD,102584
Portsmouth City Council,PCC,Housing Services,Supporting People,PROPERTY & HOUSING,Third Party Payments,Other establishments,22/01/2018,6202492,4166.5,VENDOR,TWO SAINTS LTD,102584
Portsmouth City Council,PCC,Adult Social Care,Social Care Activities,ADULT SERVICES,Third Party Payments,Other establishments,25/01/2018,6203085,5281.92,VENDOR,ASTER CARE LTD,130238
Portsmouth City Council,PCC,Other,Suspense and Capital Schemes,Capital - Culture Leisure & Sport,Capital Charges,Capital Expenditure (WIP),05/01/2018,6199490,760,VENDOR,MARBAS GROUP LTD,143206
Portsmouth City Council,PCC,Adult Social Care,Social Care Activities,ADULT SERVICES,Third Party Payments,Other establishments,25/01/2018,6203085,6602.4,VENDOR,ASTER CARE LTD,130238
Portsmouth City Council,PCC,Adult Social Care,Social Care Activities,ADULT SERVICES,Third Party Payments,Other establishments,25/01/2018,6203085,3961.44,VENDOR,ASTER CARE LTD,130238
Portsmouth City Council,PCC,Adult Social Care,Social Care Activities,ADULT SERVICES,Third Party Payments,Other establishments,30/01/2018,6203524,2738.4,VENDOR,NURSE PLUS & CARER PLUS (UK) LIMITED,129474
Portsmouth City Council,PCC,Adult Social Care,Social Care Activities,ADULT SERVICES,Third Party Payments,Other establishments,17/01/2018,6201630,2738.4,VENDOR,NURSE PLUS & CARER PLUS (UK) LIMITED,129474
Portsmouth City Council,PCC,Adult Social Care,Social Care Activities,ADULT SERVICES,Third Party Payments,Other establishments,16/01/2018,6201103,2624.3,VENDOR,NURSE PLUS & CARER PLUS (UK) LIMITED,129474
Portsmouth City Council,PCC,Adult Social Care,Social Care Activities,ADULT SERVICES,Third Party Payments,Other establishments,25/01/2018,6203085,9881.84,VENDOR,ASTER CARE LTD,130238
Portsmouth City Council,PCC,Central Services,Coroners' Court Services,CULTURE & CITY DEVELOPMENT,Supplies and Services,Services,08/01/2018,316724,1200,VENDOR,DIGNITY FUNERALS LTD,117178
Portsmouth City Council,PCC,Highways and Transport Services,Traffic Management and Road Safety,REGENERATION,Supplies and Services,Miscellaneous expenses,12/01/2018,6200712,768.95,VENDOR,GOPROMOTIONAL,138709
Portsmouth City Council,PCC,Adult Social Care,Social Care Activities,ADULT SERVICES,Third Party Payments,Other establishments,16/01/2018,6201125,1100,VENDOR,SAFEGUARDING GP,137636
Portsmouth City Council,PCC,Adult Social Care,Social Care Activities,ADULT SERVICES,Third Party Payments,Other establishments,12/01/2018,6200582,2611.35,VENDOR,APPLETREE SUPPORT LTD,126285
Portsmouth City Council,PCC,Adult Social Care,Social Care Activities,ADULT SERVICES,Third Party Payments,Other establishments,16/01/2018,6201125,1100,VENDOR,SAFEGUARDING GP,137636
Portsmouth City Council,PCC,Children's and Education Services,Other children looked after services,CHILDREN SERVICES AND EDUCATION,Third Party Payments,Other establishments,05/01/2018,6199415,162.27,VENDOR,APPLETREE SUPPORT LTD,126285
Portsmouth City Council,PCC,Children's and Education Services,Other children looked after services,CHILDREN SERVICES AND EDUCATION,Third Party Payments,Other establishments,05/01/2018,6199415,829.4,VENDOR,APPLETREE SUPPORT LTD,126285
Portsmouth City Council,PCC,Children's and Education Services,Other children looked after services,CHILDREN SERVICES AND EDUCATION,Third Party Payments,Other establishments,05/01/2018,6199415,613.12,VENDOR,APPLETREE SUPPORT LTD,126285
Portsmouth City Council,PCC,Children's and Education Services,Other children looked after services,CHILDREN SERVICES AND EDUCATION,Third Party Payments,Other establishments,05/01/2018,6199415,1081.8,VENDOR,APPLETREE SUPPORT LTD,126285
Portsmouth City Council,PCC,Children's and Education Services,Other children looked after services,CHILDREN SERVICES AND EDUCATION,Third Party Payments,Other establishments,05/01/2018,6199415,1081.8,VENDOR,APPLETREE SUPPORT LTD,126285
Portsmouth City Council,PCC,Children's and Education Services,Other children looked after services,CHILDREN SERVICES AND EDUCATION,Third Party Payments,Other establishments,05/01/2018,6199415,216.36,VENDOR,APPLETREE SUPPORT LTD,126285
Portsmouth City Council,PCC,Adult Social Care,Social Care Activities,ADULT SERVICES,Third Party Payments,Other establishments,10/01/2018,6199847,2379.96,VENDOR,APPLETREE SUPPORT LTD,126285
Portsmouth City Council,PCC,Highways and Transport Services,Parking Services,REGENERATION,Third Party Payments,Private contractors,11/01/2018,6200429,165,VENDOR,BOARHUNT GROUP LTD,103726
Portsmouth City Council,PCC,Highways and Transport Services,"Airports, Harbours and Toll Facilities",PORTSMOUTH INTERNATIONAL PORT,Premises-Related Expenditure,"Repairs, alterations and maintenance of buildings",25/01/2018,6203293,532.2,VENDOR,SWL ROPE LIFTING AND TESTING,133453
Portsmouth City Council,PCC,Other,Suspense and Capital Schemes,Capital - Resources,Capital Charges,Capital Expenditure (WIP),23/01/2018,6202505,509,COMPANY,AUDITEL RENTAL AND SERVICE LTD,142888
Portsmouth City Council,PCC,Other,Suspense and Capital Schemes,Capital - Resources,Capital Charges,Capital Expenditure (WIP),23/01/2018,6202505,420,COMPANY,AUDITEL RENTAL AND SERVICE LTD,142888
Portsmouth City Council,PCC,Other,Suspense and Capital Schemes,Capital - Resources,Capital Charges,Capital Expenditure (WIP),23/01/2018,6202505,496,COMPANY,AUDITEL RENTAL AND SERVICE LTD,142888
Portsmouth City Council,PCC,Adult Social Care,Social Care Activities,ADULT SERVICES,Third Party Payments,Other establishments,19/01/2018,6202333,1357.1,VENDOR,SAFEGUARDING GP,137636
Portsmouth City Council,PCC,Cultural and Related Services,Culture and Heritage,CULTURE & CITY DEVELOPMENT,Supplies and Services,Miscellaneous expenses,25/01/2018,6203273,6000,VENDOR,SGL SOUTHSEA (HOLDINGS) LIMITED,141105
Portsmouth City Council,PCC,Costs below Net Cost of Services,Trading,FINANCE & IS,Supplies and Services,Miscellaneous expenses,10/01/2018,6200402,2874.98,VENDOR,WEIGHTMANS LLP,127719
Portsmouth City Council,PCC,Adult Social Care,Information and Early Intervention,ADULT SERVICES,Third Party Payments,Other establishments,16/01/2018,6201114,11000,VENDOR,PORTSMOUTH DIOCESE,102084
Portsmouth City Council,PCC,Adult Social Care,Social Care Activities,ADULT SERVICES,Third Party Payments,Other establishments,19/01/2018,6202337,186.31,VENDOR,SAFEGUARDING GP,137636
Portsmouth City Council,PCC,Adult Social Care,Social Care Activities,ADULT SERVICES,Third Party Payments,Other establishments,19/01/2018,6202337,186.31,VENDOR,SAFEGUARDING GP,137636
Portsmouth City Council,PCC,Children's and Education Services,Children Looked After,CHILDREN SERVICES AND EDUCATION,Premises-Related Expenditure,Rents,31/01/2018,6204018,675,VENDOR,LETTINGS DIRECT LTD,140405
Portsmouth City Council,PCC,Children's and Education Services,Other Education and Community Budget,CHILDREN SERVICES AND EDUCATION,Transport-Related Expenditure,Car allowances,04/01/2018,6199286,960,VENDOR,CITY WIDE TAXIS,103408
Portsmouth City Council,PCC,Children's and Education Services,Other Education and Community Budget,CHILDREN SERVICES AND EDUCATION,Transport-Related Expenditure,Car allowances,04/01/2018,6199286,240,VENDOR,CITY WIDE TAXIS,103408
Portsmouth City Council,PCC,Children's and Education Services,Other Education and Community Budget,CHILDREN SERVICES AND EDUCATION,Transport-Related Expenditure,Car allowances,04/01/2018,6199286,700,VENDOR,CITY WIDE TAXIS,103408
Portsmouth City Council,PCC,Children's and Education Services,Other Education and Community Budget,CHILDREN SERVICES AND EDUCATION,Transport-Related Expenditure,Car allowances,04/01/2018,6199286,640,VENDOR,CITY WIDE TAXIS,103408
Portsmouth City Council,PCC,Children's and Education Services,Other Education and Community Budget,CHILDREN SERVICES AND EDUCATION,Transport-Related Expenditure,Car allowances,04/01/2018,6199286,975,VENDOR,CITY WIDE TAXIS,103408
Portsmouth City Council,PCC,Children's and Education Services,Other Education and Community Budget,CHILDREN SERVICES AND EDUCATION,Transport-Related Expenditure,Car allowances,04/01/2018,6199286,540,VENDOR,CITY WIDE TAXIS,103408
Portsmouth City Council,PCC,Children's and Education Services,Other Education and Community Budget,CHILDREN SERVICES AND EDUCATION,Transport-Related Expenditure,Car allowances,04/01/2018,6199286,195,VENDOR,CITY WIDE TAXIS,103408
Portsmouth City Council,PCC,Children's and Education Services,Other Education and Community Budget,CHILDREN SERVICES AND EDUCATION,Transport-Related Expenditure,Car allowances,04/01/2018,6199286,930,VENDOR,CITY WIDE TAXIS,103408
Portsmouth City Council,PCC,Children's and Education Services,Other Education and Community Budget,CHILDREN SERVICES AND EDUCATION,Transport-Related Expenditure,Car allowances,04/01/2018,6199286,1890,VENDOR,CITY WIDE TAXIS,103408
Portsmouth City Council,PCC,Children's and Education Services,Other Education and Community Budget,CHILDREN SERVICES AND EDUCATION,Transport-Related Expenditure,Car allowances,04/01/2018,6199286,990,VENDOR,CITY WIDE TAXIS,103408
Portsmouth City Council,PCC,Adult Social Care,Social Care Activities,ADULT SERVICES,Third Party Payments,Other establishments,19/01/2018,6202337,186.31,VENDOR,SAFEGUARDING GP,137636
Portsmouth City Council,PCC,Adult Social Care,Social Care Activities,ADULT SERVICES,Third Party Payments,Other establishments,19/01/2018,6202337,186.31,VENDOR,SAFEGUARDING GP,137636
Portsmouth City Council,PCC,Adult Social Care,Social Care Activities,ADULT SERVICES,Third Party Payments,Other establishments,03/01/2018,6199225,186.31,VENDOR,SAFEGUARDING GP,137636
Portsmouth City Council,PCC,Adult Social Care,Social Care Activities,ADULT SERVICES,Third Party Payments,Other establishments,03/01/2018,6199225,186.31,VENDOR,SAFEGUARDING GP,137636
Portsmouth City Council,PCC,Adult Social Care,Social Care Activities,ADULT SERVICES,Third Party Payments,Other establishments,03/01/2018,6199225,228.73,VENDOR,SAFEGUARDING GP,137636
Portsmouth City Council,PCC,Adult Social Care,Social Care Activities,ADULT SERVICES,Third Party Payments,Other establishments,03/01/2018,6199225,186.31,VENDOR,SAFEGUARDING GP,137636
Portsmouth City Council,PCC,Adult Social Care,Social Care Activities,ADULT SERVICES,Third Party Payments,Other establishments,03/01/2018,6199225,186.31,VENDOR,SAFEGUARDING GP,137636
Portsmouth City Council,PCC,Adult Social Care,Social Care Activities,ADULT SERVICES,Third Party Payments,Other establishments,03/01/2018,6199225,186.31,VENDOR,SAFEGUARDING GP,137636
Portsmouth City Council,PCC,Adult Social Care,Social Care Activities,ADULT SERVICES,Third Party Payments,Other establishments,10/01/2018,6200362,186.31,VENDOR,SAFEGUARDING GP,137636
Portsmouth City Council,PCC,Adult Social Care,Learning Disability Support  Adults (18 - 64),ADULT SERVICES,Third Party Payments,Other establishments,12/01/2018,6200789,122.96,VENDOR,ROYAL MENCAP SOCIETY,102744
Portsmouth City Council,PCC,Adult Social Care,Learning Disability Support  Adults (18 - 64),ADULT SERVICES,Third Party Payments,Other establishments,12/01/2018,6200789,122.96,VENDOR,ROYAL MENCAP SOCIETY,102744
Portsmouth City Council,PCC,Adult Social Care,Learning Disability Support  Adults (18 - 64),ADULT SERVICES,Third Party Payments,Other establishments,12/01/2018,6200789,122.96,VENDOR,ROYAL MENCAP SOCIETY,102744
Portsmouth City Council,PCC,Adult Social Care,Learning Disability Support  Adults (18 - 64),ADULT SERVICES,Third Party Payments,Other establishments,12/01/2018,6200789,122.96,VENDOR,ROYAL MENCAP SOCIETY,102744
Portsmouth City Council,PCC,Adult Social Care,Learning Disability Support  Adults (18 - 64),ADULT SERVICES,Third Party Payments,Other establishments,12/01/2018,6200789,122.96,VENDOR,ROYAL MENCAP SOCIETY,102744
Portsmouth City Council,PCC,Adult Social Care,Learning Disability Support  Adults (18 - 64),ADULT SERVICES,Third Party Payments,Other establishments,12/01/2018,6200789,122.96,VENDOR,ROYAL MENCAP SOCIETY,102744
Portsmouth City Council,PCC,Adult Social Care,Learning Disabilty Support Older People (65 - 74),ADULT SERVICES,Third Party Payments,Other establishments,02/01/2018,6199064,2523.28,VENDOR,ROYAL MENCAP SOCIETY,102744
Portsmouth City Council,PCC,Adult Social Care,Learning Disability Support  Adults (18 - 64),ADULT SERVICES,Third Party Payments,Other establishments,12/01/2018,6200789,250.84,VENDOR,ROYAL MENCAP SOCIETY,102744
Portsmouth City Council,PCC,Adult Social Care,Learning Disability Support  Adults (18 - 64),ADULT SERVICES,Third Party Payments,Other establishments,12/01/2018,6200789,125.4,VENDOR,ROYAL MENCAP SOCIETY,102744
Portsmouth City Council,PCC,Adult Social Care,Learning Disabilty Support Older People (65 - 74),ADULT SERVICES,Third Party Payments,Other establishments,12/01/2018,6200789,313.56,VENDOR,ROYAL MENCAP SOCIETY,102744
Portsmouth City Council,PCC,Adult Social Care,Learning Disability Support  Adults (18 - 64),ADULT SERVICES,Third Party Payments,Other establishments,12/01/2018,6200789,438.96,VENDOR,ROYAL MENCAP SOCIETY,102744
Portsmouth City Council,PCC,Adult Social Care,Learning Disability Support  Adults (18 - 64),ADULT SERVICES,Third Party Payments,Other establishments,12/01/2018,6200789,282.2,VENDOR,ROYAL MENCAP SOCIETY,102744
Portsmouth City Council,PCC,Adult Social Care,Learning Disability Support  Adults (18 - 64),ADULT SERVICES,Third Party Payments,Other establishments,12/01/2018,6200789,78.36,VENDOR,ROYAL MENCAP SOCIETY,102744
Portsmouth City Council,PCC,Adult Social Care,Learning Disability Support  Adults (18 - 64),ADULT SERVICES,Third Party Payments,Other establishments,12/01/2018,6200789,188.12,VENDOR,ROYAL MENCAP SOCIETY,102744
Portsmouth City Council,PCC,Adult Social Care,Learning Disability Support  Adults (18 - 64),ADULT SERVICES,Third Party Payments,Other establishments,12/01/2018,6200789,620.92,VENDOR,ROYAL MENCAP SOCIETY,102744
Portsmouth City Council,PCC,Adult Social Care,Learning Disability Support  Adults (18 - 64),ADULT SERVICES,Third Party Payments,Other establishments,12/01/2018,6200789,257,VENDOR,ROYAL MENCAP SOCIETY,102744
Portsmouth City Council,PCC,Adult Social Care,Learning Disability Support  Adults (18 - 64),ADULT SERVICES,Third Party Payments,Other establishments,12/01/2018,6200789,125.4,VENDOR,ROYAL MENCAP SOCIETY,102744
Portsmouth City Council,PCC,Adult Social Care,Learning Disability Support  Adults (18 - 64),ADULT SERVICES,Third Party Payments,Other establishments,12/01/2018,6200789,250.84,VENDOR,ROYAL MENCAP SOCIETY,102744
Portsmouth City Council,PCC,Adult Social Care,Learning Disability Support  Adults (18 - 64),ADULT SERVICES,Third Party Payments,Other establishments,12/01/2018,6200789,219.48,VENDOR,ROYAL MENCAP SOCIETY,102744
Portsmouth City Council,PCC,Adult Social Care,Learning Disability Support  Adults (18 - 64),ADULT SERVICES,Third Party Payments,Other establishments,12/01/2018,6200789,501.72,VENDOR,ROYAL MENCAP SOCIETY,102744
Portsmouth City Council,PCC,Adult Social Care,Learning Disability Support  Adults (18 - 64),ADULT SERVICES,Third Party Payments,Other establishments,15/01/2018,6200967,122.96,VENDOR,ROYAL MENCAP SOCIETY,102744
Portsmouth City Council,PCC,Adult Social Care,Learning Disability Support  Adults (18 - 64),ADULT SERVICES,Third Party Payments,Other establishments,12/01/2018,6200789,125.4,VENDOR,ROYAL MENCAP SOCIETY,102744
Portsmouth City Council,PCC,Adult Social Care,Learning Disability Support  Adults (18 - 64),ADULT SERVICES,Third Party Payments,Other establishments,12/01/2018,6200789,376.24,VENDOR,ROYAL MENCAP SOCIETY,102744
Portsmouth City Council,PCC,Adult Social Care,Learning Disability Support  Adults (18 - 64),ADULT SERVICES,Third Party Payments,Other establishments,12/01/2018,6200789,313.56,VENDOR,ROYAL MENCAP SOCIETY,102744
Portsmouth City Council,PCC,Adult Social Care,Learning Disability Support  Adults (18 - 64),ADULT SERVICES,Third Party Payments,Other establishments,17/01/2018,6201649,8187.04,VENDOR,ROYAL MENCAP SOCIETY,102744
Portsmouth City Council,PCC,Adult Social Care,Learning Disability Support  Adults (18 - 64),ADULT SERVICES,Third Party Payments,Other establishments,12/01/2018,6200789,125.4,VENDOR,ROYAL MENCAP SOCIETY,102744
Portsmouth City Council,PCC,Adult Social Care,Learning Disability Support  Adults (18 - 64),ADULT SERVICES,Third Party Payments,Other establishments,12/01/2018,6200789,250.84,VENDOR,ROYAL MENCAP SOCIETY,102744
Portsmouth City Council,PCC,Adult Social Care,Learning Disability Support  Adults (18 - 64),ADULT SERVICES,Third Party Payments,Other establishments,12/01/2018,6200789,940.64,VENDOR,ROYAL MENCAP SOCIETY,102744
Portsmouth City Council,PCC,Adult Social Care,Learning Disability Support  Adults (18 - 64),ADULT SERVICES,Third Party Payments,Other establishments,12/01/2018,6200789,878.08,VENDOR,ROYAL MENCAP SOCIETY,102744
Portsmouth City Council,PCC,Adult Social Care,Learning Disability Support  Adults (18 - 64),ADULT SERVICES,Third Party Payments,Other establishments,12/01/2018,6200789,739.56,VENDOR,ROYAL MENCAP SOCIETY,102744
Portsmouth City Council,PCC,Adult Social Care,Learning Disability Support  Adults (18 - 64),ADULT SERVICES,Third Party Payments,Other establishments,12/01/2018,6200789,614.8,VENDOR,ROYAL MENCAP SOCIETY,102744
Portsmouth City Council,PCC,Adult Social Care,Social Care Activities,ADULT SERVICES,Third Party Payments,Other establishments,04/01/2018,6199368,9363.2,VENDOR,ROYAL MENCAP SOCIETY,102744
Portsmouth City Council,PCC,Adult Social Care,Social Care Activities,ADULT SERVICES,Third Party Payments,Other establishments,04/01/2018,6199368,2779.4,VENDOR,ROYAL MENCAP SOCIETY,102744
Portsmouth City Council,PCC,Adult Social Care,Learning Disability Support  Adults (18 - 64),ADULT SERVICES,Third Party Payments,Other establishments,12/01/2018,6200789,2670.56,VENDOR,ROYAL MENCAP SOCIETY,102744
Portsmouth City Council,PCC,Adult Social Care,Learning Disability Support  Adults (18 - 64),ADULT SERVICES,Income,Customer and client receipts,12/01/2018,6200789,-445.47,VENDOR,ROYAL MENCAP SOCIETY,102744
Portsmouth City Council,PCC,Adult Social Care,Learning Disability Support  Adults (18 - 64),ADULT SERVICES,Third Party Payments,Other establishments,12/01/2018,6200789,2670.56,VENDOR,ROYAL MENCAP SOCIETY,102744
Portsmouth City Council,PCC,Adult Social Care,Learning Disability Support  Adults (18 - 64),ADULT SERVICES,Income,Customer and client receipts,12/01/2018,6200789,-445.47,VENDOR,ROYAL MENCAP SOCIETY,102744
Portsmouth City Council,PCC,Adult Social Care,Learning Disability Support  Adults (18 - 64),ADULT SERVICES,Third Party Payments,Other establishments,12/01/2018,6200789,2670.83,VENDOR,ROYAL MENCAP SOCIETY,102744
Portsmouth City Council,PCC,Adult Social Care,Learning Disability Support  Adults (18 - 64),ADULT SERVICES,Income,Customer and client receipts,12/01/2018,6200789,-595.51,VENDOR,ROYAL MENCAP SOCIETY,102744
Portsmouth City Council,PCC,Adult Social Care,Learning Disability Support  Adults (18 - 64),ADULT SERVICES,Third Party Payments,Other establishments,12/01/2018,6200789,2670.56,VENDOR,ROYAL MENCAP SOCIETY,102744
Portsmouth City Council,PCC,Adult Social Care,Learning Disability Support  Adults (18 - 64),ADULT SERVICES,Income,Customer and client receipts,12/01/2018,6200789,-445.47,VENDOR,ROYAL MENCAP SOCIETY,102744
Portsmouth City Council,PCC,Adult Social Care,Learning Disability Support  Adults (18 - 64),ADULT SERVICES,Third Party Payments,Other establishments,15/01/2018,6200967,2670.43,VENDOR,ROYAL MENCAP SOCIETY,102744
Portsmouth City Council,PCC,Adult Social Care,Support with Memory and Cognition Adults (18 - 64),ADULT SERVICES,Third Party Payments,Other establishments,25/01/2018,6203085,4954.56,VENDOR,ASTER CARE LTD,130238
Portsmouth City Council,PCC,Other,Suspense and Capital Schemes,Capital - Housing GF,Capital Charges,REFCUS,24/01/2018,6203027,5000,COMPANY,PB CONSTRUCTION AND DEVELOPMENT LTD,114534
Portsmouth City Council,PCC,Other,Suspense and Capital Schemes,Capital - Housing GF,Capital Charges,REFCUS,31/01/2018,6204028,546,COMPANY,PB CONSTRUCTION AND DEVELOPMENT LTD,114534
Portsmouth City Council,PCC,Adult Social Care,Social Care Activities,ADULT SERVICES,Third Party Payments,Other establishments,19/01/2018,6202336,186.31,VENDOR,SAFEGUARDING GP,137636
Portsmouth City Council,PCC,Adult Social Care,Social Care Activities,ADULT SERVICES,Third Party Payments,Other establishments,19/01/2018,6202336,186.31,VENDOR,SAFEGUARDING GP,137636
Portsmouth City Council,PCC,Adult Social Care,Social Care Activities,ADULT SERVICES,Third Party Payments,Other establishments,19/01/2018,6202336,186.31,VENDOR,SAFEGUARDING GP,137636
Portsmouth City Council,PCC,Adult Social Care,Physical Support Older People (85+),ADULT SERVICES,Third Party Payments,Other establishments,30/01/2018,6203500,320,SOLETRADER,Classified as 'personal data' (under the Data Protection Act 1998),Redacted
Portsmouth City Council,PCC,Adult Social Care,Social Care Activities,ADULT SERVICES,Third Party Payments,Other establishments,19/01/2018,6202339,204.05,VENDOR,SAFEGUARDING GP,137636
Portsmouth City Council,PCC,Housing Services,Homelessness,PROPERTY & HOUSING,Supplies and Services,Grants and subscriptions,25/01/2018,6203252,700,VENDOR,PORTSMOUTH LETTINGS PROPERTY MANAGEMENT,140978
Portsmouth City Council,PCC,Housing Services,Homelessness,PROPERTY & HOUSING,Supplies and Services,Grants and subscriptions,25/01/2018,6203252,700,VENDOR,PORTSMOUTH LETTINGS PROPERTY MANAGEMENT,140978
Portsmouth City Council,PCC,Cultural and Related Services,Open Spaces,CULTURE & CITY DEVELOPMENT,Premises-Related Expenditure,Grounds maintenance costs,17/01/2018,6201608,474.56,COMPANY,HAGS-SMP LIMITED,106205
Portsmouth City Council,PCC,Planning Services,Business support,REGENERATION,Premises-Related Expenditure,"Repairs, alterations and maintenance of buildings",12/01/2018,6200749,350,SOLETRADER,Classified as 'personal data' (under the Data Protection Act 1998),Redacted
Portsmouth City Council,PCC,Planning Services,Business support,REGENERATION,Premises-Related Expenditure,"Repairs, alterations and maintenance of buildings",12/01/2018,6200749,80,SOLETRADER,Classified as 'personal data' (under the Data Protection Act 1998),Redacted
Portsmouth City Council,PCC,Planning Services,Business support,REGENERATION,Premises-Related Expenditure,"Repairs, alterations and maintenance of buildings",12/01/2018,6200749,280,SOLETRADER,Classified as 'personal data' (under the Data Protection Act 1998),Redacted
Portsmouth City Council,PCC,Planning Services,Business support,REGENERATION,Premises-Related Expenditure,"Repairs, alterations and maintenance of buildings",12/01/2018,6200749,95,SOLETRADER,Classified as 'personal data' (under the Data Protection Act 1998),Redacted
Portsmouth City Council,PCC,Support Service / Transparency Costs Unallocated,Information Services,FINANCE & IS,Supplies and Services,Communications and computing,12/01/2018,6200716,-512.5,VENDOR,HAMILTON MANAGEMENT (LONDON) LTD,143381
Portsmouth City Council,PCC,Housing Revenue Account,Special Services,PROPERTY & HOUSING,Third Party Payments,Private contractors,17/01/2018,6201673,50,VENDOR,THE SAINT GOBAIN GROUP,103416
Portsmouth City Council,PCC,Housing Revenue Account,Special Services,PROPERTY & HOUSING,Third Party Payments,Private contractors,17/01/2018,6201673,20,VENDOR,THE SAINT GOBAIN GROUP,103416
Portsmouth City Council,PCC,Housing Revenue Account,Special Services,PROPERTY & HOUSING,Third Party Payments,Private contractors,17/01/2018,6201673,45,VENDOR,THE SAINT GOBAIN GROUP,103416
Portsmouth City Council,PCC,Housing Revenue Account,Special Services,PROPERTY & HOUSING,Third Party Payments,Private contractors,17/01/2018,6201673,210,VENDOR,THE SAINT GOBAIN GROUP,103416
Portsmouth City Council,PCC,Housing Revenue Account,Special Services,PROPERTY & HOUSING,Third Party Payments,Private contractors,17/01/2018,6201673,145,VENDOR,THE SAINT GOBAIN GROUP,103416
Portsmouth City Council,PCC,Housing Revenue Account,Repairs and Maintenance,PROPERTY & HOUSING,Premises-Related Expenditure,"Repairs, alterations and maintenance of buildings",12/01/2018,6200837,1144.35,VENDOR,THE SAINT GOBAIN GROUP,103416
Portsmouth City Council,PCC,Housing Revenue Account,Repairs and Maintenance,PROPERTY & HOUSING,Premises-Related Expenditure,"Repairs, alterations and maintenance of buildings",18/01/2018,6202217,104.09,VENDOR,THE SAINT GOBAIN GROUP,103416
Portsmouth City Council,PCC,Housing Revenue Account,Repairs and Maintenance,PROPERTY & HOUSING,Premises-Related Expenditure,"Repairs, alterations and maintenance of buildings",18/01/2018,6202217,856,VENDOR,THE SAINT GOBAIN GROUP,103416
Portsmouth City Council,PCC,Housing Revenue Account,Repairs and Maintenance,PROPERTY & HOUSING,Premises-Related Expenditure,"Repairs, alterations and maintenance of buildings",18/01/2018,6202217,137.46,VENDOR,THE SAINT GOBAIN GROUP,103416
Portsmouth City Council,PCC,Housing Revenue Account,Repairs and Maintenance,PROPERTY & HOUSING,Premises-Related Expenditure,"Repairs, alterations and maintenance of buildings",18/01/2018,6202217,504.54,VENDOR,THE SAINT GOBAIN GROUP,103416
Portsmouth City Council,PCC,Adult Social Care,Physical Support Adults (18 - 64),ADULT SERVICES,Third Party Payments,Other establishments,10/01/2018,6200354,1224.36,VENDOR,PREPAID FINANCIAL SERVICES,137139
Portsmouth City Council,PCC,Adult Social Care,Commissioning & service delivery,ADULT SERVICES,Supplies and Services,Communications and computing,25/01/2018,6203103,728.89,COMPANY,BRITISH TELECOMMUNICATIONS PLC,100132
Portsmouth City Council,PCC,Adult Social Care,Social Care Activities,ADULT SERVICES,Third Party Payments,Other establishments,19/01/2018,6202339,200,VENDOR,SAFEGUARDING GP,137636
Portsmouth City Council,PCC,Adult Social Care,Social Care Activities,ADULT SERVICES,Third Party Payments,Other establishments,10/01/2018,6200362,186.31,VENDOR,SAFEGUARDING GP,137636
Portsmouth City Council,PCC,Adult Social Care,Social Care Activities,ADULT SERVICES,Third Party Payments,Other establishments,10/01/2018,6200362,212.42,VENDOR,SAFEGUARDING GP,137636
Portsmouth City Council,PCC,Adult Social Care,Social Care Activities,ADULT SERVICES,Third Party Payments,Other establishments,10/01/2018,6200362,191.75,VENDOR,SAFEGUARDING GP,137636
Portsmouth City Council,PCC,Children's and Education Services,Children Looked After,CHILDREN SERVICES AND EDUCATION,Third Party Payments,Other establishments,02/01/2018,6199121,18232.43,VENDOR,WESSEX COLLEGE LTD,142998
Portsmouth City Council,PCC,Other,Suspense and Capital Schemes,Capital - Housing GF,Capital Charges,REFCUS,10/01/2018,6200316,2300,COMPANY,L DEVINE AND CO LIMITED,111002
Portsmouth City Council,PCC,Other,Suspense and Capital Schemes,Capital - Housing GF,Capital Charges,REFCUS,17/01/2018,6201622,6764.47,COMPANY,L DEVINE AND CO LIMITED,111002
Portsmouth City Council,PCC,Housing Services,Private Sector Housing Renewal,PROPERTY & HOUSING,Income,Other grants reimbursements and contributions,17/01/2018,6201622,-709.56,COMPANY,L DEVINE AND CO LIMITED,111002
Portsmouth City Council,PCC,Other,Suspense and Capital Schemes,Capital - Housing GF,Capital Charges,REFCUS,31/01/2018,6204015,10000,COMPANY,L DEVINE AND CO LIMITED,111002
Portsmouth City Council,PCC,Adult Social Care,Physical Support Adults (18 - 64),ADULT SERVICES,Third Party Payments,Other establishments,24/01/2018,6203037,1306.61,VENDOR,PREPAID FINANCIAL SERVICES,137139
Portsmouth City Council,PCC,Adult Social Care,Social Care Activities,ADULT SERVICES,Third Party Payments,Other establishments,10/01/2018,6200362,186.31,VENDOR,SAFEGUARDING GP,137636
Portsmouth City Council,PCC,Adult Social Care,Social Care Activities,ADULT SERVICES,Third Party Payments,Other establishments,10/01/2018,6200362,186.31,VENDOR,SAFEGUARDING GP,137636
Portsmouth City Council,PCC,Adult Social Care,Social Care Activities,ADULT SERVICES,Third Party Payments,Other establishments,10/01/2018,6200362,186.31,VENDOR,SAFEGUARDING GP,137636
Portsmouth City Council,PCC,Adult Social Care,Social Care Activities,ADULT SERVICES,Third Party Payments,Other establishments,10/01/2018,6200362,186.31,VENDOR,SAFEGUARDING GP,137636
Portsmouth City Council,PCC,Adult Social Care,Social Care Activities,ADULT SERVICES,Third Party Payments,Other establishments,10/01/2018,6200362,186.31,VENDOR,SAFEGUARDING GP,137636
Portsmouth City Council,PCC,Adult Social Care,Social Care Activities,ADULT SERVICES,Third Party Payments,Other establishments,10/01/2018,6200362,186.31,VENDOR,SAFEGUARDING GP,137636
Portsmouth City Council,PCC,Adult Social Care,Social Care Activities,ADULT SERVICES,Third Party Payments,Other establishments,10/01/2018,6200362,186.31,VENDOR,SAFEGUARDING GP,137636
Portsmouth City Council,PCC,Adult Social Care,Social Care Activities,ADULT SERVICES,Third Party Payments,Other establishments,10/01/2018,6200362,186.31,VENDOR,SAFEGUARDING GP,137636
Portsmouth City Council,PCC,Adult Social Care,Social Care Activities,ADULT SERVICES,Third Party Payments,Other establishments,10/01/2018,6200362,186.31,VENDOR,SAFEGUARDING GP,137636
Portsmouth City Council,PCC,Adult Social Care,Social Care Activities,ADULT SERVICES,Third Party Payments,Other establishments,10/01/2018,6200362,186.31,VENDOR,SAFEGUARDING GP,137636
Portsmouth City Council,PCC,Adult Social Care,Social Care Activities,ADULT SERVICES,Third Party Payments,Other establishments,10/01/2018,6200362,223.29,VENDOR,SAFEGUARDING GP,137636
Portsmouth City Council,PCC,Other,Suspense and Capital Schemes,Capital - Culture Leisure & Sport,Capital Charges,Capital Expenditure (WIP),12/01/2018,6200840,1476,VENDOR,THE TETLEY WORKSHOP CARPET AND TAPESTRY CONSERVATION,140641
Portsmouth City Council,PCC,Cultural and Related Services,Library Service,CULTURE & CITY DEVELOPMENT,Premises-Related Expenditure,"Repairs, alterations and maintenance of buildings",08/01/2018,316725,75,VENDOR,EMOS INFORMATION SYSTEMS LTD,101405
Portsmouth City Council,PCC,Cultural and Related Services,Library Service,CULTURE & CITY DEVELOPMENT,Premises-Related Expenditure,"Repairs, alterations and maintenance of buildings",08/01/2018,316725,75,VENDOR,EMOS INFORMATION SYSTEMS LTD,101405
Portsmouth City Council,PCC,Cultural and Related Services,Library Service,CULTURE & CITY DEVELOPMENT,Premises-Related Expenditure,"Repairs, alterations and maintenance of buildings",08/01/2018,316725,225,VENDOR,EMOS INFORMATION SYSTEMS LTD,101405
Portsmouth City Council,PCC,Cultural and Related Services,Library Service,CULTURE & CITY DEVELOPMENT,Premises-Related Expenditure,"Repairs, alterations and maintenance of buildings",08/01/2018,316725,7,VENDOR,EMOS INFORMATION SYSTEMS LTD,101405
Portsmouth City Council,PCC,Cultural and Related Services,Library Service,CULTURE & CITY DEVELOPMENT,Premises-Related Expenditure,"Repairs, alterations and maintenance of buildings",08/01/2018,316725,75,VENDOR,EMOS INFORMATION SYSTEMS LTD,101405
Portsmouth City Council,PCC,Cultural and Related Services,Library Service,CULTURE & CITY DEVELOPMENT,Premises-Related Expenditure,"Repairs, alterations and maintenance of buildings",08/01/2018,316725,75,VENDOR,EMOS INFORMATION SYSTEMS LTD,101405
Portsmouth City Council,PCC,Cultural and Related Services,Library Service,CULTURE & CITY DEVELOPMENT,Premises-Related Expenditure,"Repairs, alterations and maintenance of buildings",08/01/2018,316725,225,VENDOR,EMOS INFORMATION SYSTEMS LTD,101405
Portsmouth City Council,PCC,Cultural and Related Services,Library Service,CULTURE & CITY DEVELOPMENT,Premises-Related Expenditure,"Repairs, alterations and maintenance of buildings",08/01/2018,316725,7,VENDOR,EMOS INFORMATION SYSTEMS LTD,101405
Portsmouth City Council,PCC,Adult Social Care,Social Care Activities,ADULT SERVICES,Third Party Payments,Other establishments,03/01/2018,6199231,186.31,VENDOR,SAFEGUARDING GP,137636
Portsmouth City Council,PCC,Adult Social Care,Social Care Activities,ADULT SERVICES,Third Party Payments,Other establishments,03/01/2018,6199231,186.31,VENDOR,SAFEGUARDING GP,137636
Portsmouth City Council,PCC,Adult Social Care,Social Care Activities,ADULT SERVICES,Third Party Payments,Other establishments,03/01/2018,6199231,186.31,VENDOR,SAFEGUARDING GP,137636
Portsmouth City Council,PCC,Housing Revenue Account,Repairs and Maintenance,PROPERTY & HOUSING,Premises-Related Expenditure,"Repairs, alterations and maintenance of buildings",31/01/2018,6203596,1073592.93,COMPANY,COMSERV (UK) LIMITED,120542
Portsmouth City Council,PCC,Housing Revenue Account,Repairs and Maintenance,PROPERTY & HOUSING,Premises-Related Expenditure,"Repairs, alterations and maintenance of buildings",23/01/2018,6202548,1135294.98,COMPANY,MOUNTJOY LIMITED,129869
Portsmouth City Council,PCC,Children's and Education Services,Children Looked After,CHILDREN SERVICES AND EDUCATION,Third Party Payments,Other establishments,12/01/2018,6200848,7286.25,VENDOR,V CARE 24 LIMITED,143565
Portsmouth City Council,PCC,Adult Social Care,Physical Support Older People (85+),ADULT SERVICES,Third Party Payments,Other establishments,09/01/2018,6199781,189,VENDOR,JM HOMECARE LTD T/A RIGHT AT HOME,141434
Portsmouth City Council,PCC,Adult Social Care,Support with Memory and Cognition Older People (85+),ADULT SERVICES,Third Party Payments,Other establishments,05/01/2018,6199481,244.3,VENDOR,JM HOMECARE LTD T/A RIGHT AT HOME,141434
Portsmouth City Council,PCC,Adult Social Care,Social Support - Support for Carer,ADULT SERVICES,Third Party Payments,Other establishments,09/01/2018,6199781,19,VENDOR,JM HOMECARE LTD T/A RIGHT AT HOME,141434
Portsmouth City Council,PCC,Adult Social Care,Social Support - Support for Carer,ADULT SERVICES,Third Party Payments,Other establishments,09/01/2018,6199781,103.5,VENDOR,JM HOMECARE LTD T/A RIGHT AT HOME,141434
Portsmouth City Council,PCC,Other,Suspense and Capital Schemes,Capital - Culture Leisure & Sport,Capital Charges,Capital Expenditure (WIP),24/01/2018,6203012,11099.25,VENDOR,GRANITE SETTS UK LTD,143549
Portsmouth City Council,PCC,Adult Social Care,Physical Support Older People (85+),ADULT SERVICES,Third Party Payments,Other establishments,09/01/2018,6199781,283.05,VENDOR,JM HOMECARE LTD T/A RIGHT AT HOME,141434
Portsmouth City Council,PCC,Costs below Net Cost of Services,Trading,REGENERATION,Premises-Related Expenditure,"Repairs, alterations and maintenance of buildings",09/01/2018,6199703,1060,COMPANY,BAILEY BROS (SOUTHERN) LTD,114153
Portsmouth City Council,PCC,Adult Social Care,Physical Support Older People (85+),ADULT SERVICES,Third Party Payments,Other establishments,05/01/2018,6199481,95.5,VENDOR,JM HOMECARE LTD T/A RIGHT AT HOME,141434
Portsmouth City Council,PCC,Costs below Net Cost of Services,Trading,REGENERATION,Premises-Related Expenditure,"Repairs, alterations and maintenance of buildings",11/01/2018,6200420,530,COMPANY,BAILEY BROS (SOUTHERN) LTD,114153
Portsmouth City Council,PCC,Costs below Net Cost of Services,Trading,REGENERATION,Premises-Related Expenditure,"Repairs, alterations and maintenance of buildings",08/01/2018,6199557,530,COMPANY,BAILEY BROS (SOUTHERN) LTD,114153
Portsmouth City Council,PCC,Adult Social Care,Physical Support Older People (85+),ADULT SERVICES,Third Party Payments,Other establishments,09/01/2018,6199781,99.25,VENDOR,JM HOMECARE LTD T/A RIGHT AT HOME,141434
Portsmouth City Council,PCC,Adult Social Care,Physical Support Older People (85+),ADULT SERVICES,Third Party Payments,Other establishments,09/01/2018,6199781,210,VENDOR,JM HOMECARE LTD T/A RIGHT AT HOME,141434
Portsmouth City Council,PCC,Support Service / Transparency Costs Unallocated,Financial Services,FINANCE & IS,Employees,Direct employee expenses,12/01/2018,6200721,6929.65,COMPANY,HAYS SPECIALIST RECRUITMENT LIMITED,100045
Portsmouth City Council,PCC,Adult Social Care,Physical Support Adults (18 - 64),ADULT SERVICES,Third Party Payments,Other establishments,31/01/2018,6203573,486.36,VENDOR,ACCESS CARE LTD,106309
Portsmouth City Council,PCC,Corporate and Democratic Core,Democratic Representation and Management,CX,Third Party Payments,Private contractors,17/01/2018,6201632,3100,SOLETRADER,Classified as 'personal data' (under the Data Protection Act 1998),Redacted
Portsmouth City Council,PCC,Highways and Transport Services,"Airports, Harbours and Toll Facilities",PORTSMOUTH INTERNATIONAL PORT,Supplies and Services,Miscellaneous expenses,25/01/2018,6203068,100,VENDOR,ADARE INTERNATIONAL LTD,138060
Portsmouth City Council,PCC,Highways and Transport Services,"Airports, Harbours and Toll Facilities",PORTSMOUTH INTERNATIONAL PORT,Supplies and Services,Miscellaneous expenses,25/01/2018,6203068,54.98,VENDOR,ADARE INTERNATIONAL LTD,138060
Portsmouth City Council,PCC,Highways and Transport Services,"Airports, Harbours and Toll Facilities",PORTSMOUTH INTERNATIONAL PORT,Supplies and Services,Miscellaneous expenses,25/01/2018,6203068,56.5,VENDOR,ADARE INTERNATIONAL LTD,138060
Portsmouth City Council,PCC,Highways and Transport Services,"Airports, Harbours and Toll Facilities",PORTSMOUTH INTERNATIONAL PORT,Supplies and Services,Miscellaneous expenses,25/01/2018,6203068,9330,VENDOR,ADARE INTERNATIONAL LTD,138060
Portsmouth City Council,PCC,Children's and Education Services,Children Looked After,CHILDREN SERVICES AND EDUCATION,Third Party Payments,Other establishments,08/01/2018,6199685,7888.5,VENDOR,V CARE 24 LIMITED,143565
Portsmouth City Council,PCC,Other,Suspense and Capital Schemes,Capital - Resources,Capital Charges,Capital Expenditure (WIP),12/01/2018,6200802,550,COMPANY,SES CONTROLS LIMITED,129063
Portsmouth City Council,PCC,Children's and Education Services,Children Looked After,CHILDREN SERVICES AND EDUCATION,Third Party Payments,Other establishments,12/01/2018,6200848,6720,VENDOR,V CARE 24 LIMITED,143565
Portsmouth City Council,PCC,Adult Social Care,Physical Support Older People (85+),ADULT SERVICES,Third Party Payments,Other establishments,12/01/2018,6200732,17.25,VENDOR,JM HOMECARE LTD T/A RIGHT AT HOME,141434
Portsmouth City Council,PCC,Adult Social Care,Physical Support Older People (85+),ADULT SERVICES,Third Party Payments,Other establishments,15/01/2018,6200943,184.5,VENDOR,JM HOMECARE LTD T/A RIGHT AT HOME,141434
Portsmouth City Council,PCC,Adult Social Care,Social Support - Support for Carer,ADULT SERVICES,Third Party Payments,Other establishments,12/01/2018,6200732,51.75,VENDOR,JM HOMECARE LTD T/A RIGHT AT HOME,141434
Portsmouth City Council,PCC,Adult Social Care,Social Support - Support for Carer,ADULT SERVICES,Third Party Payments,Other establishments,12/01/2018,6200732,76,VENDOR,JM HOMECARE LTD T/A RIGHT AT HOME,141434
Portsmouth City Council,PCC,Adult Social Care,Physical Support Older People (85+),ADULT SERVICES,Third Party Payments,Other establishments,12/01/2018,6200732,189,VENDOR,JM HOMECARE LTD T/A RIGHT AT HOME,141434
Portsmouth City Council,PCC,Adult Social Care,Social Support - Support for Carer,ADULT SERVICES,Third Party Payments,Other establishments,12/01/2018,6200732,103.5,VENDOR,JM HOMECARE LTD T/A RIGHT AT HOME,141434
Portsmouth City Council,PCC,Adult Social Care,Physical Support Older People (85+),ADULT SERVICES,Third Party Payments,Other establishments,12/01/2018,6200732,252.55,VENDOR,JM HOMECARE LTD T/A RIGHT AT HOME,141434
Portsmouth City Council,PCC,Adult Social Care,Physical Support Older People (85+),ADULT SERVICES,Third Party Payments,Other establishments,12/01/2018,6200732,94.5,VENDOR,JM HOMECARE LTD T/A RIGHT AT HOME,141434
Portsmouth City Council,PCC,Adult Social Care,Physical Support Older People (85+),ADULT SERVICES,Third Party Payments,Other establishments,15/01/2018,6200943,111.75,VENDOR,JM HOMECARE LTD T/A RIGHT AT HOME,141434
Portsmouth City Council,PCC,Adult Social Care,Physical Support Older People (85+),ADULT SERVICES,Third Party Payments,Other establishments,12/01/2018,6200732,210,VENDOR,JM HOMECARE LTD T/A RIGHT AT HOME,141434
Portsmouth City Council,PCC,Adult Social Care,Physical Support Older People (85+),ADULT SERVICES,Third Party Payments,Other establishments,19/01/2018,6202305,41.25,VENDOR,JM HOMECARE LTD T/A RIGHT AT HOME,141434
Portsmouth City Council,PCC,Adult Social Care,Physical Support Older People (85+),ADULT SERVICES,Third Party Payments,Other establishments,19/01/2018,6202305,174,VENDOR,JM HOMECARE LTD T/A RIGHT AT HOME,141434
Portsmouth City Council,PCC,Adult Social Care,Social Support - Support for Carer,ADULT SERVICES,Third Party Payments,Other establishments,19/01/2018,6202305,103.5,VENDOR,JM HOMECARE LTD T/A RIGHT AT HOME,141434
Portsmouth City Council,PCC,Adult Social Care,Social Support - Support for Carer,ADULT SERVICES,Third Party Payments,Other establishments,19/01/2018,6202305,76,VENDOR,JM HOMECARE LTD T/A RIGHT AT HOME,141434
Portsmouth City Council,PCC,Adult Social Care,Physical Support Older People (85+),ADULT SERVICES,Third Party Payments,Other establishments,19/01/2018,6202305,189,VENDOR,JM HOMECARE LTD T/A RIGHT AT HOME,141434
Portsmouth City Council,PCC,Adult Social Care,Support with Memory and Cognition Older People (85+),ADULT SERVICES,Third Party Payments,Other establishments,19/01/2018,6202305,257.8,VENDOR,JM HOMECARE LTD T/A RIGHT AT HOME,141434
Portsmouth City Council,PCC,Adult Social Care,Social Support - Support for Carer,ADULT SERVICES,Third Party Payments,Other establishments,19/01/2018,6202305,103.5,VENDOR,JM HOMECARE LTD T/A RIGHT AT HOME,141434
Portsmouth City Council,PCC,Adult Social Care,Physical Support Older People (85+),ADULT SERVICES,Third Party Payments,Other establishments,19/01/2018,6202305,283.55,VENDOR,JM HOMECARE LTD T/A RIGHT AT HOME,141434
Portsmouth City Council,PCC,Housing Services,Private Sector Housing Renewal,PROPERTY & HOUSING,Supplies and Services,Grants and subscriptions,24/01/2018,6202629,-40,COMPANY,DOLPHIN MOBILITY LTD,135682
Portsmouth City Council,PCC,Other,Suspense and Capital Schemes,Capital - Housing GF,Capital Charges,REFCUS,24/01/2018,6202629,2095.2,COMPANY,DOLPHIN MOBILITY LTD,135682
Portsmouth City Council,PCC,Housing Services,Private Sector Housing Renewal,PROPERTY & HOUSING,Income,Other grants reimbursements and contributions,24/01/2018,6202629,-183.5,COMPANY,DOLPHIN MOBILITY LTD,135682
Portsmouth City Council,PCC,Other,Suspense and Capital Schemes,Capital - Housing GF,Capital Charges,REFCUS,10/01/2018,6199910,784,COMPANY,DOLPHIN MOBILITY LTD,135682
Portsmouth City Council,PCC,Housing Services,Private Sector Housing Renewal,PROPERTY & HOUSING,Income,Other grants reimbursements and contributions,10/01/2018,6199910,-70,COMPANY,DOLPHIN MOBILITY LTD,135682
Portsmouth City Council,PCC,Adult Social Care,Physical Support Older People (85+),ADULT SERVICES,Third Party Payments,Other establishments,19/01/2018,6202305,101.75,VENDOR,JM HOMECARE LTD T/A RIGHT AT HOME,141434
Portsmouth City Council,PCC,Adult Social Care,Physical Support Older People (85+),ADULT SERVICES,Third Party Payments,Other establishments,19/01/2018,6202305,105.5,VENDOR,JM HOMECARE LTD T/A RIGHT AT HOME,141434
Portsmouth City Council,PCC,Adult Social Care,Physical Support Older People (85+),ADULT SERVICES,Third Party Payments,Other establishments,19/01/2018,6202305,210,VENDOR,JM HOMECARE LTD T/A RIGHT AT HOME,141434
Portsmouth City Council,PCC,Support Service / Transparency Costs Unallocated,Information Services,FINANCE & IS,Supplies and Services,Communications and computing,16/01/2018,6201132,52676.2,VENDOR,SILVERSTRING LTD,137842
Portsmouth City Council,PCC,Costs below Net Cost of Services,Trading,REGENERATION,Supplies and Services,Services,30/01/2018,6203497,625,VENDOR,GVA GRIMLEY LTD,113804
Portsmouth City Council,PCC,Costs below Net Cost of Services,Trading,REGENERATION,Supplies and Services,Services,30/01/2018,6203497,425,VENDOR,GVA GRIMLEY LTD,113804
Portsmouth City Council,PCC,Adult Social Care,Information and Early Intervention,ADULT SERVICES,Third Party Payments,Other establishments,16/01/2018,6201023,19772.5,VENDOR,APETITO LTD,100127
Portsmouth City Council,PCC,Adult Social Care,Information and Early Intervention,ADULT SERVICES,Third Party Payments,Other establishments,16/01/2018,6201023,2024.75,VENDOR,APETITO LTD,100127
Portsmouth City Council,PCC,Adult Social Care,Information and Early Intervention,ADULT SERVICES,Income,Customer and client receipts,16/01/2018,6201023,-19772.5,VENDOR,APETITO LTD,100127
Portsmouth City Council,PCC,Adult Social Care,Information and Early Intervention,ADULT SERVICES,Income,Customer and client receipts,16/01/2018,6201023,-2024.75,VENDOR,APETITO LTD,100127
Portsmouth City Council,PCC,Planning Services,Business support,REGENERATION,Supplies and Services,"Equipment, furniture and materials",30/01/2018,6203540,1300,VENDOR,SDPUK LIMITED T/AS SIGN DESIGN PRINT,143710
Portsmouth City Council,PCC,Other,Suspense and Capital Schemes,Capital - Culture Leisure & Sport,Capital Charges,Capital Expenditure (WIP),15/01/2018,6200937,34125,COMPANY,HEXLEY LIMITED,123315
Portsmouth City Council,PCC,Housing Revenue Account,Repairs and Maintenance,PROPERTY & HOUSING,Premises-Related Expenditure,"Repairs, alterations and maintenance of buildings",05/01/2018,6199488,796,COMPANY,M&P DRY RISERS LIMITED,137177
Portsmouth City Council,PCC,Adult Social Care,Social Care Activities,ADULT SERVICES,Third Party Payments,Other establishments,30/01/2018,6203556,4740,VENDOR,THE OUT OF TOWN CENTRE LIMITED,133198
Portsmouth City Council,PCC,Adult Social Care,Social Care Activities,ADULT SERVICES,Third Party Payments,Other establishments,30/01/2018,6203556,630,VENDOR,THE OUT OF TOWN CENTRE LIMITED,133198
Portsmouth City Council,PCC,Adult Social Care,Physical Support Older People (85+),ADULT SERVICES,Third Party Payments,Other establishments,25/01/2018,6203207,34.5,VENDOR,JM HOMECARE LTD T/A RIGHT AT HOME,141434
Portsmouth City Council,PCC,Adult Social Care,Physical Support Older People (85+),ADULT SERVICES,Third Party Payments,Other establishments,25/01/2018,6203207,163.5,VENDOR,JM HOMECARE LTD T/A RIGHT AT HOME,141434
Portsmouth City Council,PCC,Other,Suspense and Capital Schemes,Capital - Housing RA,Capital Charges,Capital Expenditure (WIP),16/01/2018,6201106,480,COMPANY,ORION LIGHTNING PROTECTION LTD,120041
Portsmouth City Council,PCC,Adult Social Care,Social Support - Support for Carer,ADULT SERVICES,Third Party Payments,Other establishments,25/01/2018,6203207,103.5,VENDOR,JM HOMECARE LTD T/A RIGHT AT HOME,141434
Portsmouth City Council,PCC,Adult Social Care,Learning Disability Support  Adults (18 - 64),ADULT SERVICES,Third Party Payments,Other establishments,30/01/2018,6203556,840,VENDOR,THE OUT OF TOWN CENTRE LIMITED,133198
Portsmouth City Council,PCC,Adult Social Care,Learning Disability Support  Adults (18 - 64),ADULT SERVICES,Third Party Payments,Other establishments,30/01/2018,6203556,2280,VENDOR,THE OUT OF TOWN CENTRE LIMITED,133198
Portsmouth City Council,PCC,Adult Social Care,Learning Disability Support  Adults (18 - 64),ADULT SERVICES,Third Party Payments,Other establishments,30/01/2018,6203556,600,VENDOR,THE OUT OF TOWN CENTRE LIMITED,133198
Portsmouth City Council,PCC,Adult Social Care,Learning Disability Support  Adults (18 - 64),ADULT SERVICES,Third Party Payments,Other establishments,30/01/2018,6203556,290,VENDOR,THE OUT OF TOWN CENTRE LIMITED,133198
Portsmouth City Council,PCC,Adult Social Care,Social Support - Support for Carer,ADULT SERVICES,Third Party Payments,Other establishments,25/01/2018,6203207,76,VENDOR,JM HOMECARE LTD T/A RIGHT AT HOME,141434
Portsmouth City Council,PCC,Adult Social Care,Physical Support Older People (85+),ADULT SERVICES,Third Party Payments,Other establishments,25/01/2018,6203207,189,VENDOR,JM HOMECARE LTD T/A RIGHT AT HOME,141434
Portsmouth City Council,PCC,Other,Suspense and Capital Schemes,Capital - PRED (Excl. Port & Solent LEP),Capital Charges,Capital Expenditure (WIP),16/01/2018,6201148,3531.41,COMPANY,T LOUGHMAN & CO LTD,142146
Portsmouth City Council,PCC,Adult Social Care,Support with Memory and Cognition Older People (85+),ADULT SERVICES,Third Party Payments,Other establishments,25/01/2018,6203207,244.3,VENDOR,JM HOMECARE LTD T/A RIGHT AT HOME,141434
Portsmouth City Council,PCC,Adult Social Care,Social Support - Support for Carer,ADULT SERVICES,Third Party Payments,Other establishments,25/01/2018,6203207,19,VENDOR,JM HOMECARE LTD T/A RIGHT AT HOME,141434
Portsmouth City Council,PCC,Adult Social Care,Social Support - Support for Carer,ADULT SERVICES,Third Party Payments,Other establishments,25/01/2018,6203207,103.5,VENDOR,JM HOMECARE LTD T/A RIGHT AT HOME,141434
Portsmouth City Council,PCC,Adult Social Care,Physical Support Older People (85+),ADULT SERVICES,Third Party Payments,Other establishments,25/01/2018,6203207,283.05,VENDOR,JM HOMECARE LTD T/A RIGHT AT HOME,141434
Portsmouth City Council,PCC,Housing Revenue Account,Repairs and Maintenance,PROPERTY & HOUSING,Premises-Related Expenditure,"Repairs, alterations and maintenance of buildings",17/01/2018,6201625,148,COMPANY,M&P DRY RISERS LIMITED,137177
Portsmouth City Council,PCC,Housing Revenue Account,Repairs and Maintenance,PROPERTY & HOUSING,Premises-Related Expenditure,"Repairs, alterations and maintenance of buildings",17/01/2018,6201625,426,COMPANY,M&P DRY RISERS LIMITED,137177
Portsmouth City Council,PCC,Adult Social Care,Physical Support Older People (85+),ADULT SERVICES,Third Party Payments,Other establishments,25/01/2018,6203207,95.5,VENDOR,JM HOMECARE LTD T/A RIGHT AT HOME,141434
Portsmouth City Council,PCC,Adult Social Care,Physical Support Older People (85+),ADULT SERVICES,Third Party Payments,Other establishments,25/01/2018,6203207,99.25,VENDOR,JM HOMECARE LTD T/A RIGHT AT HOME,141434
Portsmouth City Council,PCC,Adult Social Care,Physical Support Older People (85+),ADULT SERVICES,Third Party Payments,Other establishments,25/01/2018,6203207,210,VENDOR,JM HOMECARE LTD T/A RIGHT AT HOME,141434
Portsmouth City Council,PCC,Children's and Education Services,Children Looked After,CHILDREN SERVICES AND EDUCATION,Third Party Payments,Other establishments,12/01/2018,6200724,17391,VENDOR,HILLCREST CHILDRENS SERVICES LIMITED,117913
Portsmouth City Council,PCC,Children's and Education Services,Children Looked After,CHILDREN SERVICES AND EDUCATION,Third Party Payments,Other establishments,17/01/2018,6201611,16275,VENDOR,HILLCREST CHILDRENS SERVICES LIMITED,117913
Portsmouth City Council,PCC,Children's and Education Services,Special Schools,Children's Services - DSG & Schools,Third Party Payments,Other establishments,22/01/2018,6202444,4603.5,VENDOR,HILLCREST CHILDRENS SERVICES LIMITED,117913
Portsmouth City Council,PCC,Environmental and Regulatory Services,Community Safety (Crime Reduction),CHILDREN SERVICES AND EDUCATION,Third Party Payments,Other establishments,11/01/2018,6200475,20255.86,VENDOR,HOME GROUP LTD,102009
Portsmouth City Council,PCC,Environmental and Regulatory Services,Community Safety (Crime Reduction),CHILDREN SERVICES AND EDUCATION,Third Party Payments,Other establishments,09/01/2018,6199775,20255.86,VENDOR,HOME GROUP LTD,102009
Portsmouth City Council,PCC,Environmental and Regulatory Services,Community Safety (Crime Reduction),CHILDREN SERVICES AND EDUCATION,Third Party Payments,Other establishments,25/01/2018,6203200,10127.93,VENDOR,HOME GROUP LTD,102009
Portsmouth City Council,PCC,Environmental and Regulatory Services,Community Safety (Crime Reduction),CHILDREN SERVICES AND EDUCATION,Third Party Payments,Other establishments,25/01/2018,6203200,10127.93,VENDOR,HOME GROUP LTD,102009
Portsmouth City Council,PCC,Adult Social Care,Social Care Activities,ADULT SERVICES,Supplies and Services,"Printing, stationery and general office expenses",17/01/2018,6201648,771.78,VENDOR,ROYAL MAIL,100182
Portsmouth City Council,PCC,Housing Services,Homelessness,PROPERTY & HOUSING,Third Party Payments,Private contractors,25/01/2018,6203218,845,VENDOR,M J H REMOVALS LTD,105441
Portsmouth City Council,PCC,Children's and Education Services,Special Schools,Children's Services - DSG & Schools,Third Party Payments,Private contractors,10/01/2018,6200377,600.67,VENDOR,ST CATHERINES SCHOOL,103758
Portsmouth City Council,PCC,Children's and Education Services,Special Schools,Children's Services - DSG & Schools,Third Party Payments,Private contractors,10/01/2018,6200377,600.67,VENDOR,ST CATHERINES SCHOOL,103758
Portsmouth City Council,PCC,Children's and Education Services,Special Schools,Children's Services - DSG & Schools,Third Party Payments,Private contractors,10/01/2018,6200377,10283.67,VENDOR,ST CATHERINES SCHOOL,103758
Portsmouth City Council,PCC,Children's and Education Services,Special Schools,Children's Services - DSG & Schools,Third Party Payments,Private contractors,10/01/2018,6200377,11457.67,VENDOR,ST CATHERINES SCHOOL,103758
Portsmouth City Council,PCC,Children's and Education Services,Special Schools,Children's Services - DSG & Schools,Third Party Payments,Private contractors,10/01/2018,6200377,600.67,VENDOR,ST CATHERINES SCHOOL,103758
Portsmouth City Council,PCC,Children's and Education Services,Special Schools,Children's Services - DSG & Schools,Third Party Payments,Private contractors,10/01/2018,6200377,11457.67,VENDOR,ST CATHERINES SCHOOL,103758
Portsmouth City Council,PCC,Other,Suspense and Capital Schemes,Capital - PRED (Excl. Port & Solent LEP),Capital Charges,Capital Expenditure (WIP),09/01/2018,6199791,2160.65,VENDOR,NATURAL ENGLAND,118047
Portsmouth City Council,PCC,Other,Suspense and Capital Schemes,PROPERTY & HOUSING,Premises-Related Expenditure,"Repairs, alterations and maintenance of buildings",05/01/2018,6199518,405.36,VENDOR,SIX DEGREES TECHNOLOGY GROUP LTD,137034
Portsmouth City Council,PCC,Housing Revenue Account,Repairs and Maintenance,PROPERTY & HOUSING,Premises-Related Expenditure,"Repairs, alterations and maintenance of buildings",05/01/2018,6199518,1589.94,VENDOR,SIX DEGREES TECHNOLOGY GROUP LTD,137034
Portsmouth City Council,PCC,Adult Social Care,Physical Support Adults (75 - 84),ADULT SERVICES,Third Party Payments,Other establishments,10/01/2018,6199846,862.36,VENDOR,APEX PROPERTY VENTURES LTD,108437
Portsmouth City Council,PCC,Adult Social Care,Physical Support Older People (85+),ADULT SERVICES,Third Party Payments,Other establishments,10/01/2018,6199846,116.96,VENDOR,APEX PROPERTY VENTURES LTD,108437
Portsmouth City Council,PCC,Housing Revenue Account,Special Services,PROPERTY & HOUSING,Employees,Direct employee expenses,04/01/2018,6199272,3492.77,VENDOR,APEX PROPERTY VENTURES LTD,108437
Portsmouth City Council,PCC,Other,Suspense and Capital Schemes,Capital - Housing GF,Capital Charges,REFCUS,11/01/2018,6200484,5496.61,VENDOR,KEMP BUILDERS,135362
Portsmouth City Council,PCC,Housing Services,Private Sector Housing Renewal,PROPERTY & HOUSING,Income,Other grants reimbursements and contributions,11/01/2018,6200484,-1101.04,VENDOR,KEMP BUILDERS,135362
Portsmouth City Council,PCC,Adult Social Care,Physical Support Adults (75 - 84),ADULT SERVICES,Third Party Payments,Other establishments,11/01/2018,6200413,334.05,VENDOR,APEX PROPERTY VENTURES LTD,108437
Portsmouth City Council,PCC,Adult Social Care,Physical Support Older People (85+),ADULT SERVICES,Third Party Payments,Other establishments,11/01/2018,6200413,220.08,VENDOR,APEX PROPERTY VENTURES LTD,108437
Portsmouth City Council,PCC,Adult Social Care,Social Care Activities,ADULT SERVICES,Third Party Payments,Other establishments,11/01/2018,6200413,9381.29,VENDOR,APEX PROPERTY VENTURES LTD,108437
Portsmouth City Council,PCC,Adult Social Care,Social Care Activities,ADULT SERVICES,Third Party Payments,Other establishments,11/01/2018,6200413,190.3,VENDOR,APEX PROPERTY VENTURES LTD,108437
Portsmouth City Council,PCC,Adult Social Care,Social Care Activities,ADULT SERVICES,Third Party Payments,Other establishments,11/01/2018,6200413,162.24,VENDOR,APEX PROPERTY VENTURES LTD,108437
Portsmouth City Council,PCC,Adult Social Care,Social Care Activities,ADULT SERVICES,Third Party Payments,Other establishments,11/01/2018,6200413,1839.6,VENDOR,APEX PROPERTY VENTURES LTD,108437
Portsmouth City Council,PCC,Adult Social Care,Social Care Activities,ADULT SERVICES,Third Party Payments,Other establishments,11/01/2018,6200413,4000.08,VENDOR,APEX PROPERTY VENTURES LTD,108437
Portsmouth City Council,PCC,Adult Social Care,Social Care Activities,ADULT SERVICES,Third Party Payments,Other establishments,11/01/2018,6200413,846.8,VENDOR,APEX PROPERTY VENTURES LTD,108437
Portsmouth City Council,PCC,Adult Social Care,Physical Support Adults (75 - 84),ADULT SERVICES,Third Party Payments,Other establishments,11/01/2018,6200413,2035.74,VENDOR,APEX PROPERTY VENTURES LTD,108437
Portsmouth City Council,PCC,Adult Social Care,Physical Support Adults (75 - 84),ADULT SERVICES,Third Party Payments,Other establishments,11/01/2018,6200413,58.95,VENDOR,APEX PROPERTY VENTURES LTD,108437
Portsmouth City Council,PCC,Adult Social Care,Physical Support Older People (85+),ADULT SERVICES,Third Party Payments,Other establishments,11/01/2018,6200413,684.98,VENDOR,APEX PROPERTY VENTURES LTD,108437
Portsmouth City Council,PCC,Adult Social Care,Social Care Activities,ADULT SERVICES,Third Party Payments,Other establishments,11/01/2018,6200413,2130.06,VENDOR,APEX PROPERTY VENTURES LTD,108437
Portsmouth City Council,PCC,Adult Social Care,Physical Support Older People (85+),ADULT SERVICES,Third Party Payments,Other establishments,11/01/2018,6200413,47.16,VENDOR,APEX PROPERTY VENTURES LTD,108437
Portsmouth City Council,PCC,Adult Social Care,Physical Support Adults (18 - 64),ADULT SERVICES,Third Party Payments,Other establishments,11/01/2018,6200413,188.64,VENDOR,APEX PROPERTY VENTURES LTD,108437
Portsmouth City Council,PCC,Adult Social Care,Physical Support Adults (18 - 64),ADULT SERVICES,Third Party Payments,Other establishments,11/01/2018,6200413,102.18,VENDOR,APEX PROPERTY VENTURES LTD,108437
Portsmouth City Council,PCC,Adult Social Care,Physical Support Older People (85+),ADULT SERVICES,Third Party Payments,Other establishments,11/01/2018,6200413,652.38,VENDOR,APEX PROPERTY VENTURES LTD,108437
Portsmouth City Council,PCC,Adult Social Care,Physical Support Adults (75 - 84),ADULT SERVICES,Third Party Payments,Other establishments,11/01/2018,6200413,345.84,VENDOR,APEX PROPERTY VENTURES LTD,108437
Portsmouth City Council,PCC,Adult Social Care,Physical Support Older People (85+),ADULT SERVICES,Third Party Payments,Other establishments,11/01/2018,6200413,322.26,VENDOR,APEX PROPERTY VENTURES LTD,108437
Portsmouth City Council,PCC,Adult Social Care,Physical Support Adults (75 - 84),ADULT SERVICES,Third Party Payments,Other establishments,11/01/2018,6200413,44.36,VENDOR,APEX PROPERTY VENTURES LTD,108437
Portsmouth City Council,PCC,Adult Social Care,Physical Support Older People (85+),ADULT SERVICES,Third Party Payments,Other establishments,11/01/2018,6200413,184.71,VENDOR,APEX PROPERTY VENTURES LTD,108437
Portsmouth City Council,PCC,Adult Social Care,Physical Support Adults (18 - 64),ADULT SERVICES,Third Party Payments,Other establishments,11/01/2018,6200413,746.28,VENDOR,APEX PROPERTY VENTURES LTD,108437
Portsmouth City Council,PCC,Adult Social Care,Physical Support Adults (18 - 64),ADULT SERVICES,Third Party Payments,Other establishments,11/01/2018,6200413,94.32,VENDOR,APEX PROPERTY VENTURES LTD,108437
Portsmouth City Council,PCC,Adult Social Care,Physical Support Adults (75 - 84),ADULT SERVICES,Third Party Payments,Other establishments,11/01/2018,6200413,330.12,VENDOR,APEX PROPERTY VENTURES LTD,108437
Portsmouth City Council,PCC,Adult Social Care,Physical Support Older People (85+),ADULT SERVICES,Third Party Payments,Other establishments,11/01/2018,6200413,1744.92,VENDOR,APEX PROPERTY VENTURES LTD,108437
Portsmouth City Council,PCC,Adult Social Care,Physical Support Adults (75 - 84),ADULT SERVICES,Third Party Payments,Other establishments,11/01/2018,6200413,31.44,VENDOR,APEX PROPERTY VENTURES LTD,108437
Portsmouth City Council,PCC,Adult Social Care,Physical Support Adults (75 - 84),ADULT SERVICES,Third Party Payments,Other establishments,11/01/2018,6200413,440.16,VENDOR,APEX PROPERTY VENTURES LTD,108437
Portsmouth City Council,PCC,Adult Social Care,Social Support - Support for Carer,ADULT SERVICES,Third Party Payments,Other establishments,11/01/2018,6200413,162.24,VENDOR,APEX PROPERTY VENTURES LTD,108437
Portsmouth City Council,PCC,Adult Social Care,Physical Support Adults (75 - 84),ADULT SERVICES,Third Party Payments,Other establishments,11/01/2018,6200413,550.2,VENDOR,APEX PROPERTY VENTURES LTD,108437
Portsmouth City Council,PCC,Adult Social Care,Physical Support Older People (85+),ADULT SERVICES,Third Party Payments,Other establishments,11/01/2018,6200413,440.16,VENDOR,APEX PROPERTY VENTURES LTD,108437
Portsmouth City Council,PCC,Adult Social Care,Physical Support Older People (85+),ADULT SERVICES,Third Party Payments,Other establishments,11/01/2018,6200413,318.33,VENDOR,APEX PROPERTY VENTURES LTD,108437
Portsmouth City Council,PCC,Adult Social Care,Physical Support Older People (85+),ADULT SERVICES,Third Party Payments,Other establishments,11/01/2018,6200413,880.32,VENDOR,APEX PROPERTY VENTURES LTD,108437
Portsmouth City Council,PCC,Adult Social Care,Physical Support Older People (85+),ADULT SERVICES,Third Party Payments,Other establishments,11/01/2018,6200413,125.76,VENDOR,APEX PROPERTY VENTURES LTD,108437
Portsmouth City Council,PCC,Adult Social Care,Physical Support Older People (85+),ADULT SERVICES,Third Party Payments,Other establishments,11/01/2018,6200413,220.08,VENDOR,APEX PROPERTY VENTURES LTD,108437
Portsmouth City Council,PCC,Adult Social Care,Physical Support Adults (18 - 64),ADULT SERVICES,Third Party Payments,Other establishments,11/01/2018,6200413,573.78,VENDOR,APEX PROPERTY VENTURES LTD,108437
Portsmouth City Council,PCC,Adult Social Care,Physical Support Older People (85+),ADULT SERVICES,Third Party Payments,Other establishments,11/01/2018,6200413,428.13,VENDOR,APEX PROPERTY VENTURES LTD,108437
Portsmouth City Council,PCC,Adult Social Care,Physical Support Older People (85+),ADULT SERVICES,Third Party Payments,Other establishments,11/01/2018,6200413,550.2,VENDOR,APEX PROPERTY VENTURES LTD,108437
Portsmouth City Council,PCC,Adult Social Care,Physical Support Older People (85+),ADULT SERVICES,Third Party Payments,Other establishments,11/01/2018,6200413,440.16,VENDOR,APEX PROPERTY VENTURES LTD,108437
Portsmouth City Council,PCC,Adult Social Care,Physical Support Older People (65-74),ADULT SERVICES,Third Party Payments,Other establishments,11/01/2018,6200413,1662.39,VENDOR,APEX PROPERTY VENTURES LTD,108437
Portsmouth City Council,PCC,Adult Social Care,Support with Memory and Cognition Older People (75 - 84),ADULT SERVICES,Third Party Payments,Other establishments,11/01/2018,6200413,1760.64,VENDOR,APEX PROPERTY VENTURES LTD,108437
Portsmouth City Council,PCC,Adult Social Care,Physical Support Adults (75 - 84),ADULT SERVICES,Third Party Payments,Other establishments,11/01/2018,6200413,220.08,VENDOR,APEX PROPERTY VENTURES LTD,108437
Portsmouth City Council,PCC,Adult Social Care,Physical Support Adults (75 - 84),ADULT SERVICES,Third Party Payments,Other establishments,11/01/2018,6200413,660.24,VENDOR,APEX PROPERTY VENTURES LTD,108437
Portsmouth City Council,PCC,Adult Social Care,Physical Support Older People (85+),ADULT SERVICES,Third Party Payments,Other establishments,11/01/2018,6200413,1980.72,VENDOR,APEX PROPERTY VENTURES LTD,108437
Portsmouth City Council,PCC,Adult Social Care,Support with Memory and Cognition Older People (75 - 84),ADULT SERVICES,Third Party Payments,Other establishments,11/01/2018,6200413,62.88,VENDOR,APEX PROPERTY VENTURES LTD,108437
Portsmouth City Council,PCC,Adult Social Care,Physical Support Adults (75 - 84),ADULT SERVICES,Third Party Payments,Other establishments,11/01/2018,6200413,282.96,VENDOR,APEX PROPERTY VENTURES LTD,108437
Portsmouth City Council,PCC,Adult Social Care,Physical Support Adults (75 - 84),ADULT SERVICES,Third Party Payments,Other establishments,11/01/2018,6200413,880.32,VENDOR,APEX PROPERTY VENTURES LTD,108437
Portsmouth City Council,PCC,Adult Social Care,Physical Support Older People (85+),ADULT SERVICES,Third Party Payments,Other establishments,11/01/2018,6200413,109.57,VENDOR,APEX PROPERTY VENTURES LTD,108437
Portsmouth City Council,PCC,Adult Social Care,Physical Support Adults (18 - 64),ADULT SERVICES,Third Party Payments,Other establishments,11/01/2018,6200413,326.19,VENDOR,APEX PROPERTY VENTURES LTD,108437
Portsmouth City Council,PCC,Adult Social Care,Support with Memory and Cognition Older People (75 - 84),ADULT SERVICES,Third Party Payments,Other establishments,11/01/2018,6200413,778.14,VENDOR,APEX PROPERTY VENTURES LTD,108437
Portsmouth City Council,PCC,Adult Social Care,Physical Support Adults (18 - 64),ADULT SERVICES,Third Party Payments,Other establishments,11/01/2018,6200413,660.24,VENDOR,APEX PROPERTY VENTURES LTD,108437
Portsmouth City Council,PCC,Adult Social Care,Physical Support Older People (85+),ADULT SERVICES,Third Party Payments,Other establishments,11/01/2018,6200413,440.16,VENDOR,APEX PROPERTY VENTURES LTD,108437
Portsmouth City Council,PCC,Adult Social Care,Physical Support Older People (85+),ADULT SERVICES,Third Party Payments,Other establishments,11/01/2018,6200413,451.95,VENDOR,APEX PROPERTY VENTURES LTD,108437
Portsmouth City Council,PCC,Adult Social Care,Physical Support Older People (85+),ADULT SERVICES,Third Party Payments,Other establishments,11/01/2018,6200413,440.16,VENDOR,APEX PROPERTY VENTURES LTD,108437
Portsmouth City Council,PCC,Adult Social Care,Physical Support Adults (75 - 84),ADULT SERVICES,Third Party Payments,Other establishments,11/01/2018,6200413,110.04,VENDOR,APEX PROPERTY VENTURES LTD,108437
Portsmouth City Council,PCC,Adult Social Care,Physical Support Older People (85+),ADULT SERVICES,Third Party Payments,Other establishments,11/01/2018,6200413,94.32,VENDOR,APEX PROPERTY VENTURES LTD,108437
Portsmouth City Council,PCC,Adult Social Care,Physical Support Older People (85+),ADULT SERVICES,Third Party Payments,Other establishments,11/01/2018,6200413,220.08,VENDOR,APEX PROPERTY VENTURES LTD,108437
Portsmouth City Council,PCC,Adult Social Care,Physical Support Older People (85+),ADULT SERVICES,Third Party Payments,Other establishments,11/01/2018,6200413,1379.43,VENDOR,APEX PROPERTY VENTURES LTD,108437
Portsmouth City Council,PCC,Adult Social Care,Physical Support Older People (85+),ADULT SERVICES,Third Party Payments,Other establishments,11/01/2018,6200413,239.25,VENDOR,APEX PROPERTY VENTURES LTD,108437
Portsmouth City Council,PCC,Adult Social Care,Physical Support Older People (85+),ADULT SERVICES,Third Party Payments,Other establishments,11/01/2018,6200413,94.32,VENDOR,APEX PROPERTY VENTURES LTD,108437
Portsmouth City Council,PCC,Adult Social Care,Physical Support Older People (85+),ADULT SERVICES,Third Party Payments,Other establishments,11/01/2018,6200413,660.24,VENDOR,APEX PROPERTY VENTURES LTD,108437
Portsmouth City Council,PCC,Adult Social Care,Physical Support Adults (75 - 84),ADULT SERVICES,Third Party Payments,Other establishments,11/01/2018,6200413,396.93,VENDOR,APEX PROPERTY VENTURES LTD,108437
Portsmouth City Council,PCC,Adult Social Care,Physical Support Older People (85+),ADULT SERVICES,Third Party Payments,Other establishments,11/01/2018,6200413,235.8,VENDOR,APEX PROPERTY VENTURES LTD,108437
Portsmouth City Council,PCC,Adult Social Care,Social Care Activities,ADULT SERVICES,Third Party Payments,Other establishments,11/01/2018,6200413,361.56,VENDOR,APEX PROPERTY VENTURES LTD,108437
Portsmouth City Council,PCC,Adult Social Care,Physical Support Older People (85+),ADULT SERVICES,Third Party Payments,Other establishments,11/01/2018,6200413,337.98,VENDOR,APEX PROPERTY VENTURES LTD,108437
Portsmouth City Council,PCC,Adult Social Care,Learning Disability Support  Adults (18 - 64),ADULT SERVICES,Third Party Payments,Other establishments,11/01/2018,6200413,1147.56,VENDOR,APEX PROPERTY VENTURES LTD,108437
Portsmouth City Council,PCC,Adult Social Care,Physical Support Older People (85+),ADULT SERVICES,Third Party Payments,Other establishments,11/01/2018,6200413,1771.92,VENDOR,APEX PROPERTY VENTURES LTD,108437
Portsmouth City Council,PCC,Adult Social Care,Physical Support Older People (85+),ADULT SERVICES,Third Party Payments,Other establishments,11/01/2018,6200413,558.06,VENDOR,APEX PROPERTY VENTURES LTD,108437
Portsmouth City Council,PCC,Adult Social Care,Physical Support Adults (75 - 84),ADULT SERVICES,Third Party Payments,Other establishments,11/01/2018,6200413,550.2,VENDOR,APEX PROPERTY VENTURES LTD,108437
Portsmouth City Council,PCC,Adult Social Care,Physical Support Adults (75 - 84),ADULT SERVICES,Third Party Payments,Other establishments,11/01/2018,6200413,868.53,VENDOR,APEX PROPERTY VENTURES LTD,108437
Portsmouth City Council,PCC,Adult Social Care,Physical Support Older People (85+),ADULT SERVICES,Third Party Payments,Other establishments,11/01/2018,6200413,62.88,VENDOR,APEX PROPERTY VENTURES LTD,108437
Portsmouth City Council,PCC,Adult Social Care,Physical Support Adults (75 - 84),ADULT SERVICES,Third Party Payments,Other establishments,11/01/2018,6200413,1980.72,VENDOR,APEX PROPERTY VENTURES LTD,108437
Portsmouth City Council,PCC,Adult Social Care,Physical Support Adults (18 - 64),ADULT SERVICES,Third Party Payments,Other establishments,12/01/2018,6200581,732.75,VENDOR,APEX PROPERTY VENTURES LTD,108437
Portsmouth City Council,PCC,Adult Social Care,Physical Support Adults (18 - 64),ADULT SERVICES,Third Party Payments,Other establishments,12/01/2018,6200581,801.72,VENDOR,APEX PROPERTY VENTURES LTD,108437
Portsmouth City Council,PCC,Adult Social Care,Physical Support Adults (18 - 64),ADULT SERVICES,Third Party Payments,Other establishments,12/01/2018,6200581,78.6,VENDOR,APEX PROPERTY VENTURES LTD,108437
Portsmouth City Council,PCC,Adult Social Care,Social Support - Support for Carer,ADULT SERVICES,Third Party Payments,Other establishments,11/01/2018,6200413,216.32,VENDOR,APEX PROPERTY VENTURES LTD,108437
Portsmouth City Council,PCC,Adult Social Care,Physical Support Older People (85+),ADULT SERVICES,Third Party Payments,Other establishments,11/01/2018,6200413,62.88,VENDOR,APEX PROPERTY VENTURES LTD,108437
Portsmouth City Council,PCC,Adult Social Care,Physical Support Older People (85+),ADULT SERVICES,Third Party Payments,Other establishments,11/01/2018,6200413,220.08,VENDOR,APEX PROPERTY VENTURES LTD,108437
Portsmouth City Council,PCC,Adult Social Care,Physical Support Older People (85+),ADULT SERVICES,Third Party Payments,Other establishments,11/01/2018,6200413,2169.36,VENDOR,APEX PROPERTY VENTURES LTD,108437
Portsmouth City Council,PCC,Adult Social Care,Physical Support Older People (65-74),ADULT SERVICES,Third Party Payments,Other establishments,11/01/2018,6200413,157.2,VENDOR,APEX PROPERTY VENTURES LTD,108437
Portsmouth City Council,PCC,Adult Social Care,Physical Support Older People (85+),ADULT SERVICES,Third Party Payments,Other establishments,11/01/2018,6200413,440.16,VENDOR,APEX PROPERTY VENTURES LTD,108437
Portsmouth City Council,PCC,Adult Social Care,Physical Support Adults (18 - 64),ADULT SERVICES,Third Party Payments,Other establishments,11/01/2018,6200413,172.92,VENDOR,APEX PROPERTY VENTURES LTD,108437
Portsmouth City Council,PCC,Adult Social Care,Physical Support Older People (85+),ADULT SERVICES,Third Party Payments,Other establishments,11/01/2018,6200413,220.08,VENDOR,APEX PROPERTY VENTURES LTD,108437
Portsmouth City Council,PCC,Adult Social Care,Physical Support Adults (18 - 64),ADULT SERVICES,Third Party Payments,Other establishments,11/01/2018,6200413,94.32,VENDOR,APEX PROPERTY VENTURES LTD,108437
Portsmouth City Council,PCC,Adult Social Care,Physical Support Older People (65-74),ADULT SERVICES,Third Party Payments,Other establishments,11/01/2018,6200413,86.46,VENDOR,APEX PROPERTY VENTURES LTD,108437
Portsmouth City Council,PCC,Adult Social Care,Physical Support Older People (85+),ADULT SERVICES,Third Party Payments,Other establishments,11/01/2018,6200413,1980.72,VENDOR,APEX PROPERTY VENTURES LTD,108437
Portsmouth City Council,PCC,Adult Social Care,Physical Support Older People (85+),ADULT SERVICES,Third Party Payments,Other establishments,11/01/2018,6200413,220.08,VENDOR,APEX PROPERTY VENTURES LTD,108437
Portsmouth City Council,PCC,Adult Social Care,Learning Disability Support  Adults (18 - 64),ADULT SERVICES,Third Party Payments,Other establishments,11/01/2018,6200413,943.2,VENDOR,APEX PROPERTY VENTURES LTD,108437
Portsmouth City Council,PCC,Adult Social Care,Physical Support Adults (75 - 84),ADULT SERVICES,Third Party Payments,Other establishments,11/01/2018,6200413,758.49,VENDOR,APEX PROPERTY VENTURES LTD,108437
Portsmouth City Council,PCC,Adult Social Care,Physical Support Older People (65-74),ADULT SERVICES,Third Party Payments,Other establishments,11/01/2018,6200413,377.28,VENDOR,APEX PROPERTY VENTURES LTD,108437
Portsmouth City Council,PCC,Adult Social Care,Physical Support Older People (85+),ADULT SERVICES,Third Party Payments,Other establishments,11/01/2018,6200413,330.12,VENDOR,APEX PROPERTY VENTURES LTD,108437
Portsmouth City Council,PCC,Adult Social Care,Physical Support Older People (85+),ADULT SERVICES,Third Party Payments,Other establishments,11/01/2018,6200413,1320.48,VENDOR,APEX PROPERTY VENTURES LTD,108437
Portsmouth City Council,PCC,Adult Social Care,Support with Memory and Cognition Adults (18 - 64),ADULT SERVICES,Third Party Payments,Other establishments,11/01/2018,6200413,446.16,VENDOR,APEX PROPERTY VENTURES LTD,108437
Portsmouth City Council,PCC,Adult Social Care,Physical Support Adults (75 - 84),ADULT SERVICES,Third Party Payments,Other establishments,11/01/2018,6200413,220.08,VENDOR,APEX PROPERTY VENTURES LTD,108437
Portsmouth City Council,PCC,Adult Social Care,Physical Support Older People (85+),ADULT SERVICES,Third Party Payments,Other establishments,11/01/2018,6200413,306.54,VENDOR,APEX PROPERTY VENTURES LTD,108437
Portsmouth City Council,PCC,Adult Social Care,Social Support - Support for Carer,ADULT SERVICES,Third Party Payments,Other establishments,11/01/2018,6200413,81.12,VENDOR,APEX PROPERTY VENTURES LTD,108437
Portsmouth City Council,PCC,Adult Social Care,Physical Support Older People (85+),ADULT SERVICES,Third Party Payments,Other establishments,11/01/2018,6200413,565.92,VENDOR,APEX PROPERTY VENTURES LTD,108437
Portsmouth City Council,PCC,Adult Social Care,Physical Support Adults (75 - 84),ADULT SERVICES,Third Party Payments,Other establishments,11/01/2018,6200413,424.44,VENDOR,APEX PROPERTY VENTURES LTD,108437
Portsmouth City Council,PCC,Adult Social Care,Physical Support Adults (75 - 84),ADULT SERVICES,Third Party Payments,Other establishments,11/01/2018,6200413,1399.08,VENDOR,APEX PROPERTY VENTURES LTD,108437
Portsmouth City Council,PCC,Adult Social Care,Physical Support Older People (85+),ADULT SERVICES,Third Party Payments,Other establishments,11/01/2018,6200413,220.08,VENDOR,APEX PROPERTY VENTURES LTD,108437
Portsmouth City Council,PCC,Adult Social Care,Physical Support Adults (75 - 84),ADULT SERVICES,Third Party Payments,Other establishments,11/01/2018,6200413,330.12,VENDOR,APEX PROPERTY VENTURES LTD,108437
Portsmouth City Council,PCC,Adult Social Care,Physical Support Older People (85+),ADULT SERVICES,Third Party Payments,Other establishments,11/01/2018,6200413,168.99,VENDOR,APEX PROPERTY VENTURES LTD,108437
Portsmouth City Council,PCC,Adult Social Care,Physical Support Older People (85+),ADULT SERVICES,Third Party Payments,Other establishments,11/01/2018,6200413,220.08,VENDOR,APEX PROPERTY VENTURES LTD,108437
Portsmouth City Council,PCC,Adult Social Care,Physical Support Older People (85+),ADULT SERVICES,Third Party Payments,Other establishments,11/01/2018,6200413,212.22,VENDOR,APEX PROPERTY VENTURES LTD,108437
Portsmouth City Council,PCC,Adult Social Care,Physical Support Older People (85+),ADULT SERVICES,Third Party Payments,Other establishments,11/01/2018,6200413,62.88,VENDOR,APEX PROPERTY VENTURES LTD,108437
Portsmouth City Council,PCC,Adult Social Care,Physical Support Adults (75 - 84),ADULT SERVICES,Third Party Payments,Other establishments,11/01/2018,6200413,1540.56,VENDOR,APEX PROPERTY VENTURES LTD,108437
Portsmouth City Council,PCC,Adult Social Care,Physical Support Older People (85+),ADULT SERVICES,Third Party Payments,Other establishments,11/01/2018,6200413,349.5,VENDOR,APEX PROPERTY VENTURES LTD,108437
Portsmouth City Council,PCC,Adult Social Care,Physical Support Older People (85+),ADULT SERVICES,Third Party Payments,Other establishments,11/01/2018,6200413,440.16,VENDOR,APEX PROPERTY VENTURES LTD,108437
Portsmouth City Council,PCC,Adult Social Care,Physical Support Older People (85+),ADULT SERVICES,Third Party Payments,Other establishments,11/01/2018,6200413,864.6,VENDOR,APEX PROPERTY VENTURES LTD,108437
Portsmouth City Council,PCC,Adult Social Care,Physical Support Older People (85+),ADULT SERVICES,Third Party Payments,Other establishments,11/01/2018,6200413,660.24,VENDOR,APEX PROPERTY VENTURES LTD,108437
Portsmouth City Council,PCC,Adult Social Care,Physical Support Older People (85+),ADULT SERVICES,Third Party Payments,Other establishments,11/01/2018,6200413,400.86,VENDOR,APEX PROPERTY VENTURES LTD,108437
Portsmouth City Council,PCC,Adult Social Care,Physical Support Adults (75 - 84),ADULT SERVICES,Third Party Payments,Other establishments,11/01/2018,6200413,220.08,VENDOR,APEX PROPERTY VENTURES LTD,108437
Portsmouth City Council,PCC,Adult Social Care,Physical Support Adults (75 - 84),ADULT SERVICES,Third Party Payments,Other establishments,11/01/2018,6200413,330.12,VENDOR,APEX PROPERTY VENTURES LTD,108437
Portsmouth City Council,PCC,Adult Social Care,Physical Support Older People (85+),ADULT SERVICES,Third Party Payments,Other establishments,11/01/2018,6200413,220.08,VENDOR,APEX PROPERTY VENTURES LTD,108437
Portsmouth City Council,PCC,Adult Social Care,Physical Support Older People (65-74),ADULT SERVICES,Third Party Payments,Other establishments,11/01/2018,6200413,125.76,VENDOR,APEX PROPERTY VENTURES LTD,108437
Portsmouth City Council,PCC,Adult Social Care,Physical Support Older People (65-74),ADULT SERVICES,Third Party Payments,Other establishments,11/01/2018,6200413,220.08,VENDOR,APEX PROPERTY VENTURES LTD,108437
Portsmouth City Council,PCC,Adult Social Care,Physical Support Older People (85+),ADULT SERVICES,Third Party Payments,Other establishments,11/01/2018,6200413,440.16,VENDOR,APEX PROPERTY VENTURES LTD,108437
Portsmouth City Council,PCC,Adult Social Care,Physical Support Older People (85+),ADULT SERVICES,Third Party Payments,Other establishments,11/01/2018,6200413,451.95,VENDOR,APEX PROPERTY VENTURES LTD,108437
Portsmouth City Council,PCC,Adult Social Care,Physical Support Older People (85+),ADULT SERVICES,Third Party Payments,Other establishments,11/01/2018,6200413,27.51,VENDOR,APEX PROPERTY VENTURES LTD,108437
Portsmouth City Council,PCC,Adult Social Care,Social Care Activities,ADULT SERVICES,Third Party Payments,Other establishments,11/01/2018,6200413,1051.68,VENDOR,APEX PROPERTY VENTURES LTD,108437
Portsmouth City Council,PCC,Adult Social Care,Physical Support Older People (85+),ADULT SERVICES,Third Party Payments,Other establishments,11/01/2018,6200413,2200.8,VENDOR,APEX PROPERTY VENTURES LTD,108437
Portsmouth City Council,PCC,Adult Social Care,Physical Support Older People (85+),ADULT SERVICES,Third Party Payments,Other establishments,11/01/2018,6200413,550.2,VENDOR,APEX PROPERTY VENTURES LTD,108437
Portsmouth City Council,PCC,Adult Social Care,Learning Disability Support  Adults (18 - 64),ADULT SERVICES,Third Party Payments,Other establishments,11/01/2018,6200413,290.82,VENDOR,APEX PROPERTY VENTURES LTD,108437
Portsmouth City Council,PCC,Adult Social Care,Physical Support Older People (85+),ADULT SERVICES,Third Party Payments,Other establishments,11/01/2018,6200413,105,VENDOR,APEX PROPERTY VENTURES LTD,108437
Portsmouth City Council,PCC,Adult Social Care,Physical Support Adults (75 - 84),ADULT SERVICES,Third Party Payments,Other establishments,11/01/2018,6200413,251.52,VENDOR,APEX PROPERTY VENTURES LTD,108437
Portsmouth City Council,PCC,Adult Social Care,Physical Support Older People (85+),ADULT SERVICES,Third Party Payments,Other establishments,11/01/2018,6200413,2145.78,VENDOR,APEX PROPERTY VENTURES LTD,108437
Portsmouth City Council,PCC,Adult Social Care,Physical Support Adults (18 - 64),ADULT SERVICES,Third Party Payments,Other establishments,11/01/2018,6200413,224.86,VENDOR,APEX PROPERTY VENTURES LTD,108437
Portsmouth City Council,PCC,Adult Social Care,Physical Support Older People (85+),ADULT SERVICES,Third Party Payments,Other establishments,11/01/2018,6200413,440.16,VENDOR,APEX PROPERTY VENTURES LTD,108437
Portsmouth City Council,PCC,Adult Social Care,Physical Support Older People (85+),ADULT SERVICES,Third Party Payments,Other establishments,11/01/2018,6200413,770.28,VENDOR,APEX PROPERTY VENTURES LTD,108437
Portsmouth City Council,PCC,Adult Social Care,Physical Support Older People (85+),ADULT SERVICES,Third Party Payments,Other establishments,11/01/2018,6200413,660.24,VENDOR,APEX PROPERTY VENTURES LTD,108437
Portsmouth City Council,PCC,Adult Social Care,Physical Support Older People (85+),ADULT SERVICES,Third Party Payments,Other establishments,11/01/2018,6200413,157.2,VENDOR,APEX PROPERTY VENTURES LTD,108437
Portsmouth City Council,PCC,Adult Social Care,Physical Support Older People (85+),ADULT SERVICES,Third Party Payments,Other establishments,11/01/2018,6200413,628.8,VENDOR,APEX PROPERTY VENTURES LTD,108437
Portsmouth City Council,PCC,Adult Social Care,Physical Support Older People (85+),ADULT SERVICES,Third Party Payments,Other establishments,11/01/2018,6200413,94.32,VENDOR,APEX PROPERTY VENTURES LTD,108437
Portsmouth City Council,PCC,Adult Social Care,Physical Support Older People (85+),ADULT SERVICES,Third Party Payments,Other establishments,11/01/2018,6200413,67.68,VENDOR,APEX PROPERTY VENTURES LTD,108437
Portsmouth City Council,PCC,Adult Social Care,Physical Support Older People (85+),ADULT SERVICES,Third Party Payments,Other establishments,11/01/2018,6200413,762.42,VENDOR,APEX PROPERTY VENTURES LTD,108437
Portsmouth City Council,PCC,Adult Social Care,Physical Support Older People (65-74),ADULT SERVICES,Third Party Payments,Other establishments,11/01/2018,6200413,117.9,VENDOR,APEX PROPERTY VENTURES LTD,108437
Portsmouth City Council,PCC,Adult Social Care,Physical Support Older People (85+),ADULT SERVICES,Third Party Payments,Other establishments,11/01/2018,6200413,157.2,VENDOR,APEX PROPERTY VENTURES LTD,108437
Portsmouth City Council,PCC,Adult Social Care,Physical Support Older People (85+),ADULT SERVICES,Third Party Payments,Other establishments,11/01/2018,6200413,172.92,VENDOR,APEX PROPERTY VENTURES LTD,108437
Portsmouth City Council,PCC,Adult Social Care,Sensory Support Adults (18 - 64),ADULT SERVICES,Third Party Payments,Other establishments,11/01/2018,6200413,330.12,VENDOR,APEX PROPERTY VENTURES LTD,108437
Portsmouth City Council,PCC,Adult Social Care,Sensory Support Older People (75 - 84),ADULT SERVICES,Third Party Payments,Other establishments,11/01/2018,6200413,220.08,VENDOR,APEX PROPERTY VENTURES LTD,108437
Portsmouth City Council,PCC,Adult Social Care,Physical Support Older People (85+),ADULT SERVICES,Third Party Payments,Other establishments,11/01/2018,6200413,408.72,VENDOR,APEX PROPERTY VENTURES LTD,108437
Portsmouth City Council,PCC,Adult Social Care,Physical Support Adults (75 - 84),ADULT SERVICES,Third Party Payments,Other establishments,11/01/2018,6200413,1752.78,VENDOR,APEX PROPERTY VENTURES LTD,108437
Portsmouth City Council,PCC,Adult Social Care,Physical Support Older People (85+),ADULT SERVICES,Third Party Payments,Other establishments,11/01/2018,6200413,220.08,VENDOR,APEX PROPERTY VENTURES LTD,108437
Portsmouth City Council,PCC,Adult Social Care,Physical Support Older People (85+),ADULT SERVICES,Third Party Payments,Other establishments,11/01/2018,6200413,216.15,VENDOR,APEX PROPERTY VENTURES LTD,108437
Portsmouth City Council,PCC,Adult Social Care,Physical Support Older People (85+),ADULT SERVICES,Third Party Payments,Other establishments,11/01/2018,6200413,1320.48,VENDOR,APEX PROPERTY VENTURES LTD,108437
Portsmouth City Council,PCC,Adult Social Care,Learning Disability Support  Adults (18 - 64),ADULT SERVICES,Third Party Payments,Other establishments,11/01/2018,6200413,204.36,VENDOR,APEX PROPERTY VENTURES LTD,108437
Portsmouth City Council,PCC,Adult Social Care,Learning Disability Support  Adults (18 - 64),ADULT SERVICES,Third Party Payments,Other establishments,11/01/2018,6200413,282.96,VENDOR,APEX PROPERTY VENTURES LTD,108437
Portsmouth City Council,PCC,Adult Social Care,Physical Support Older People (85+),ADULT SERVICES,Third Party Payments,Other establishments,11/01/2018,6200413,1179,VENDOR,APEX PROPERTY VENTURES LTD,108437
Portsmouth City Council,PCC,Adult Social Care,Learning Disability Support  Adults (18 - 64),ADULT SERVICES,Third Party Payments,Other establishments,11/01/2018,6200413,589.5,VENDOR,APEX PROPERTY VENTURES LTD,108437
Portsmouth City Council,PCC,Adult Social Care,Learning Disability Support  Adults (18 - 64),ADULT SERVICES,Third Party Payments,Other establishments,11/01/2018,6200413,188.64,VENDOR,APEX PROPERTY VENTURES LTD,108437
Portsmouth City Council,PCC,Adult Social Care,Physical Support Adults (18 - 64),ADULT SERVICES,Third Party Payments,Other establishments,11/01/2018,6200413,1112.19,VENDOR,APEX PROPERTY VENTURES LTD,108437
Portsmouth City Council,PCC,Adult Social Care,Support with Memory and Cognition Adults (18 - 64),ADULT SERVICES,Third Party Payments,Other establishments,11/01/2018,6200413,220.08,VENDOR,APEX PROPERTY VENTURES LTD,108437
Portsmouth City Council,PCC,Adult Social Care,Physical Support Older People (85+),ADULT SERVICES,Third Party Payments,Other establishments,11/01/2018,6200413,220.08,VENDOR,APEX PROPERTY VENTURES LTD,108437
Portsmouth City Council,PCC,Adult Social Care,Physical Support Adults (75 - 84),ADULT SERVICES,Third Party Payments,Other establishments,11/01/2018,6200413,188.64,VENDOR,APEX PROPERTY VENTURES LTD,108437
Portsmouth City Council,PCC,Adult Social Care,Physical Support Older People (85+),ADULT SERVICES,Third Party Payments,Other establishments,11/01/2018,6200413,125.76,VENDOR,APEX PROPERTY VENTURES LTD,108437
Portsmouth City Council,PCC,Adult Social Care,Social Care Activities,ADULT SERVICES,Third Party Payments,Other establishments,11/01/2018,6200413,235.8,VENDOR,APEX PROPERTY VENTURES LTD,108437
Portsmouth City Council,PCC,Adult Social Care,Physical Support Older People (85+),ADULT SERVICES,Third Party Payments,Other establishments,11/01/2018,6200413,400.86,VENDOR,APEX PROPERTY VENTURES LTD,108437
Portsmouth City Council,PCC,Adult Social Care,Physical Support Older People (65-74),ADULT SERVICES,Third Party Payments,Other establishments,11/01/2018,6200413,1760.64,VENDOR,APEX PROPERTY VENTURES LTD,108437
Portsmouth City Council,PCC,Adult Social Care,Physical Support Adults (75 - 84),ADULT SERVICES,Third Party Payments,Other establishments,11/01/2018,6200413,157.2,VENDOR,APEX PROPERTY VENTURES LTD,108437
Portsmouth City Council,PCC,Adult Social Care,Physical Support Older People (85+),ADULT SERVICES,Third Party Payments,Other establishments,11/01/2018,6200413,70.74,VENDOR,APEX PROPERTY VENTURES LTD,108437
Portsmouth City Council,PCC,Adult Social Care,Physical Support Adults (75 - 84),ADULT SERVICES,Third Party Payments,Other establishments,11/01/2018,6200413,660.24,VENDOR,APEX PROPERTY VENTURES LTD,108437
Portsmouth City Council,PCC,Adult Social Care,Physical Support Adults (75 - 84),ADULT SERVICES,Third Party Payments,Other establishments,11/01/2018,6200413,216.32,VENDOR,APEX PROPERTY VENTURES LTD,108437
Portsmouth City Council,PCC,Adult Social Care,Physical Support Older People (65-74),ADULT SERVICES,Third Party Payments,Other establishments,11/01/2018,6200413,220.08,VENDOR,APEX PROPERTY VENTURES LTD,108437
Portsmouth City Council,PCC,Adult Social Care,Physical Support Adults (75 - 84),ADULT SERVICES,Third Party Payments,Other establishments,11/01/2018,6200413,1100.4,VENDOR,APEX PROPERTY VENTURES LTD,108437
Portsmouth City Council,PCC,Adult Social Care,Physical Support Older People (65-74),ADULT SERVICES,Third Party Payments,Other establishments,11/01/2018,6200413,86.46,VENDOR,APEX PROPERTY VENTURES LTD,108437
Portsmouth City Council,PCC,Adult Social Care,Physical Support Adults (18 - 64),ADULT SERVICES,Third Party Payments,Other establishments,11/01/2018,6200413,329.1,VENDOR,APEX PROPERTY VENTURES LTD,108437
Portsmouth City Council,PCC,Adult Social Care,Physical Support Adults (18 - 64),ADULT SERVICES,Third Party Payments,Other establishments,11/01/2018,6200413,416.58,VENDOR,APEX PROPERTY VENTURES LTD,108437
Portsmouth City Council,PCC,Adult Social Care,Physical Support Older People (85+),ADULT SERVICES,Third Party Payments,Other establishments,11/01/2018,6200413,416.58,VENDOR,APEX PROPERTY VENTURES LTD,108437
Portsmouth City Council,PCC,Adult Social Care,Physical Support Older People (85+),ADULT SERVICES,Third Party Payments,Other establishments,11/01/2018,6200413,440.16,VENDOR,APEX PROPERTY VENTURES LTD,108437
Portsmouth City Council,PCC,Adult Social Care,Physical Support Older People (65-74),ADULT SERVICES,Third Party Payments,Other establishments,11/01/2018,6200413,2044.8,VENDOR,APEX PROPERTY VENTURES LTD,108437
Portsmouth City Council,PCC,Adult Social Care,Physical Support Older People (85+),ADULT SERVICES,Third Party Payments,Other establishments,11/01/2018,6200413,660.24,VENDOR,APEX PROPERTY VENTURES LTD,108437
Portsmouth City Council,PCC,Adult Social Care,Physical Support Older People (85+),ADULT SERVICES,Third Party Payments,Other establishments,11/01/2018,6200413,23.58,VENDOR,APEX PROPERTY VENTURES LTD,108437
Portsmouth City Council,PCC,Adult Social Care,Physical Support Older People (85+),ADULT SERVICES,Third Party Payments,Other establishments,11/01/2018,6200413,924.14,VENDOR,APEX PROPERTY VENTURES LTD,108437
Portsmouth City Council,PCC,Adult Social Care,Physical Support Older People (65-74),ADULT SERVICES,Third Party Payments,Other establishments,11/01/2018,6200413,235.8,VENDOR,APEX PROPERTY VENTURES LTD,108437
Portsmouth City Council,PCC,Adult Social Care,Physical Support Older People (65-74),ADULT SERVICES,Third Party Payments,Other establishments,11/01/2018,6200413,903.9,VENDOR,APEX PROPERTY VENTURES LTD,108437
Portsmouth City Council,PCC,Adult Social Care,Physical Support Older People (85+),ADULT SERVICES,Third Party Payments,Other establishments,11/01/2018,6200413,330.12,VENDOR,APEX PROPERTY VENTURES LTD,108437
Portsmouth City Council,PCC,Adult Social Care,Learning Disability Support  Adults (18 - 64),ADULT SERVICES,Third Party Payments,Other establishments,11/01/2018,6200413,141.48,VENDOR,APEX PROPERTY VENTURES LTD,108437
Portsmouth City Council,PCC,Adult Social Care,Physical Support Older People (85+),ADULT SERVICES,Third Party Payments,Other establishments,11/01/2018,6200413,23.58,VENDOR,APEX PROPERTY VENTURES LTD,108437
Portsmouth City Council,PCC,Housing Revenue Account,Special Services,PROPERTY & HOUSING,Employees,Direct employee expenses,10/01/2018,6199846,3410.12,VENDOR,APEX PROPERTY VENTURES LTD,108437
Portsmouth City Council,PCC,Housing Revenue Account,Special Services,PROPERTY & HOUSING,Employees,Direct employee expenses,10/01/2018,6199846,3492.77,VENDOR,APEX PROPERTY VENTURES LTD,108437
Portsmouth City Council,PCC,Adult Social Care,Physical Support Older People (85+),ADULT SERVICES,Third Party Payments,Other establishments,11/01/2018,6200413,463.74,VENDOR,APEX PROPERTY VENTURES LTD,108437
Portsmouth City Council,PCC,Adult Social Care,Commissioning & service delivery,ADULT SERVICES,Supplies and Services,Communications and computing,10/01/2018,6200351,190,VENDOR,PORTSMOUTH COMMUNICATIONS LTD,106039
Portsmouth City Council,PCC,Children's and Education Services,Sure Start and Early Years,CHILDREN SERVICES AND EDUCATION,Supplies and Services,Communications and computing,10/01/2018,6200351,575.85,VENDOR,PORTSMOUTH COMMUNICATIONS LTD,106039
Portsmouth City Council,PCC,Adult Social Care,Social Care Activities,ADULT SERVICES,Supplies and Services,Communications and computing,10/01/2018,6200351,1035,VENDOR,PORTSMOUTH COMMUNICATIONS LTD,106039
Portsmouth City Council,PCC,Adult Social Care,Social Care Activities,ADULT SERVICES,Supplies and Services,Communications and computing,10/01/2018,6200351,0.75,VENDOR,PORTSMOUTH COMMUNICATIONS LTD,106039
Portsmouth City Council,PCC,Adult Social Care,Physical Support Adults (18 - 64),ADULT SERVICES,Third Party Payments,Other establishments,02/01/2018,6198978,504.4,VENDOR,GRAB A CAB TAXI SERVICE,126926
Portsmouth City Council,PCC,Other,Suspense and Capital Schemes,Capital - Culture Leisure & Sport,Capital Charges,Capital Expenditure (WIP),09/01/2018,6199719,857.72,VENDOR,CONSTANTINE LTD,119820
Portsmouth City Council,PCC,Adult Social Care,Social Care Activities,ADULT SERVICES,Third Party Payments,Other establishments,30/01/2018,6203449,4135.08,VENDOR,APEX PROPERTY VENTURES LTD,108437
Portsmouth City Council,PCC,Cultural and Related Services,Library Service,CULTURE & CITY DEVELOPMENT,Supplies and Services,Grants and subscriptions,03/01/2018,6199252,525,VENDOR,THE SOCIETY OF CHIEF LIBRARIANS,118214
Portsmouth City Council,PCC,Other,Suspense and Capital Schemes,Capital - Housing RA,Capital Charges,Capital Expenditure (WIP),12/01/2018,6200697,7000,VENDOR,ECD ARCHITECTS LTD,136285
Portsmouth City Council,PCC,Other,Suspense and Capital Schemes,Capital - Housing RA,Capital Charges,Capital Expenditure (WIP),12/01/2018,6200697,7000,VENDOR,ECD ARCHITECTS LTD,136285
Portsmouth City Council,PCC,Adult Social Care,Physical Support Adults (18 - 64),ADULT SERVICES,Third Party Payments,Other establishments,24/01/2018,6202578,31200,VENDOR,AGINCARE UK,134367
Portsmouth City Council,PCC,Adult Social Care,Physical Support Adults (18 - 64),ADULT SERVICES,Third Party Payments,Other establishments,24/01/2018,6202578,3000,VENDOR,AGINCARE UK,134367
Portsmouth City Council,PCC,Adult Social Care,Physical Support Adults (18 - 64),ADULT SERVICES,Third Party Payments,Other establishments,24/01/2018,6202578,306.5,VENDOR,AGINCARE UK,134367
Portsmouth City Council,PCC,Adult Social Care,Physical Support Adults (18 - 64),ADULT SERVICES,Third Party Payments,Other establishments,22/01/2018,6202378,1392.8,VENDOR,AGINCARE UK,134367
Portsmouth City Council,PCC,Adult Social Care,Physical Support Adults (18 - 64),ADULT SERVICES,Third Party Payments,Other establishments,22/01/2018,6202378,747.4,VENDOR,AGINCARE UK,134367
Portsmouth City Council,PCC,Adult Social Care,Support with Memory and Cognition Older People (85+),ADULT SERVICES,Third Party Payments,Other establishments,04/01/2018,6199270,1750,VENDOR,AGINCARE UK,134367
Portsmouth City Council,PCC,Adult Social Care,Physical Support Adults (18 - 64),ADULT SERVICES,Third Party Payments,Other establishments,24/01/2018,6202578,417.84,VENDOR,AGINCARE UK,134367
Portsmouth City Council,PCC,Adult Social Care,Physical Support Older People (85+),ADULT SERVICES,Third Party Payments,Other establishments,04/01/2018,6199270,1708.98,VENDOR,AGINCARE UK,134367
Portsmouth City Council,PCC,Adult Social Care,Support with Memory and Cognition Older People (85+),ADULT SERVICES,Third Party Payments,Other establishments,19/01/2018,6202238,1750,VENDOR,AGINCARE UK,134367
Portsmouth City Council,PCC,Adult Social Care,Physical Support Adults (18 - 64),ADULT SERVICES,Third Party Payments,Other establishments,22/01/2018,6202378,1541.08,VENDOR,AGINCARE UK,134367
Portsmouth City Council,PCC,Adult Social Care,Support with Memory and Cognition Older People (85+),ADULT SERVICES,Third Party Payments,Other establishments,25/01/2018,6203071,1750,VENDOR,AGINCARE UK,134367
Portsmouth City Council,PCC,Adult Social Care,Learning Disability Support  Adults (18 - 64),ADULT SERVICES,Premises-Related Expenditure,Cleaning and domestic supplies,25/01/2018,6203238,4623.1,VENDOR,NVIRO LTD,124507
Portsmouth City Council,PCC,Support Service / Transparency Costs Unallocated,Personnel,"HR, LEGAL & PERFORMANCE",Employees,Direct employee expenses,02/01/2018,6199062,985.54,VENDOR,RMC EMEA LIMITED,122070
Portsmouth City Council,PCC,Children's and Education Services,Other Education and Community Budget,CHILDREN SERVICES AND EDUCATION,Employees,Direct employee expenses,25/01/2018,6203264,64,VENDOR,RMC EMEA LIMITED,122070
Portsmouth City Council,PCC,Cultural and Related Services,Culture and Heritage,CULTURE & CITY DEVELOPMENT,Employees,Direct employee expenses,25/01/2018,6203264,64,VENDOR,RMC EMEA LIMITED,122070
Portsmouth City Council,PCC,Environmental and Regulatory Services,Community Safety (Crime Reduction),"HR, LEGAL & PERFORMANCE",Employees,Direct employee expenses,25/01/2018,6203264,64,VENDOR,RMC EMEA LIMITED,122070
Portsmouth City Council,PCC,Environmental and Regulatory Services,Community Safety (Crime Reduction),"HR, LEGAL & PERFORMANCE",Employees,Direct employee expenses,25/01/2018,6203264,-64,VENDOR,RMC EMEA LIMITED,122070
Portsmouth City Council,PCC,Housing Services,Housing Benefits Administration,COMMUNITY & COMMUNICATION,Employees,Direct employee expenses,25/01/2018,6203264,128,VENDOR,RMC EMEA LIMITED,122070
Portsmouth City Council,PCC,Cultural and Related Services,Allocation of Management & Admin,COMMUNITY & COMMUNICATION,Employees,Direct employee expenses,25/01/2018,6203264,192,VENDOR,RMC EMEA LIMITED,122070
Portsmouth City Council,PCC,Adult Social Care,Commissioning & service delivery,ADULT SERVICES,Employees,Direct employee expenses,25/01/2018,6203264,128,VENDOR,RMC EMEA LIMITED,122070
Portsmouth City Council,PCC,Housing Revenue Account,Supervision and Management,PROPERTY & HOUSING,Employees,Direct employee expenses,25/01/2018,6203264,64,VENDOR,RMC EMEA LIMITED,122070
Portsmouth City Council,PCC,Housing Revenue Account,Supervision and Management,PROPERTY & HOUSING,Employees,Direct employee expenses,25/01/2018,6203264,256,VENDOR,RMC EMEA LIMITED,122070
Portsmouth City Council,PCC,Support Service / Transparency Costs Unallocated,Personnel,"HR, LEGAL & PERFORMANCE",Employees,Direct employee expenses,25/01/2018,6203264,192,VENDOR,RMC EMEA LIMITED,122070
Portsmouth City Council,PCC,Support Service / Transparency Costs Unallocated,Personnel,"HR, LEGAL & PERFORMANCE",Employees,Direct employee expenses,25/01/2018,6203264,-192,VENDOR,RMC EMEA LIMITED,122070
Portsmouth City Council,PCC,Support Service / Transparency Costs Unallocated,Personnel,"HR, LEGAL & PERFORMANCE",Employees,Direct employee expenses,25/01/2018,6203264,64,VENDOR,RMC EMEA LIMITED,122070
Portsmouth City Council,PCC,Support Service / Transparency Costs Unallocated,Personnel,"HR, LEGAL & PERFORMANCE",Employees,Direct employee expenses,25/01/2018,6203264,128,VENDOR,RMC EMEA LIMITED,122070
Portsmouth City Council,PCC,Adult Social Care,Information and Early Intervention,ADULT SERVICES,Premises-Related Expenditure,Cleaning and domestic supplies,03/01/2018,6199203,519.28,VENDOR,NVIRO LTD,124507
Portsmouth City Council,PCC,Support Service / Transparency Costs Unallocated,Personnel,"HR, LEGAL & PERFORMANCE",Employees,Direct employee expenses,25/01/2018,6203264,190.71,VENDOR,RMC EMEA LIMITED,122070
Portsmouth City Council,PCC,Support Service / Transparency Costs Unallocated,Personnel,"HR, LEGAL & PERFORMANCE",Employees,Direct employee expenses,25/01/2018,6203264,-190.71,VENDOR,RMC EMEA LIMITED,122070
Portsmouth City Council,PCC,Support Service / Transparency Costs Unallocated,Personnel,"HR, LEGAL & PERFORMANCE",Employees,Direct employee expenses,25/01/2018,6203264,190.71,VENDOR,RMC EMEA LIMITED,122070
Portsmouth City Council,PCC,Other,Suspense and Capital Schemes,"HR, LEGAL & PERFORMANCE",Employees,Direct employee expenses,25/01/2018,6203264,190.71,VENDOR,RMC EMEA LIMITED,122070
Portsmouth City Council,PCC,Other,Suspense and Capital Schemes,"HR, LEGAL & PERFORMANCE",Employees,Direct employee expenses,25/01/2018,6203264,-190.71,VENDOR,RMC EMEA LIMITED,122070
Portsmouth City Council,PCC,Adult Social Care,Learning Disability Support  Adults (18 - 64),ADULT SERVICES,Premises-Related Expenditure,Cleaning and domestic supplies,02/01/2018,6199044,1152.39,VENDOR,NVIRO LTD,124507
Portsmouth City Council,PCC,Adult Social Care,Learning Disability Support  Adults (18 - 64),ADULT SERVICES,Premises-Related Expenditure,Cleaning and domestic supplies,25/01/2018,6203238,219.48,VENDOR,NVIRO LTD,124507
Portsmouth City Council,PCC,Adult Social Care,Learning Disability Support  Adults (18 - 64),ADULT SERVICES,Supplies and Services,"Clothes, uniform and laundry",25/01/2018,6203238,1013.88,VENDOR,NVIRO LTD,124507
Portsmouth City Council,PCC,Adult Social Care,Social Care Activities,ADULT SERVICES,Third Party Payments,Other establishments,03/01/2018,6199228,1625.5,VENDOR,SAFEGUARDING GP,137636
Portsmouth City Council,PCC,Highways and Transport Services,"Airports, Harbours and Toll Facilities",PORTSMOUTH INTERNATIONAL PORT,Premises-Related Expenditure,Cleaning and domestic supplies,22/01/2018,6202459,367.05,VENDOR,NVIRO LTD,124507
Portsmouth City Council,PCC,Highways and Transport Services,"Airports, Harbours and Toll Facilities",PORTSMOUTH INTERNATIONAL PORT,Premises-Related Expenditure,Cleaning and domestic supplies,22/01/2018,6202459,367.05,VENDOR,NVIRO LTD,124507
Portsmouth City Council,PCC,Support Service / Transparency Costs Unallocated,Information Services,FINANCE & IS,Supplies and Services,"Printing, stationery and general office expenses",19/01/2018,6202357,1296,VENDOR,SUPPLIES TEAM SOLUTIONS LIMITED T/A BANNER,103101
Portsmouth City Council,PCC,Other,Suspense and Capital Schemes,Capital - Resources,Capital Charges,Capital Expenditure (WIP),31/01/2018,6204037,1687,COMPANY,ROLSERV LIMITED T/A REGENSYS,142524
Portsmouth City Council,PCC,Environmental and Regulatory Services,Regulatory Services,CULTURE & CITY DEVELOPMENT,Supplies and Services,"Equipment, furniture and materials",15/01/2018,6200958,556.8,VENDOR,PELSIS LIMITED,133905
Portsmouth City Council,PCC,Children's and Education Services,Safeguarding Children and Young Peoples Services,CHILDREN SERVICES AND EDUCATION,Supplies and Services,Services,08/01/2018,6199630,575,SOLETRADER,Classified as 'personal data' (under the Data Protection Act 1998),Redacted
Portsmouth City Council,PCC,Children's and Education Services,Family Support Services,CHILDREN SERVICES AND EDUCATION,Third Party Payments,Other establishments,25/01/2018,6203328,775.81,VENDOR,VOICE OF THE CHILD,143119
Portsmouth City Council,PCC,Planning Services,Business support,REGENERATION,Supplies and Services,"Equipment, furniture and materials",03/01/2018,6199240,271.26,VENDOR,SPANDEX LIMITED,100163
Portsmouth City Council,PCC,Planning Services,Business support,REGENERATION,Supplies and Services,"Equipment, furniture and materials",03/01/2018,6199240,183.2,VENDOR,SPANDEX LIMITED,100163
Portsmouth City Council,PCC,Children's and Education Services,Asylum seekers,CHILDREN SERVICES AND EDUCATION,Third Party Payments,Other establishments,18/01/2018,6202163,5753.09,VENDOR,FAIRWAYS CARE (UK) LTD,111915
Portsmouth City Council,PCC,Housing Revenue Account,Special Services,PROPERTY & HOUSING,Supplies and Services,"Printing, stationery and general office expenses",09/01/2018,6199774,3532.64,VENDOR,HOLBROOKS PRINTERS LTD,100893
Portsmouth City Council,PCC,Housing Revenue Account,Special Services,PROPERTY & HOUSING,Supplies and Services,"Printing, stationery and general office expenses",09/01/2018,6199774,4165.19,VENDOR,HOLBROOKS PRINTERS LTD,100893
Portsmouth City Council,PCC,Highways and Transport Services,Parking Services,REGENERATION,Supplies and Services,"Equipment, furniture and materials",31/01/2018,6203591,2850,COMPANY,CALE ACCESS UK LTD,100591
Portsmouth City Council,PCC,Highways and Transport Services,Parking Services,REGENERATION,Supplies and Services,"Equipment, furniture and materials",31/01/2018,6203591,862.5,COMPANY,CALE ACCESS UK LTD,100591
Portsmouth City Council,PCC,Highways and Transport Services,Parking Services,REGENERATION,Supplies and Services,"Printing, stationery and general office expenses",31/01/2018,6203591,18,COMPANY,CALE ACCESS UK LTD,100591
Portsmouth City Council,PCC,Children's and Education Services,Safeguarding Children and Young Peoples Services,CHILDREN SERVICES AND EDUCATION,Supplies and Services,Services,03/01/2018,6199185,450,SOLETRADER,Classified as 'personal data' (under the Data Protection Act 1998),Redacted
Portsmouth City Council,PCC,Children's and Education Services,Special Schools,Children's Services - DSG & Schools,Third Party Payments,Private contractors,11/01/2018,6200463,21116.51,VENDOR,FAIRWAYS CARE (UK) LTD,111915
Portsmouth City Council,PCC,Adult Social Care,Commissioning & service delivery,ADULT SERVICES,Employees,Direct employee expenses,23/01/2018,6202571,945,VENDOR,THE PRESCRIPTION TRAINING COMPANY,125263
Portsmouth City Council,PCC,Children's and Education Services,Special Schools,Children's Services - DSG & Schools,Third Party Payments,Private contractors,10/01/2018,6200345,21116.51,OTHER LOCAL AUTHORITY,OLA SCHOOLS,137525
Portsmouth City Council,PCC,Children's and Education Services,Asylum seekers,CHILDREN SERVICES AND EDUCATION,Third Party Payments,Other establishments,18/01/2018,6202163,3912,VENDOR,FAIRWAYS CARE (UK) LTD,111915
Portsmouth City Council,PCC,Children's and Education Services,Asylum seekers,CHILDREN SERVICES AND EDUCATION,Third Party Payments,Other establishments,18/01/2018,6202163,3912.2,VENDOR,FAIRWAYS CARE (UK) LTD,111915
Portsmouth City Council,PCC,Children's and Education Services,Children Looked After,CHILDREN SERVICES AND EDUCATION,Third Party Payments,Other establishments,31/01/2018,6203615,3454.33,VENDOR,FAIRWAYS CARE (UK) LTD,111915
Portsmouth City Council,PCC,Environmental and Regulatory Services,Regulatory Services,CULTURE & CITY DEVELOPMENT,Third Party Payments,Private contractors,05/01/2018,6199408,296,VENDOR,ADAMS MOREY LTD,100446
Portsmouth City Council,PCC,Environmental and Regulatory Services,Regulatory Services,CULTURE & CITY DEVELOPMENT,Third Party Payments,Private contractors,05/01/2018,6199408,990,VENDOR,ADAMS MOREY LTD,100446
Portsmouth City Council,PCC,Environmental and Regulatory Services,Regulatory Services,CULTURE & CITY DEVELOPMENT,Third Party Payments,Private contractors,15/01/2018,6200872,251,VENDOR,ADAMS MOREY LTD,100446
Portsmouth City Council,PCC,Environmental and Regulatory Services,Regulatory Services,CULTURE & CITY DEVELOPMENT,Third Party Payments,Private contractors,15/01/2018,6200872,810,VENDOR,ADAMS MOREY LTD,100446
Portsmouth City Council,PCC,Environmental and Regulatory Services,Regulatory Services,CULTURE & CITY DEVELOPMENT,Third Party Payments,Private contractors,18/01/2018,6202122,103,VENDOR,ADAMS MOREY LTD,100446
Portsmouth City Council,PCC,Environmental and Regulatory Services,Regulatory Services,CULTURE & CITY DEVELOPMENT,Third Party Payments,Private contractors,18/01/2018,6202122,832.5,VENDOR,ADAMS MOREY LTD,100446
Portsmouth City Council,PCC,Environmental and Regulatory Services,Regulatory Services,CULTURE & CITY DEVELOPMENT,Third Party Payments,Private contractors,25/01/2018,6203067,180,VENDOR,ADAMS MOREY LTD,100446
Portsmouth City Council,PCC,Environmental and Regulatory Services,Regulatory Services,CULTURE & CITY DEVELOPMENT,Third Party Payments,Private contractors,25/01/2018,6203067,228.5,VENDOR,ADAMS MOREY LTD,100446
Portsmouth City Council,PCC,Environmental and Regulatory Services,Regulatory Services,CULTURE & CITY DEVELOPMENT,Third Party Payments,Private contractors,25/01/2018,6203067,1395,VENDOR,ADAMS MOREY LTD,100446
Portsmouth City Council,PCC,Children's and Education Services,Asylum seekers,CHILDREN SERVICES AND EDUCATION,Third Party Payments,Other establishments,18/01/2018,6202163,2368.92,VENDOR,FAIRWAYS CARE (UK) LTD,111915
Portsmouth City Council,PCC,Cultural and Related Services,Allocation of Management & Admin,COMMUNITY & COMMUNICATION,Supplies and Services,Communications and computing,10/01/2018,6200304,11440,VENDOR,FRONTLINE DATA LIMITED,140026
Portsmouth City Council,PCC,Adult Social Care,Social Care Activities,ADULT SERVICES,Third Party Payments,Other establishments,04/01/2018,6199344,5195.46,VENDOR,NIGHTINGALES GOLDEN CARE,103699
Portsmouth City Council,PCC,Adult Social Care,Social Care Activities,ADULT SERVICES,Third Party Payments,Other establishments,04/01/2018,6199344,3961.44,VENDOR,NIGHTINGALES GOLDEN CARE,103699
Portsmouth City Council,PCC,Adult Social Care,Social Support - Support for Carer,ADULT SERVICES,Third Party Payments,Other establishments,04/01/2018,6199344,324.48,VENDOR,NIGHTINGALES GOLDEN CARE,103699
Portsmouth City Council,PCC,Adult Social Care,Social Support - Support for Carer,ADULT SERVICES,Third Party Payments,Other establishments,04/01/2018,6199344,388.62,VENDOR,NIGHTINGALES GOLDEN CARE,103699
Portsmouth City Council,PCC,Adult Social Care,Social Support - Support for Carer,ADULT SERVICES,Third Party Payments,Other establishments,04/01/2018,6199344,270.4,VENDOR,NIGHTINGALES GOLDEN CARE,103699
Portsmouth City Council,PCC,Adult Social Care,Social Support - Support for Carer,ADULT SERVICES,Third Party Payments,Other establishments,04/01/2018,6199344,270.4,VENDOR,NIGHTINGALES GOLDEN CARE,103699
Portsmouth City Council,PCC,Adult Social Care,Social Support - Support for Carer,ADULT SERVICES,Third Party Payments,Other establishments,04/01/2018,6199344,324.48,VENDOR,NIGHTINGALES GOLDEN CARE,103699
Portsmouth City Council,PCC,Adult Social Care,Physical Support Adults (75 - 84),ADULT SERVICES,Third Party Payments,Other establishments,04/01/2018,6199344,479.46,VENDOR,NIGHTINGALES GOLDEN CARE,103699
Portsmouth City Council,PCC,Adult Social Care,Physical Support Older People (85+),ADULT SERVICES,Third Party Payments,Other establishments,04/01/2018,6199344,157.2,VENDOR,NIGHTINGALES GOLDEN CARE,103699
Portsmouth City Council,PCC,Adult Social Care,Physical Support Older People (85+),ADULT SERVICES,Third Party Payments,Other establishments,04/01/2018,6199344,440.16,VENDOR,NIGHTINGALES GOLDEN CARE,103699
Portsmouth City Council,PCC,Adult Social Care,Support with Memory and Cognition Older People (75 - 84),ADULT SERVICES,Third Party Payments,Other establishments,04/01/2018,6199344,943.2,VENDOR,NIGHTINGALES GOLDEN CARE,103699
Portsmouth City Council,PCC,Adult Social Care,Learning Disability Support  Adults (18 - 64),ADULT SERVICES,Third Party Payments,Other establishments,04/01/2018,6199344,506.97,VENDOR,NIGHTINGALES GOLDEN CARE,103699
Portsmouth City Council,PCC,Adult Social Care,Physical Support Adults (75 - 84),ADULT SERVICES,Third Party Payments,Other establishments,04/01/2018,6199344,1100.4,VENDOR,NIGHTINGALES GOLDEN CARE,103699
Portsmouth City Council,PCC,Adult Social Care,Physical Support Older People (85+),ADULT SERVICES,Third Party Payments,Other establishments,04/01/2018,6199344,550.2,VENDOR,NIGHTINGALES GOLDEN CARE,103699
Portsmouth City Council,PCC,Adult Social Care,Physical Support Older People (85+),ADULT SERVICES,Third Party Payments,Other establishments,04/01/2018,6199344,833.16,VENDOR,NIGHTINGALES GOLDEN CARE,103699
Portsmouth City Council,PCC,Adult Social Care,Physical Support Older People (85+),ADULT SERVICES,Third Party Payments,Other establishments,04/01/2018,6199344,440.16,VENDOR,NIGHTINGALES GOLDEN CARE,103699
Portsmouth City Council,PCC,Adult Social Care,Physical Support Older People (85+),ADULT SERVICES,Third Party Payments,Other establishments,04/01/2018,6199344,220.08,VENDOR,NIGHTINGALES GOLDEN CARE,103699
Portsmouth City Council,PCC,Adult Social Care,Physical Support Older People (85+),ADULT SERVICES,Third Party Payments,Other establishments,04/01/2018,6199344,224.01,VENDOR,NIGHTINGALES GOLDEN CARE,103699
Portsmouth City Council,PCC,Adult Social Care,Physical Support Adults (75 - 84),ADULT SERVICES,Third Party Payments,Other establishments,04/01/2018,6199344,440.16,VENDOR,NIGHTINGALES GOLDEN CARE,103699
Portsmouth City Council,PCC,Adult Social Care,Physical Support Adults (75 - 84),ADULT SERVICES,Third Party Payments,Other establishments,04/01/2018,6199344,157.2,VENDOR,NIGHTINGALES GOLDEN CARE,103699
Portsmouth City Council,PCC,Adult Social Care,Physical Support Older People (85+),ADULT SERVICES,Third Party Payments,Other establishments,04/01/2018,6199344,55.02,VENDOR,NIGHTINGALES GOLDEN CARE,103699
Portsmouth City Council,PCC,Adult Social Care,Physical Support Older People (85+),ADULT SERVICES,Third Party Payments,Other establishments,04/01/2018,6199344,220.08,VENDOR,NIGHTINGALES GOLDEN CARE,103699
Portsmouth City Council,PCC,Adult Social Care,Physical Support Older People (85+),ADULT SERVICES,Third Party Payments,Other establishments,04/01/2018,6199344,78.6,VENDOR,NIGHTINGALES GOLDEN CARE,103699
Portsmouth City Council,PCC,Adult Social Care,Physical Support Older People (85+),ADULT SERVICES,Third Party Payments,Other establishments,04/01/2018,6199344,345.84,VENDOR,NIGHTINGALES GOLDEN CARE,103699
Portsmouth City Council,PCC,Adult Social Care,Physical Support Older People (85+),ADULT SERVICES,Third Party Payments,Other establishments,04/01/2018,6199344,330.12,VENDOR,NIGHTINGALES GOLDEN CARE,103699
Portsmouth City Council,PCC,Adult Social Care,Physical Support Older People (85+),ADULT SERVICES,Third Party Payments,Other establishments,04/01/2018,6199344,455.88,VENDOR,NIGHTINGALES GOLDEN CARE,103699
Portsmouth City Council,PCC,Adult Social Care,Physical Support Older People (85+),ADULT SERVICES,Third Party Payments,Other establishments,04/01/2018,6199344,400.86,VENDOR,NIGHTINGALES GOLDEN CARE,103699
Portsmouth City Council,PCC,Adult Social Care,Physical Support Older People (85+),ADULT SERVICES,Third Party Payments,Other establishments,04/01/2018,6199344,94.32,VENDOR,NIGHTINGALES GOLDEN CARE,103699
Portsmouth City Council,PCC,Adult Social Care,Physical Support Older People (85+),ADULT SERVICES,Third Party Payments,Other establishments,04/01/2018,6199344,440.16,VENDOR,NIGHTINGALES GOLDEN CARE,103699
Portsmouth City Council,PCC,Adult Social Care,Physical Support Older People (85+),ADULT SERVICES,Third Party Payments,Other establishments,04/01/2018,6199344,212.22,VENDOR,NIGHTINGALES GOLDEN CARE,103699
Portsmouth City Council,PCC,Adult Social Care,Physical Support Older People (85+),ADULT SERVICES,Third Party Payments,Other establishments,04/01/2018,6199344,660.24,VENDOR,NIGHTINGALES GOLDEN CARE,103699
Portsmouth City Council,PCC,Adult Social Care,Physical Support Older People (85+),ADULT SERVICES,Third Party Payments,Other establishments,04/01/2018,6199344,660.24,VENDOR,NIGHTINGALES GOLDEN CARE,103699
Portsmouth City Council,PCC,Adult Social Care,Physical Support Older People (85+),ADULT SERVICES,Third Party Payments,Other establishments,04/01/2018,6199344,275.1,VENDOR,NIGHTINGALES GOLDEN CARE,103699
Portsmouth City Council,PCC,Adult Social Care,Physical Support Older People (85+),ADULT SERVICES,Third Party Payments,Other establishments,04/01/2018,6199344,31.44,VENDOR,NIGHTINGALES GOLDEN CARE,103699
Portsmouth City Council,PCC,Adult Social Care,Physical Support Older People (85+),ADULT SERVICES,Third Party Payments,Other establishments,04/01/2018,6199344,499.11,VENDOR,NIGHTINGALES GOLDEN CARE,103699
Portsmouth City Council,PCC,Adult Social Care,Physical Support Older People (85+),ADULT SERVICES,Third Party Payments,Other establishments,04/01/2018,6199344,778.14,VENDOR,NIGHTINGALES GOLDEN CARE,103699
Portsmouth City Council,PCC,Adult Social Care,Physical Support Older People (85+),ADULT SERVICES,Third Party Payments,Other establishments,04/01/2018,6199344,7.86,VENDOR,NIGHTINGALES GOLDEN CARE,103699
Portsmouth City Council,PCC,Adult Social Care,Physical Support Older People (85+),ADULT SERVICES,Third Party Payments,Other establishments,04/01/2018,6199344,55.02,VENDOR,NIGHTINGALES GOLDEN CARE,103699
Portsmouth City Council,PCC,Adult Social Care,Physical Support Older People (85+),ADULT SERVICES,Third Party Payments,Other establishments,04/01/2018,6199344,62.88,VENDOR,NIGHTINGALES GOLDEN CARE,103699
Portsmouth City Council,PCC,Adult Social Care,Social Support - Support for Carer,ADULT SERVICES,Third Party Payments,Other establishments,04/01/2018,6199344,40.56,VENDOR,NIGHTINGALES GOLDEN CARE,103699
Portsmouth City Council,PCC,Highways and Transport Services,"Airports, Harbours and Toll Facilities",PORTSMOUTH INTERNATIONAL PORT,Transport-Related Expenditure,Direct transport costs,22/01/2018,6202475,2886.01,VENDOR,SOUTHERN MARITIME SERVICES LIMITED,120765
Portsmouth City Council,PCC,Highways and Transport Services,"Airports, Harbours and Toll Facilities",PORTSMOUTH INTERNATIONAL PORT,Third Party Payments,Private contractors,22/01/2018,6202475,313.95,VENDOR,SOUTHERN MARITIME SERVICES LIMITED,120765
Portsmouth City Council,PCC,Highways and Transport Services,"Airports, Harbours and Toll Facilities",PORTSMOUTH INTERNATIONAL PORT,Third Party Payments,Private contractors,22/01/2018,6202475,100,VENDOR,SOUTHERN MARITIME SERVICES LIMITED,120765
Portsmouth City Council,PCC,Children's and Education Services,Safeguarding Children and Young Peoples Services,CHILDREN SERVICES AND EDUCATION,Employees,Direct employee expenses,16/01/2018,6201077,2500,VENDOR,FAMILY FUTURES CIC,106941
Portsmouth City Council,PCC,Cultural and Related Services,Open Spaces,CULTURE & CITY DEVELOPMENT,Transport-Related Expenditure,Direct transport costs,24/01/2018,6203017,536.54,VENDOR,HOLLIES ENGINEERING,116900
Portsmouth City Council,PCC,Adult Social Care,Learning Disability Support  Adults (18 - 64),ADULT SERVICES,Third Party Payments,Other establishments,12/01/2018,6200608,4131.99,VENDOR,CARE MANAGEMENT GROUP LIMITED,101894
Portsmouth City Council,PCC,Adult Social Care,Sensory Support Older People (85+),ADULT SERVICES,Third Party Payments,Other establishments,15/01/2018,6200932,3162,VENDOR,SONUS,100849
Portsmouth City Council,PCC,Adult Social Care,Physical Support Adults (18 - 64),ADULT SERVICES,Third Party Payments,Other establishments,19/01/2018,6202362,162.24,VENDOR,THE PORTSMOUTH SITTING SERVICE AND COMMUNITY CARE SERVICES LTD T/A ASSURED CARE,100201
Portsmouth City Council,PCC,Adult Social Care,Social Support - Support for Carer,ADULT SERVICES,Third Party Payments,Other establishments,19/01/2018,6202362,341.38,VENDOR,THE PORTSMOUTH SITTING SERVICE AND COMMUNITY CARE SERVICES LTD T/A ASSURED CARE,100201
Portsmouth City Council,PCC,Adult Social Care,Social Support - Support for Carer,ADULT SERVICES,Third Party Payments,Other establishments,19/01/2018,6202362,162.24,VENDOR,THE PORTSMOUTH SITTING SERVICE AND COMMUNITY CARE SERVICES LTD T/A ASSURED CARE,100201
Portsmouth City Council,PCC,Adult Social Care,Social Support - Support for Carer,ADULT SERVICES,Third Party Payments,Other establishments,19/01/2018,6202362,270.4,VENDOR,THE PORTSMOUTH SITTING SERVICE AND COMMUNITY CARE SERVICES LTD T/A ASSURED CARE,100201
Portsmouth City Council,PCC,Adult Social Care,Social Support - Support for Carer,ADULT SERVICES,Third Party Payments,Other establishments,19/01/2018,6202362,54.08,VENDOR,THE PORTSMOUTH SITTING SERVICE AND COMMUNITY CARE SERVICES LTD T/A ASSURED CARE,100201
Portsmouth City Council,PCC,Adult Social Care,Physical Support Adults (18 - 64),ADULT SERVICES,Third Party Payments,Other establishments,19/01/2018,6202362,282.96,VENDOR,THE PORTSMOUTH SITTING SERVICE AND COMMUNITY CARE SERVICES LTD T/A ASSURED CARE,100201
Portsmouth City Council,PCC,Adult Social Care,Physical Support Adults (75 - 84),ADULT SERVICES,Third Party Payments,Other establishments,19/01/2018,6202362,660.24,VENDOR,THE PORTSMOUTH SITTING SERVICE AND COMMUNITY CARE SERVICES LTD T/A ASSURED CARE,100201
Portsmouth City Council,PCC,Adult Social Care,Social Support - Support for Carer,ADULT SERVICES,Third Party Payments,Other establishments,19/01/2018,6202362,215.38,VENDOR,THE PORTSMOUTH SITTING SERVICE AND COMMUNITY CARE SERVICES LTD T/A ASSURED CARE,100201
Portsmouth City Council,PCC,Adult Social Care,Social Support - Support for Carer,ADULT SERVICES,Third Party Payments,Other establishments,19/01/2018,6202362,121.68,VENDOR,THE PORTSMOUTH SITTING SERVICE AND COMMUNITY CARE SERVICES LTD T/A ASSURED CARE,100201
Portsmouth City Council,PCC,Adult Social Care,Physical Support Older People (85+),ADULT SERVICES,Third Party Payments,Other establishments,19/01/2018,6202362,550.2,VENDOR,THE PORTSMOUTH SITTING SERVICE AND COMMUNITY CARE SERVICES LTD T/A ASSURED CARE,100201
Portsmouth City Council,PCC,Adult Social Care,Physical Support Older People (85+),ADULT SERVICES,Third Party Payments,Other establishments,19/01/2018,6202362,53.14,VENDOR,THE PORTSMOUTH SITTING SERVICE AND COMMUNITY CARE SERVICES LTD T/A ASSURED CARE,100201
Portsmouth City Council,PCC,Adult Social Care,Physical Support Older People (85+),ADULT SERVICES,Third Party Payments,Other establishments,19/01/2018,6202362,440.16,VENDOR,THE PORTSMOUTH SITTING SERVICE AND COMMUNITY CARE SERVICES LTD T/A ASSURED CARE,100201
Portsmouth City Council,PCC,Adult Social Care,Physical Support Older People (85+),ADULT SERVICES,Third Party Payments,Other establishments,19/01/2018,6202362,762.42,VENDOR,THE PORTSMOUTH SITTING SERVICE AND COMMUNITY CARE SERVICES LTD T/A ASSURED CARE,100201
Portsmouth City Council,PCC,Adult Social Care,Social Support - Support for Carer,ADULT SERVICES,Third Party Payments,Other establishments,19/01/2018,6202362,337.68,VENDOR,THE PORTSMOUTH SITTING SERVICE AND COMMUNITY CARE SERVICES LTD T/A ASSURED CARE,100201
Portsmouth City Council,PCC,Adult Social Care,Physical Support Older People (85+),ADULT SERVICES,Third Party Payments,Other establishments,19/01/2018,6202362,393,VENDOR,THE PORTSMOUTH SITTING SERVICE AND COMMUNITY CARE SERVICES LTD T/A ASSURED CARE,100201
Portsmouth City Council,PCC,Adult Social Care,Physical Support Older People (85+),ADULT SERVICES,Third Party Payments,Other establishments,19/01/2018,6202362,408.72,VENDOR,THE PORTSMOUTH SITTING SERVICE AND COMMUNITY CARE SERVICES LTD T/A ASSURED CARE,100201
Portsmouth City Council,PCC,Adult Social Care,Physical Support Adults (75 - 84),ADULT SERVICES,Third Party Payments,Other establishments,19/01/2018,6202362,279.03,VENDOR,THE PORTSMOUTH SITTING SERVICE AND COMMUNITY CARE SERVICES LTD T/A ASSURED CARE,100201
Portsmouth City Council,PCC,Adult Social Care,Social Support - Support for Carer,ADULT SERVICES,Third Party Payments,Other establishments,19/01/2018,6202362,135.2,VENDOR,THE PORTSMOUTH SITTING SERVICE AND COMMUNITY CARE SERVICES LTD T/A ASSURED CARE,100201
Portsmouth City Council,PCC,Adult Social Care,Social Support - Support for Carer,ADULT SERVICES,Third Party Payments,Other establishments,19/01/2018,6202362,324.48,VENDOR,THE PORTSMOUTH SITTING SERVICE AND COMMUNITY CARE SERVICES LTD T/A ASSURED CARE,100201
Portsmouth City Council,PCC,Adult Social Care,Physical Support Older People (85+),ADULT SERVICES,Third Party Payments,Other establishments,19/01/2018,6202362,39.3,VENDOR,THE PORTSMOUTH SITTING SERVICE AND COMMUNITY CARE SERVICES LTD T/A ASSURED CARE,100201
Portsmouth City Council,PCC,Adult Social Care,Physical Support Older People (85+),ADULT SERVICES,Third Party Payments,Other establishments,19/01/2018,6202362,31.44,VENDOR,THE PORTSMOUTH SITTING SERVICE AND COMMUNITY CARE SERVICES LTD T/A ASSURED CARE,100201
Portsmouth City Council,PCC,Adult Social Care,Physical Support Older People (85+),ADULT SERVICES,Third Party Payments,Other establishments,19/01/2018,6202362,47.16,VENDOR,THE PORTSMOUTH SITTING SERVICE AND COMMUNITY CARE SERVICES LTD T/A ASSURED CARE,100201
Portsmouth City Council,PCC,Adult Social Care,Mental Health Support Adults (18 - 64),ADULT SERVICES,Third Party Payments,Other establishments,19/01/2018,6202362,212.22,VENDOR,THE PORTSMOUTH SITTING SERVICE AND COMMUNITY CARE SERVICES LTD T/A ASSURED CARE,100201
Portsmouth City Council,PCC,Adult Social Care,Physical Support Older People (85+),ADULT SERVICES,Third Party Payments,Other establishments,19/01/2018,6202362,652.38,VENDOR,THE PORTSMOUTH SITTING SERVICE AND COMMUNITY CARE SERVICES LTD T/A ASSURED CARE,100201
Portsmouth City Council,PCC,Adult Social Care,Physical Support Older People (85+),ADULT SERVICES,Third Party Payments,Other establishments,19/01/2018,6202362,605.22,VENDOR,THE PORTSMOUTH SITTING SERVICE AND COMMUNITY CARE SERVICES LTD T/A ASSURED CARE,100201
Portsmouth City Council,PCC,Adult Social Care,Social Support - Support for Carer,ADULT SERVICES,Third Party Payments,Other establishments,19/01/2018,6202362,283.92,VENDOR,THE PORTSMOUTH SITTING SERVICE AND COMMUNITY CARE SERVICES LTD T/A ASSURED CARE,100201
Portsmouth City Council,PCC,Adult Social Care,Social Support - Support for Carer,ADULT SERVICES,Third Party Payments,Other establishments,19/01/2018,6202362,216.32,VENDOR,THE PORTSMOUTH SITTING SERVICE AND COMMUNITY CARE SERVICES LTD T/A ASSURED CARE,100201
Portsmouth City Council,PCC,Adult Social Care,Physical Support Adults (18 - 64),ADULT SERVICES,Third Party Payments,Other establishments,19/01/2018,6202362,436.23,VENDOR,THE PORTSMOUTH SITTING SERVICE AND COMMUNITY CARE SERVICES LTD T/A ASSURED CARE,100201
Portsmouth City Council,PCC,Adult Social Care,Physical Support Older People (85+),ADULT SERVICES,Third Party Payments,Other establishments,19/01/2018,6202362,990.36,VENDOR,THE PORTSMOUTH SITTING SERVICE AND COMMUNITY CARE SERVICES LTD T/A ASSURED CARE,100201
Portsmouth City Council,PCC,Adult Social Care,Physical Support Older People (85+),ADULT SERVICES,Third Party Payments,Other establishments,19/01/2018,6202362,81.12,VENDOR,THE PORTSMOUTH SITTING SERVICE AND COMMUNITY CARE SERVICES LTD T/A ASSURED CARE,100201
Portsmouth City Council,PCC,Adult Social Care,Physical Support Older People (85+),ADULT SERVICES,Third Party Payments,Other establishments,19/01/2018,6202362,1091.29,VENDOR,THE PORTSMOUTH SITTING SERVICE AND COMMUNITY CARE SERVICES LTD T/A ASSURED CARE,100201
Portsmouth City Council,PCC,Adult Social Care,Physical Support Older People (85+),ADULT SERVICES,Third Party Payments,Other establishments,19/01/2018,6202362,116.8,VENDOR,THE PORTSMOUTH SITTING SERVICE AND COMMUNITY CARE SERVICES LTD T/A ASSURED CARE,100201
Portsmouth City Council,PCC,Adult Social Care,Social Support - Support for Carer,ADULT SERVICES,Third Party Payments,Other establishments,19/01/2018,6202362,324.48,VENDOR,THE PORTSMOUTH SITTING SERVICE AND COMMUNITY CARE SERVICES LTD T/A ASSURED CARE,100201
Portsmouth City Council,PCC,Children's and Education Services,Children Looked After,CHILDREN SERVICES AND EDUCATION,Third Party Payments,Other establishments,02/01/2018,6198935,6477.24,VENDOR,COMPASS FOSTERING SOUTH LIMITED,103601
Portsmouth City Council,PCC,Adult Social Care,Social Support - Support for Carer,ADULT SERVICES,Third Party Payments,Other establishments,19/01/2018,6202362,101.4,VENDOR,THE PORTSMOUTH SITTING SERVICE AND COMMUNITY CARE SERVICES LTD T/A ASSURED CARE,100201
Portsmouth City Council,PCC,Adult Social Care,Social Support - Support for Carer,ADULT SERVICES,Third Party Payments,Other establishments,19/01/2018,6202362,121.68,VENDOR,THE PORTSMOUTH SITTING SERVICE AND COMMUNITY CARE SERVICES LTD T/A ASSURED CARE,100201
Portsmouth City Council,PCC,Adult Social Care,Physical Support Adults (75 - 84),ADULT SERVICES,Third Party Payments,Other establishments,19/01/2018,6202362,220.08,VENDOR,THE PORTSMOUTH SITTING SERVICE AND COMMUNITY CARE SERVICES LTD T/A ASSURED CARE,100201
Portsmouth City Council,PCC,Adult Social Care,Social Support - Support for Carer,ADULT SERVICES,Third Party Payments,Other establishments,19/01/2018,6202362,162.24,VENDOR,THE PORTSMOUTH SITTING SERVICE AND COMMUNITY CARE SERVICES LTD T/A ASSURED CARE,100201
Portsmouth City Council,PCC,Housing Revenue Account,Special Services,PROPERTY & HOUSING,Employees,Direct employee expenses,24/01/2018,6203056,3685.62,VENDOR,THE PORTSMOUTH SITTING SERVICE AND COMMUNITY CARE SERVICES LTD T/A ASSURED CARE,100201
Portsmouth City Council,PCC,Housing Revenue Account,Special Services,PROPERTY & HOUSING,Employees,Direct employee expenses,24/01/2018,6203056,3575.42,VENDOR,THE PORTSMOUTH SITTING SERVICE AND COMMUNITY CARE SERVICES LTD T/A ASSURED CARE,100201
Portsmouth City Council,PCC,Housing Revenue Account,Special Services,PROPERTY & HOUSING,Employees,Direct employee expenses,24/01/2018,6203056,-3575.42,VENDOR,THE PORTSMOUTH SITTING SERVICE AND COMMUNITY CARE SERVICES LTD T/A ASSURED CARE,100201
Portsmouth City Council,PCC,Adult Social Care,Social Care Activities,ADULT SERVICES,Third Party Payments,Other establishments,19/01/2018,6202362,527.28,VENDOR,THE PORTSMOUTH SITTING SERVICE AND COMMUNITY CARE SERVICES LTD T/A ASSURED CARE,100201
Portsmouth City Council,PCC,Adult Social Care,Social Care Activities,ADULT SERVICES,Third Party Payments,Other establishments,19/01/2018,6202362,453.68,VENDOR,THE PORTSMOUTH SITTING SERVICE AND COMMUNITY CARE SERVICES LTD T/A ASSURED CARE,100201
Portsmouth City Council,PCC,Children's and Education Services,Children Looked After,CHILDREN SERVICES AND EDUCATION,Third Party Payments,Other establishments,02/01/2018,6198935,8832.6,VENDOR,COMPASS FOSTERING SOUTH LIMITED,103601
Portsmouth City Council,PCC,Adult Social Care,Physical Support Older People (85+),ADULT SERVICES,Third Party Payments,Other establishments,04/01/2018,6199324,370.5,VENDOR,FOUR DOZEN LIMITED T/A BLUEBIRD CARE,141083
Portsmouth City Council,PCC,Adult Social Care,Physical Support Older People (85+),ADULT SERVICES,Third Party Payments,Other establishments,04/01/2018,6199324,418.3,VENDOR,FOUR DOZEN LIMITED T/A BLUEBIRD CARE,141083
Portsmouth City Council,PCC,Adult Social Care,Physical Support Older People (65-74),ADULT SERVICES,Third Party Payments,Other establishments,04/01/2018,6199324,836.6,VENDOR,FOUR DOZEN LIMITED T/A BLUEBIRD CARE,141083
Portsmouth City Council,PCC,Adult Social Care,Social Care Activities,ADULT SERVICES,Third Party Payments,Other establishments,04/01/2018,6199324,442,VENDOR,FOUR DOZEN LIMITED T/A BLUEBIRD CARE,141083
Portsmouth City Council,PCC,Adult Social Care,Physical Support Older People (85+),ADULT SERVICES,Third Party Payments,Other establishments,04/01/2018,6199324,778,VENDOR,FOUR DOZEN LIMITED T/A BLUEBIRD CARE,141083
Portsmouth City Council,PCC,Highways and Transport Services,Parking Services,REGENERATION,Supplies and Services,Communications and computing,31/01/2018,6203597,3875,VENDOR,CONDUENT PARKING ENFORCEMENT SOLUTIONS LIMITED,113838
Portsmouth City Council,PCC,Highways and Transport Services,Parking Services,REGENERATION,Supplies and Services,Communications and computing,31/01/2018,6203597,3875,VENDOR,CONDUENT PARKING ENFORCEMENT SOLUTIONS LIMITED,113838
Portsmouth City Council,PCC,Highways and Transport Services,Parking Services,REGENERATION,Supplies and Services,Communications and computing,31/01/2018,6203597,4741.34,VENDOR,CONDUENT PARKING ENFORCEMENT SOLUTIONS LIMITED,113838
Portsmouth City Council,PCC,Highways and Transport Services,Parking Services,REGENERATION,Supplies and Services,Communications and computing,31/01/2018,6203597,1859,VENDOR,CONDUENT PARKING ENFORCEMENT SOLUTIONS LIMITED,113838
Portsmouth City Council,PCC,Highways and Transport Services,Parking Services,REGENERATION,Supplies and Services,Communications and computing,31/01/2018,6203597,110.26,VENDOR,CONDUENT PARKING ENFORCEMENT SOLUTIONS LIMITED,113838
Portsmouth City Council,PCC,Highways and Transport Services,Parking Services,REGENERATION,Supplies and Services,Communications and computing,31/01/2018,6203597,43.92,VENDOR,CONDUENT PARKING ENFORCEMENT SOLUTIONS LIMITED,113838
Portsmouth City Council,PCC,Highways and Transport Services,Parking Services,REGENERATION,Supplies and Services,Communications and computing,31/01/2018,6203597,5553.88,VENDOR,CONDUENT PARKING ENFORCEMENT SOLUTIONS LIMITED,113838
Portsmouth City Council,PCC,Highways and Transport Services,Parking Services,REGENERATION,Supplies and Services,Communications and computing,31/01/2018,6203597,1963.68,VENDOR,CONDUENT PARKING ENFORCEMENT SOLUTIONS LIMITED,113838
Portsmouth City Council,PCC,Highways and Transport Services,Parking Services,REGENERATION,Supplies and Services,Communications and computing,31/01/2018,6203597,123.28,VENDOR,CONDUENT PARKING ENFORCEMENT SOLUTIONS LIMITED,113838
Portsmouth City Council,PCC,Highways and Transport Services,Parking Services,REGENERATION,Supplies and Services,Communications and computing,31/01/2018,6203597,80.06,VENDOR,CONDUENT PARKING ENFORCEMENT SOLUTIONS LIMITED,113838
Portsmouth City Council,PCC,Highways and Transport Services,Parking Services,REGENERATION,Supplies and Services,Communications and computing,31/01/2018,6203597,5029.54,VENDOR,CONDUENT PARKING ENFORCEMENT SOLUTIONS LIMITED,113838
Portsmouth City Council,PCC,Highways and Transport Services,Parking Services,REGENERATION,Supplies and Services,Communications and computing,31/01/2018,6203597,1735.42,VENDOR,CONDUENT PARKING ENFORCEMENT SOLUTIONS LIMITED,113838
Portsmouth City Council,PCC,Highways and Transport Services,Parking Services,REGENERATION,Supplies and Services,Communications and computing,31/01/2018,6203597,148.6,VENDOR,CONDUENT PARKING ENFORCEMENT SOLUTIONS LIMITED,113838
Portsmouth City Council,PCC,Highways and Transport Services,Parking Services,REGENERATION,Supplies and Services,Communications and computing,31/01/2018,6203597,40.24,VENDOR,CONDUENT PARKING ENFORCEMENT SOLUTIONS LIMITED,113838
Portsmouth City Council,PCC,Adult Social Care,Physical Support Older People (85+),ADULT SERVICES,Third Party Payments,Other establishments,04/01/2018,6199324,210,VENDOR,FOUR DOZEN LIMITED T/A BLUEBIRD CARE,141083
Portsmouth City Council,PCC,Adult Social Care,Physical Support Older People (85+),ADULT SERVICES,Third Party Payments,Other establishments,04/01/2018,6199324,663,VENDOR,FOUR DOZEN LIMITED T/A BLUEBIRD CARE,141083
Portsmouth City Council,PCC,Adult Social Care,Physical Support Older People (85+),ADULT SERVICES,Third Party Payments,Other establishments,09/01/2018,6199803,355.58,VENDOR,PLATINUM CARE SOLUTIONS,138675
Portsmouth City Council,PCC,Adult Social Care,Social Care Activities,ADULT SERVICES,Third Party Payments,Other establishments,09/01/2018,6199803,378,VENDOR,PLATINUM CARE SOLUTIONS,138675
Portsmouth City Council,PCC,Adult Social Care,Social Support - Support for Carer,ADULT SERVICES,Third Party Payments,Other establishments,02/01/2018,6199007,49.5,VENDOR,KARE PLUS NATIONAL,142667
Portsmouth City Council,PCC,Adult Social Care,Physical Support Older People (85+),ADULT SERVICES,Third Party Payments,Other establishments,02/01/2018,6199007,41.26,VENDOR,KARE PLUS NATIONAL,142667
Portsmouth City Council,PCC,Adult Social Care,Physical Support Older People (85+),ADULT SERVICES,Third Party Payments,Other establishments,02/01/2018,6199007,462,VENDOR,KARE PLUS NATIONAL,142667
Portsmouth City Council,PCC,Adult Social Care,Physical Support Older People (85+),ADULT SERVICES,Third Party Payments,Other establishments,02/01/2018,6199007,280.53,VENDOR,KARE PLUS NATIONAL,142667
Portsmouth City Council,PCC,Adult Social Care,Physical Support Older People (85+),ADULT SERVICES,Third Party Payments,Other establishments,02/01/2018,6199007,86.66,VENDOR,KARE PLUS NATIONAL,142667
Portsmouth City Council,PCC,Adult Social Care,Physical Support Older People (85+),ADULT SERVICES,Third Party Payments,Other establishments,09/01/2018,6199803,727.22,VENDOR,PLATINUM CARE SOLUTIONS,138675
Portsmouth City Council,PCC,Adult Social Care,Physical Support Adults (18 - 64),ADULT SERVICES,Third Party Payments,Other establishments,02/01/2018,6199007,561,VENDOR,KARE PLUS NATIONAL,142667
Portsmouth City Council,PCC,Adult Social Care,Physical Support Older People (85+),ADULT SERVICES,Third Party Payments,Other establishments,02/01/2018,6199007,453.8,VENDOR,KARE PLUS NATIONAL,142667
Portsmouth City Council,PCC,Adult Social Care,Physical Support Older People (85+),ADULT SERVICES,Third Party Payments,Other establishments,02/01/2018,6199007,24.75,VENDOR,KARE PLUS NATIONAL,142667
Portsmouth City Council,PCC,Adult Social Care,Social Support - Support for Carer,ADULT SERVICES,Third Party Payments,Other establishments,02/01/2018,6199007,99,VENDOR,KARE PLUS NATIONAL,142667
Portsmouth City Council,PCC,Adult Social Care,Physical Support Adults (18 - 64),ADULT SERVICES,Third Party Payments,Other establishments,02/01/2018,6199007,115.5,VENDOR,KARE PLUS NATIONAL,142667
Portsmouth City Council,PCC,Adult Social Care,Social Care Activities,ADULT SERVICES,Third Party Payments,Other establishments,04/01/2018,6199324,31,VENDOR,FOUR DOZEN LIMITED T/A BLUEBIRD CARE,141083
Portsmouth City Council,PCC,Adult Social Care,Physical Support Older People (85+),ADULT SERVICES,Third Party Payments,Other establishments,02/01/2018,6199007,115.5,VENDOR,KARE PLUS NATIONAL,142667
Portsmouth City Council,PCC,Adult Social Care,Social Support - Support for Carer,ADULT SERVICES,Third Party Payments,Other establishments,02/01/2018,6199007,99,VENDOR,KARE PLUS NATIONAL,142667
Portsmouth City Council,PCC,Adult Social Care,Physical Support Older People (85+),ADULT SERVICES,Third Party Payments,Other establishments,02/01/2018,6199007,462,VENDOR,KARE PLUS NATIONAL,142667
Portsmouth City Council,PCC,Adult Social Care,Physical Support Older People (85+),ADULT SERVICES,Third Party Payments,Other establishments,09/01/2018,6199803,603.8,VENDOR,PLATINUM CARE SOLUTIONS,138675
Portsmouth City Council,PCC,Adult Social Care,Physical Support Older People (85+),ADULT SERVICES,Third Party Payments,Other establishments,02/01/2018,6199007,462,VENDOR,KARE PLUS NATIONAL,142667
Portsmouth City Council,PCC,Adult Social Care,Physical Support Older People (85+),ADULT SERVICES,Third Party Payments,Other establishments,02/01/2018,6199007,33,VENDOR,KARE PLUS NATIONAL,142667
Portsmouth City Council,PCC,Adult Social Care,Physical Support Older People (85+),ADULT SERVICES,Third Party Payments,Other establishments,02/01/2018,6199007,462,VENDOR,KARE PLUS NATIONAL,142667
Portsmouth City Council,PCC,Adult Social Care,Support with Memory and Cognition Older People (65 - 74),ADULT SERVICES,Third Party Payments,Other establishments,09/01/2018,6199803,747.26,VENDOR,PLATINUM CARE SOLUTIONS,138675
Portsmouth City Council,PCC,Adult Social Care,Physical Support Older People (85+),ADULT SERVICES,Third Party Payments,Other establishments,02/01/2018,6199007,99,VENDOR,KARE PLUS NATIONAL,142667
Portsmouth City Council,PCC,Adult Social Care,Social Support - Support for Carer,ADULT SERVICES,Third Party Payments,Other establishments,02/01/2018,6199007,99,VENDOR,KARE PLUS NATIONAL,142667
Portsmouth City Council,PCC,Adult Social Care,Physical Support Adults (18 - 64),ADULT SERVICES,Third Party Payments,Other establishments,02/01/2018,6199007,577.5,VENDOR,KARE PLUS NATIONAL,142667
Portsmouth City Council,PCC,Adult Social Care,Physical Support Older People (85+),ADULT SERVICES,Third Party Payments,Other establishments,02/01/2018,6199007,635.46,VENDOR,KARE PLUS NATIONAL,142667
Portsmouth City Council,PCC,Adult Social Care,Physical Support Older People (85+),ADULT SERVICES,Third Party Payments,Other establishments,02/01/2018,6199007,57.75,VENDOR,KARE PLUS NATIONAL,142667
Portsmouth City Council,PCC,Adult Social Care,Physical Support Older People (85+),ADULT SERVICES,Third Party Payments,Other establishments,02/01/2018,6199007,16.5,VENDOR,KARE PLUS NATIONAL,142667
Portsmouth City Council,PCC,Adult Social Care,Physical Support Older People (85+),ADULT SERVICES,Third Party Payments,Other establishments,02/01/2018,6199007,478.56,VENDOR,KARE PLUS NATIONAL,142667
Portsmouth City Council,PCC,Adult Social Care,Physical Support Older People (85+),ADULT SERVICES,Third Party Payments,Other establishments,02/01/2018,6199007,577.5,VENDOR,KARE PLUS NATIONAL,142667
Portsmouth City Council,PCC,Adult Social Care,Social Support - Support for Carer,ADULT SERVICES,Third Party Payments,Other establishments,02/01/2018,6199007,99,VENDOR,KARE PLUS NATIONAL,142667
Portsmouth City Council,PCC,Adult Social Care,Mental Health Support Older People (65 - 74),ADULT SERVICES,Third Party Payments,Other establishments,02/01/2018,6199007,82.5,VENDOR,KARE PLUS NATIONAL,142667
Portsmouth City Council,PCC,Adult Social Care,Physical Support Older People (85+),ADULT SERVICES,Third Party Payments,Other establishments,02/01/2018,6199007,520.32,VENDOR,KARE PLUS NATIONAL,142667
Portsmouth City Council,PCC,Adult Social Care,Physical Support Older People (85+),ADULT SERVICES,Third Party Payments,Other establishments,02/01/2018,6199007,86.66,VENDOR,KARE PLUS NATIONAL,142667
Portsmouth City Council,PCC,Adult Social Care,Social Support - Support for Carer,ADULT SERVICES,Third Party Payments,Other establishments,02/01/2018,6199007,66,VENDOR,KARE PLUS NATIONAL,142667
Portsmouth City Council,PCC,Adult Social Care,Social Care Activities,ADULT SERVICES,Third Party Payments,Other establishments,02/01/2018,6199007,557.01,VENDOR,KARE PLUS NATIONAL,142667
Portsmouth City Council,PCC,Adult Social Care,Social Care Activities,ADULT SERVICES,Third Party Payments,Other establishments,02/01/2018,6199007,132,VENDOR,KARE PLUS NATIONAL,142667
Portsmouth City Council,PCC,Adult Social Care,Social Support - Support for Carer,ADULT SERVICES,Third Party Payments,Other establishments,05/01/2018,6199483,49.5,VENDOR,KARE PLUS NATIONAL,142667
Portsmouth City Council,PCC,Adult Social Care,Physical Support Older People (85+),ADULT SERVICES,Third Party Payments,Other establishments,05/01/2018,6199483,140.28,VENDOR,KARE PLUS NATIONAL,142667
Portsmouth City Council,PCC,Adult Social Care,Physical Support Older People (85+),ADULT SERVICES,Third Party Payments,Other establishments,05/01/2018,6199483,462,VENDOR,KARE PLUS NATIONAL,142667
Portsmouth City Council,PCC,Adult Social Care,Physical Support Older People (85+),ADULT SERVICES,Third Party Payments,Other establishments,05/01/2018,6199483,309.41,VENDOR,KARE PLUS NATIONAL,142667
Portsmouth City Council,PCC,Adult Social Care,Physical Support Older People (85+),ADULT SERVICES,Third Party Payments,Other establishments,05/01/2018,6199483,86.66,VENDOR,KARE PLUS NATIONAL,142667
Portsmouth City Council,PCC,Adult Social Care,Physical Support Adults (18 - 64),ADULT SERVICES,Third Party Payments,Other establishments,05/01/2018,6199483,577.5,VENDOR,KARE PLUS NATIONAL,142667
Portsmouth City Council,PCC,Adult Social Care,Physical Support Older People (85+),ADULT SERVICES,Third Party Payments,Other establishments,05/01/2018,6199483,528.06,VENDOR,KARE PLUS NATIONAL,142667
Portsmouth City Council,PCC,Adult Social Care,Physical Support Older People (85+),ADULT SERVICES,Third Party Payments,Other establishments,05/01/2018,6199483,24.75,VENDOR,KARE PLUS NATIONAL,142667
Portsmouth City Council,PCC,Adult Social Care,Social Support - Support for Carer,ADULT SERVICES,Third Party Payments,Other establishments,05/01/2018,6199483,99,VENDOR,KARE PLUS NATIONAL,142667
Portsmouth City Council,PCC,Adult Social Care,Physical Support Adults (18 - 64),ADULT SERVICES,Third Party Payments,Other establishments,05/01/2018,6199483,117,VENDOR,KARE PLUS NATIONAL,142667
Portsmouth City Council,PCC,Adult Social Care,Physical Support Older People (85+),ADULT SERVICES,Third Party Payments,Other establishments,05/01/2018,6199483,115.5,VENDOR,KARE PLUS NATIONAL,142667
Portsmouth City Council,PCC,Adult Social Care,Social Support - Support for Carer,ADULT SERVICES,Third Party Payments,Other establishments,05/01/2018,6199483,99,VENDOR,KARE PLUS NATIONAL,142667
Portsmouth City Council,PCC,Adult Social Care,Physical Support Older People (85+),ADULT SERVICES,Third Party Payments,Other establishments,05/01/2018,6199483,462,VENDOR,KARE PLUS NATIONAL,142667
Portsmouth City Council,PCC,Adult Social Care,Physical Support Older People (85+),ADULT SERVICES,Third Party Payments,Other establishments,05/01/2018,6199483,33,VENDOR,KARE PLUS NATIONAL,142667
Portsmouth City Council,PCC,Adult Social Care,Physical Support Older People (85+),ADULT SERVICES,Third Party Payments,Other establishments,05/01/2018,6199483,462,VENDOR,KARE PLUS NATIONAL,142667
Portsmouth City Council,PCC,Adult Social Care,Physical Support Older People (85+),ADULT SERVICES,Third Party Payments,Other establishments,05/01/2018,6199483,99,VENDOR,KARE PLUS NATIONAL,142667
Portsmouth City Council,PCC,Adult Social Care,Social Support - Support for Carer,ADULT SERVICES,Third Party Payments,Other establishments,05/01/2018,6199483,99,VENDOR,KARE PLUS NATIONAL,142667
Portsmouth City Council,PCC,Adult Social Care,Physical Support Adults (18 - 64),ADULT SERVICES,Third Party Payments,Other establishments,05/01/2018,6199483,577.5,VENDOR,KARE PLUS NATIONAL,142667
Portsmouth City Council,PCC,Adult Social Care,Physical Support Older People (85+),ADULT SERVICES,Third Party Payments,Other establishments,05/01/2018,6199483,222.8,VENDOR,KARE PLUS NATIONAL,142667
Portsmouth City Council,PCC,Adult Social Care,Physical Support Older People (85+),ADULT SERVICES,Third Party Payments,Other establishments,05/01/2018,6199483,635.46,VENDOR,KARE PLUS NATIONAL,142667
Portsmouth City Council,PCC,Adult Social Care,Physical Support Older People (85+),ADULT SERVICES,Third Party Payments,Other establishments,05/01/2018,6199483,57.75,VENDOR,KARE PLUS NATIONAL,142667
Portsmouth City Council,PCC,Adult Social Care,Physical Support Older People (65-74),ADULT SERVICES,Third Party Payments,Other establishments,09/01/2018,6199803,517.14,VENDOR,PLATINUM CARE SOLUTIONS,138675
Portsmouth City Council,PCC,Adult Social Care,Physical Support Older People (85+),ADULT SERVICES,Third Party Payments,Other establishments,05/01/2018,6199483,24.75,VENDOR,KARE PLUS NATIONAL,142667
Portsmouth City Council,PCC,Adult Social Care,Social Care Activities,ADULT SERVICES,Third Party Payments,Other establishments,09/01/2018,6199803,653.67,VENDOR,PLATINUM CARE SOLUTIONS,138675
Portsmouth City Council,PCC,Adult Social Care,Social Care Activities,ADULT SERVICES,Third Party Payments,Other establishments,09/01/2018,6199803,132.66,VENDOR,PLATINUM CARE SOLUTIONS,138675
Portsmouth City Council,PCC,Adult Social Care,Physical Support Older People (85+),ADULT SERVICES,Third Party Payments,Other establishments,05/01/2018,6199483,486.82,VENDOR,KARE PLUS NATIONAL,142667
Portsmouth City Council,PCC,Adult Social Care,Physical Support Older People (85+),ADULT SERVICES,Third Party Payments,Other establishments,09/01/2018,6199803,875,VENDOR,PLATINUM CARE SOLUTIONS,138675
Portsmouth City Council,PCC,Adult Social Care,Physical Support Older People (85+),ADULT SERVICES,Third Party Payments,Other establishments,05/01/2018,6199483,577.5,VENDOR,KARE PLUS NATIONAL,142667
Portsmouth City Council,PCC,Adult Social Care,Social Support - Support for Carer,ADULT SERVICES,Third Party Payments,Other establishments,05/01/2018,6199483,99,VENDOR,KARE PLUS NATIONAL,142667
Portsmouth City Council,PCC,Adult Social Care,Mental Health Support Older People (65 - 74),ADULT SERVICES,Third Party Payments,Other establishments,05/01/2018,6199483,82.5,VENDOR,KARE PLUS NATIONAL,142667
Portsmouth City Council,PCC,Adult Social Care,Physical Support Older People (85+),ADULT SERVICES,Third Party Payments,Other establishments,05/01/2018,6199483,519.82,VENDOR,KARE PLUS NATIONAL,142667
Portsmouth City Council,PCC,Adult Social Care,Physical Support Older People (85+),ADULT SERVICES,Third Party Payments,Other establishments,05/01/2018,6199483,86.66,VENDOR,KARE PLUS NATIONAL,142667
Portsmouth City Council,PCC,Adult Social Care,Social Support - Support for Carer,ADULT SERVICES,Third Party Payments,Other establishments,05/01/2018,6199483,66,VENDOR,KARE PLUS NATIONAL,142667
Portsmouth City Council,PCC,Adult Social Care,Social Care Activities,ADULT SERVICES,Third Party Payments,Other establishments,05/01/2018,6199483,577.64,VENDOR,KARE PLUS NATIONAL,142667
Portsmouth City Council,PCC,Adult Social Care,Social Care Activities,ADULT SERVICES,Third Party Payments,Other establishments,05/01/2018,6199483,132,VENDOR,KARE PLUS NATIONAL,142667
Portsmouth City Council,PCC,Adult Social Care,Social Support - Support for Carer,ADULT SERVICES,Third Party Payments,Other establishments,17/01/2018,6201619,49.5,VENDOR,KARE PLUS NATIONAL,142667
Portsmouth City Council,PCC,Adult Social Care,Physical Support Older People (85+),ADULT SERVICES,Third Party Payments,Other establishments,17/01/2018,6201619,288.82,VENDOR,KARE PLUS NATIONAL,142667
Portsmouth City Council,PCC,Adult Social Care,Physical Support Older People (85+),ADULT SERVICES,Third Party Payments,Other establishments,17/01/2018,6201619,462,VENDOR,KARE PLUS NATIONAL,142667
Portsmouth City Council,PCC,Adult Social Care,Social Care Activities,ADULT SERVICES,Third Party Payments,Other establishments,17/01/2018,6201619,6216,VENDOR,KARE PLUS NATIONAL,142667
Portsmouth City Council,PCC,Children's and Education Services,Asylum seekers,CHILDREN SERVICES AND EDUCATION,Third Party Payments,Other establishments,18/01/2018,6202141,1142.8,VENDOR,COMPASS FOSTERING SOUTH LIMITED,103601
Portsmouth City Council,PCC,Adult Social Care,Physical Support Older People (85+),ADULT SERVICES,Third Party Payments,Other establishments,17/01/2018,6201619,309.41,VENDOR,KARE PLUS NATIONAL,142667
Portsmouth City Council,PCC,Adult Social Care,Physical Support Older People (85+),ADULT SERVICES,Third Party Payments,Other establishments,17/01/2018,6201619,86.66,VENDOR,KARE PLUS NATIONAL,142667
Portsmouth City Council,PCC,Adult Social Care,Physical Support Adults (18 - 64),ADULT SERVICES,Third Party Payments,Other establishments,17/01/2018,6201619,577.5,VENDOR,KARE PLUS NATIONAL,142667
Portsmouth City Council,PCC,Adult Social Care,Physical Support Older People (85+),ADULT SERVICES,Third Party Payments,Other establishments,17/01/2018,6201619,511.56,VENDOR,KARE PLUS NATIONAL,142667
Portsmouth City Council,PCC,Adult Social Care,Physical Support Older People (85+),ADULT SERVICES,Third Party Payments,Other establishments,17/01/2018,6201619,24.75,VENDOR,KARE PLUS NATIONAL,142667
Portsmouth City Council,PCC,Adult Social Care,Social Support - Support for Carer,ADULT SERVICES,Third Party Payments,Other establishments,17/01/2018,6201619,66,VENDOR,KARE PLUS NATIONAL,142667
Portsmouth City Council,PCC,Adult Social Care,Physical Support Adults (18 - 64),ADULT SERVICES,Third Party Payments,Other establishments,17/01/2018,6201619,115.5,VENDOR,KARE PLUS NATIONAL,142667
Portsmouth City Council,PCC,Adult Social Care,Social Support - Support for Carer,ADULT SERVICES,Third Party Payments,Other establishments,17/01/2018,6201619,99,VENDOR,KARE PLUS NATIONAL,142667
Portsmouth City Council,PCC,Adult Social Care,Physical Support Older People (85+),ADULT SERVICES,Third Party Payments,Other establishments,17/01/2018,6201619,470.26,VENDOR,KARE PLUS NATIONAL,142667
Portsmouth City Council,PCC,Adult Social Care,Social Care Activities,ADULT SERVICES,Third Party Payments,Other establishments,17/01/2018,6201619,412.5,VENDOR,KARE PLUS NATIONAL,142667
Portsmouth City Council,PCC,Adult Social Care,Physical Support Older People (85+),ADULT SERVICES,Third Party Payments,Other establishments,17/01/2018,6201619,462,VENDOR,KARE PLUS NATIONAL,142667
Portsmouth City Council,PCC,Adult Social Care,Physical Support Older People (85+),ADULT SERVICES,Third Party Payments,Other establishments,17/01/2018,6201619,33,VENDOR,KARE PLUS NATIONAL,142667
Portsmouth City Council,PCC,Adult Social Care,Physical Support Older People (85+),ADULT SERVICES,Third Party Payments,Other establishments,17/01/2018,6201619,462,VENDOR,KARE PLUS NATIONAL,142667
Portsmouth City Council,PCC,Adult Social Care,Physical Support Older People (85+),ADULT SERVICES,Third Party Payments,Other establishments,17/01/2018,6201619,99,VENDOR,KARE PLUS NATIONAL,142667
Portsmouth City Council,PCC,Adult Social Care,Social Support - Support for Carer,ADULT SERVICES,Third Party Payments,Other establishments,17/01/2018,6201619,99,VENDOR,KARE PLUS NATIONAL,142667
Portsmouth City Council,PCC,Adult Social Care,Physical Support Adults (18 - 64),ADULT SERVICES,Third Party Payments,Other establishments,17/01/2018,6201619,577.5,VENDOR,KARE PLUS NATIONAL,142667
Portsmouth City Council,PCC,Adult Social Care,Physical Support Older People (85+),ADULT SERVICES,Third Party Payments,Other establishments,18/01/2018,6202193,355.58,VENDOR,PLATINUM CARE SOLUTIONS,138675
Portsmouth City Council,PCC,Adult Social Care,Physical Support Older People (85+),ADULT SERVICES,Third Party Payments,Other establishments,17/01/2018,6201619,577.64,VENDOR,KARE PLUS NATIONAL,142667
Portsmouth City Council,PCC,Adult Social Care,Physical Support Older People (85+),ADULT SERVICES,Third Party Payments,Other establishments,17/01/2018,6201619,676.66,VENDOR,KARE PLUS NATIONAL,142667
Portsmouth City Council,PCC,Adult Social Care,Social Care Activities,ADULT SERVICES,Third Party Payments,Other establishments,18/01/2018,6202193,378,VENDOR,PLATINUM CARE SOLUTIONS,138675
Portsmouth City Council,PCC,Adult Social Care,Physical Support Older People (85+),ADULT SERVICES,Third Party Payments,Other establishments,17/01/2018,6201619,57.75,VENDOR,KARE PLUS NATIONAL,142667
Portsmouth City Council,PCC,Adult Social Care,Physical Support Older People (85+),ADULT SERVICES,Third Party Payments,Other establishments,17/01/2018,6201619,24.75,VENDOR,KARE PLUS NATIONAL,142667
Portsmouth City Council,PCC,Adult Social Care,Physical Support Older People (85+),ADULT SERVICES,Third Party Payments,Other establishments,17/01/2018,6201619,148.52,VENDOR,KARE PLUS NATIONAL,142667
Portsmouth City Council,PCC,Adult Social Care,Physical Support Older People (85+),ADULT SERVICES,Third Party Payments,Other establishments,17/01/2018,6201619,577.5,VENDOR,KARE PLUS NATIONAL,142667
Portsmouth City Council,PCC,Adult Social Care,Social Support - Support for Carer,ADULT SERVICES,Third Party Payments,Other establishments,17/01/2018,6201619,99,VENDOR,KARE PLUS NATIONAL,142667
Portsmouth City Council,PCC,Adult Social Care,Mental Health Support Older People (65 - 74),ADULT SERVICES,Third Party Payments,Other establishments,17/01/2018,6201619,82.5,VENDOR,KARE PLUS NATIONAL,142667
Portsmouth City Council,PCC,Adult Social Care,Physical Support Older People (85+),ADULT SERVICES,Third Party Payments,Other establishments,17/01/2018,6201619,520.32,VENDOR,KARE PLUS NATIONAL,142667
Portsmouth City Council,PCC,Adult Social Care,Physical Support Older People (85+),ADULT SERVICES,Third Party Payments,Other establishments,18/01/2018,6202193,727.22,VENDOR,PLATINUM CARE SOLUTIONS,138675
Portsmouth City Council,PCC,Adult Social Care,Physical Support Older People (85+),ADULT SERVICES,Third Party Payments,Other establishments,17/01/2018,6201619,86.66,VENDOR,KARE PLUS NATIONAL,142667
Portsmouth City Council,PCC,Adult Social Care,Physical Support Older People (65-74),ADULT SERVICES,Third Party Payments,Other establishments,18/01/2018,6202193,517.14,VENDOR,PLATINUM CARE SOLUTIONS,138675
Portsmouth City Council,PCC,Adult Social Care,Social Support - Support for Carer,ADULT SERVICES,Third Party Payments,Other establishments,17/01/2018,6201619,66,VENDOR,KARE PLUS NATIONAL,142667
Portsmouth City Council,PCC,Adult Social Care,Social Care Activities,ADULT SERVICES,Third Party Payments,Other establishments,18/01/2018,6202193,689.52,VENDOR,PLATINUM CARE SOLUTIONS,138675
Portsmouth City Council,PCC,Adult Social Care,Social Care Activities,ADULT SERVICES,Third Party Payments,Other establishments,18/01/2018,6202193,96.81,VENDOR,PLATINUM CARE SOLUTIONS,138675
Portsmouth City Council,PCC,Adult Social Care,Social Care Activities,ADULT SERVICES,Third Party Payments,Other establishments,17/01/2018,6201619,577.64,VENDOR,KARE PLUS NATIONAL,142667
Portsmouth City Council,PCC,Adult Social Care,Social Care Activities,ADULT SERVICES,Third Party Payments,Other establishments,17/01/2018,6201619,132,VENDOR,KARE PLUS NATIONAL,142667
Portsmouth City Council,PCC,Adult Social Care,Social Support - Support for Carer,ADULT SERVICES,Third Party Payments,Other establishments,23/01/2018,6202541,82.5,VENDOR,KARE PLUS NATIONAL,142667
Portsmouth City Council,PCC,Adult Social Care,Physical Support Older People (85+),ADULT SERVICES,Third Party Payments,Other establishments,23/01/2018,6202541,288.82,VENDOR,KARE PLUS NATIONAL,142667
Portsmouth City Council,PCC,Adult Social Care,Physical Support Older People (85+),ADULT SERVICES,Third Party Payments,Other establishments,23/01/2018,6202541,462,VENDOR,KARE PLUS NATIONAL,142667
Portsmouth City Council,PCC,Adult Social Care,Physical Support Older People (85+),ADULT SERVICES,Third Party Payments,Other establishments,18/01/2018,6202193,547.9,VENDOR,PLATINUM CARE SOLUTIONS,138675
Portsmouth City Council,PCC,Children's and Education Services,Children Looked After,CHILDREN SERVICES AND EDUCATION,Third Party Payments,Other establishments,05/01/2018,6199466,-911.31,VENDOR,FAMILYPLACEMENT.COM LIMITED,137231
Portsmouth City Council,PCC,Adult Social Care,Social Care Activities,ADULT SERVICES,Third Party Payments,Other establishments,23/01/2018,6202541,6216,VENDOR,KARE PLUS NATIONAL,142667
Portsmouth City Council,PCC,Adult Social Care,Physical Support Older People (85+),ADULT SERVICES,Third Party Payments,Other establishments,23/01/2018,6202541,309.41,VENDOR,KARE PLUS NATIONAL,142667
Portsmouth City Council,PCC,Adult Social Care,Support with Memory and Cognition Older People (65 - 74),ADULT SERVICES,Third Party Payments,Other establishments,18/01/2018,6202193,747.26,VENDOR,PLATINUM CARE SOLUTIONS,138675
Portsmouth City Council,PCC,Adult Social Care,Physical Support Older People (85+),ADULT SERVICES,Third Party Payments,Other establishments,23/01/2018,6202541,86.66,VENDOR,KARE PLUS NATIONAL,142667
Portsmouth City Council,PCC,Adult Social Care,Physical Support Adults (18 - 64),ADULT SERVICES,Third Party Payments,Other establishments,23/01/2018,6202541,577.5,VENDOR,KARE PLUS NATIONAL,142667
Portsmouth City Council,PCC,Adult Social Care,Physical Support Older People (85+),ADULT SERVICES,Third Party Payments,Other establishments,23/01/2018,6202541,528.06,VENDOR,KARE PLUS NATIONAL,142667
Portsmouth City Council,PCC,Adult Social Care,Physical Support Older People (85+),ADULT SERVICES,Third Party Payments,Other establishments,23/01/2018,6202541,24.75,VENDOR,KARE PLUS NATIONAL,142667
Portsmouth City Council,PCC,Adult Social Care,Social Support - Support for Carer,ADULT SERVICES,Third Party Payments,Other establishments,23/01/2018,6202541,66,VENDOR,KARE PLUS NATIONAL,142667
Portsmouth City Council,PCC,Adult Social Care,Physical Support Adults (18 - 64),ADULT SERVICES,Third Party Payments,Other establishments,23/01/2018,6202541,117,VENDOR,KARE PLUS NATIONAL,142667
Portsmouth City Council,PCC,Adult Social Care,Physical Support Older People (85+),ADULT SERVICES,Third Party Payments,Other establishments,18/01/2018,6202193,882.46,VENDOR,PLATINUM CARE SOLUTIONS,138675
Portsmouth City Council,PCC,Adult Social Care,Physical Support Older People (85+),ADULT SERVICES,Third Party Payments,Other establishments,18/01/2018,6202193,79.32,VENDOR,PLATINUM CARE SOLUTIONS,138675
Portsmouth City Council,PCC,Adult Social Care,Physical Support Older People (85+),ADULT SERVICES,Third Party Payments,Other establishments,23/01/2018,6202541,115.5,VENDOR,KARE PLUS NATIONAL,142667
Portsmouth City Council,PCC,Adult Social Care,Social Support - Support for Carer,ADULT SERVICES,Third Party Payments,Other establishments,23/01/2018,6202541,99,VENDOR,KARE PLUS NATIONAL,142667
Portsmouth City Council,PCC,Adult Social Care,Physical Support Older People (65-74),ADULT SERVICES,Third Party Payments,Other establishments,23/01/2018,6202541,478.56,VENDOR,KARE PLUS NATIONAL,142667
Portsmouth City Council,PCC,Adult Social Care,Physical Support Older People (85+),ADULT SERVICES,Third Party Payments,Other establishments,23/01/2018,6202541,470.26,VENDOR,KARE PLUS NATIONAL,142667
Portsmouth City Council,PCC,Adult Social Care,Social Support - Support for Carer,ADULT SERVICES,Third Party Payments,Other establishments,23/01/2018,6202554,29.48,VENDOR,PLATINUM CARE SOLUTIONS,138675
Portsmouth City Council,PCC,Adult Social Care,Social Care Activities,ADULT SERVICES,Third Party Payments,Other establishments,23/01/2018,6202541,462,VENDOR,KARE PLUS NATIONAL,142667
Portsmouth City Council,PCC,Adult Social Care,Physical Support Older People (85+),ADULT SERVICES,Third Party Payments,Other establishments,23/01/2018,6202541,462,VENDOR,KARE PLUS NATIONAL,142667
Portsmouth City Council,PCC,Adult Social Care,Physical Support Older People (85+),ADULT SERVICES,Third Party Payments,Other establishments,23/01/2018,6202541,33,VENDOR,KARE PLUS NATIONAL,142667
Portsmouth City Council,PCC,Adult Social Care,Physical Support Older People (85+),ADULT SERVICES,Third Party Payments,Other establishments,23/01/2018,6202541,462,VENDOR,KARE PLUS NATIONAL,142667
Portsmouth City Council,PCC,Adult Social Care,Physical Support Older People (85+),ADULT SERVICES,Third Party Payments,Other establishments,23/01/2018,6202541,99,VENDOR,KARE PLUS NATIONAL,142667
Portsmouth City Council,PCC,Adult Social Care,Social Support - Support for Carer,ADULT SERVICES,Third Party Payments,Other establishments,23/01/2018,6202541,99,VENDOR,KARE PLUS NATIONAL,142667
Portsmouth City Council,PCC,Adult Social Care,Physical Support Adults (18 - 64),ADULT SERVICES,Third Party Payments,Other establishments,23/01/2018,6202541,577.5,VENDOR,KARE PLUS NATIONAL,142667
Portsmouth City Council,PCC,Adult Social Care,Physical Support Older People (85+),ADULT SERVICES,Third Party Payments,Other establishments,23/01/2018,6202541,577.64,VENDOR,KARE PLUS NATIONAL,142667
Portsmouth City Council,PCC,Adult Social Care,Physical Support Older People (85+),ADULT SERVICES,Third Party Payments,Other establishments,23/01/2018,6202554,355.58,VENDOR,PLATINUM CARE SOLUTIONS,138675
Portsmouth City Council,PCC,Adult Social Care,Physical Support Older People (85+),ADULT SERVICES,Third Party Payments,Other establishments,23/01/2018,6202541,680.76,VENDOR,KARE PLUS NATIONAL,142667
Portsmouth City Council,PCC,Adult Social Care,Physical Support Older People (85+),ADULT SERVICES,Third Party Payments,Other establishments,23/01/2018,6202541,57.75,VENDOR,KARE PLUS NATIONAL,142667
Portsmouth City Council,PCC,Adult Social Care,Social Care Activities,ADULT SERVICES,Third Party Payments,Other establishments,23/01/2018,6202554,378,VENDOR,PLATINUM CARE SOLUTIONS,138675
Portsmouth City Council,PCC,Adult Social Care,Physical Support Older People (85+),ADULT SERVICES,Third Party Payments,Other establishments,23/01/2018,6202541,24.75,VENDOR,KARE PLUS NATIONAL,142667
Portsmouth City Council,PCC,Adult Social Care,Physical Support Older People (85+),ADULT SERVICES,Third Party Payments,Other establishments,23/01/2018,6202541,577.5,VENDOR,KARE PLUS NATIONAL,142667
Portsmouth City Council,PCC,Adult Social Care,Social Support - Support for Carer,ADULT SERVICES,Third Party Payments,Other establishments,23/01/2018,6202541,99,VENDOR,KARE PLUS NATIONAL,142667
Portsmouth City Council,PCC,Adult Social Care,Mental Health Support Older People (65 - 74),ADULT SERVICES,Third Party Payments,Other establishments,23/01/2018,6202541,82.5,VENDOR,KARE PLUS NATIONAL,142667
Portsmouth City Council,PCC,Adult Social Care,Physical Support Older People (85+),ADULT SERVICES,Third Party Payments,Other establishments,23/01/2018,6202541,519.82,VENDOR,KARE PLUS NATIONAL,142667
Portsmouth City Council,PCC,Adult Social Care,Physical Support Older People (85+),ADULT SERVICES,Third Party Payments,Other establishments,23/01/2018,6202554,727.22,VENDOR,PLATINUM CARE SOLUTIONS,138675
Portsmouth City Council,PCC,Adult Social Care,Physical Support Older People (85+),ADULT SERVICES,Third Party Payments,Other establishments,23/01/2018,6202541,88.02,VENDOR,KARE PLUS NATIONAL,142667
Portsmouth City Council,PCC,Adult Social Care,Physical Support Older People (65-74),ADULT SERVICES,Third Party Payments,Other establishments,23/01/2018,6202554,517.14,VENDOR,PLATINUM CARE SOLUTIONS,138675
Portsmouth City Council,PCC,Adult Social Care,Social Support - Support for Carer,ADULT SERVICES,Third Party Payments,Other establishments,23/01/2018,6202541,33,VENDOR,KARE PLUS NATIONAL,142667
Portsmouth City Council,PCC,Adult Social Care,Social Care Activities,ADULT SERVICES,Third Party Payments,Other establishments,23/01/2018,6202554,689.52,VENDOR,PLATINUM CARE SOLUTIONS,138675
Portsmouth City Council,PCC,Adult Social Care,Social Care Activities,ADULT SERVICES,Third Party Payments,Other establishments,23/01/2018,6202554,43.93,VENDOR,PLATINUM CARE SOLUTIONS,138675
Portsmouth City Council,PCC,Adult Social Care,Social Care Activities,ADULT SERVICES,Third Party Payments,Other establishments,23/01/2018,6202541,577.64,VENDOR,KARE PLUS NATIONAL,142667
Portsmouth City Council,PCC,Adult Social Care,Social Care Activities,ADULT SERVICES,Third Party Payments,Other establishments,23/01/2018,6202541,94.87,VENDOR,KARE PLUS NATIONAL,142667
Portsmouth City Council,PCC,Adult Social Care,Physical Support Older People (85+),ADULT SERVICES,Third Party Payments,Other establishments,23/01/2018,6202554,544.88,VENDOR,PLATINUM CARE SOLUTIONS,138675
Portsmouth City Council,PCC,Adult Social Care,Social Support - Support for Carer,ADULT SERVICES,Third Party Payments,Other establishments,25/01/2018,6203210,49.5,VENDOR,KARE PLUS NATIONAL,142667
Portsmouth City Council,PCC,Adult Social Care,Physical Support Older People (85+),ADULT SERVICES,Third Party Payments,Other establishments,25/01/2018,6203210,288.82,VENDOR,KARE PLUS NATIONAL,142667
Portsmouth City Council,PCC,Adult Social Care,Support with Memory and Cognition Older People (65 - 74),ADULT SERVICES,Third Party Payments,Other establishments,23/01/2018,6202554,747.26,VENDOR,PLATINUM CARE SOLUTIONS,138675
Portsmouth City Council,PCC,Adult Social Care,Physical Support Older People (85+),ADULT SERVICES,Third Party Payments,Other establishments,25/01/2018,6203210,462,VENDOR,KARE PLUS NATIONAL,142667
Portsmouth City Council,PCC,Adult Social Care,Social Care Activities,ADULT SERVICES,Third Party Payments,Other establishments,25/01/2018,6203210,6216,VENDOR,KARE PLUS NATIONAL,142667
Portsmouth City Council,PCC,Adult Social Care,Support with Memory and Cognition Older People (65 - 74),ADULT SERVICES,Employees,Direct employee expenses,04/01/2018,6199341,470.69,VENDOR,MAYDAY HEALTHCARE PLC,143537
Portsmouth City Council,PCC,Adult Social Care,Physical Support Older People (85+),ADULT SERVICES,Third Party Payments,Other establishments,25/01/2018,6203210,309.41,VENDOR,KARE PLUS NATIONAL,142667
Portsmouth City Council,PCC,Adult Social Care,Physical Support Older People (85+),ADULT SERVICES,Third Party Payments,Other establishments,23/01/2018,6202554,76.78,VENDOR,PLATINUM CARE SOLUTIONS,138675
Portsmouth City Council,PCC,Adult Social Care,Support with Memory and Cognition Older People (65 - 74),ADULT SERVICES,Employees,Direct employee expenses,04/01/2018,6199341,227.79,VENDOR,MAYDAY HEALTHCARE PLC,143537
Portsmouth City Council,PCC,Adult Social Care,Support with Memory and Cognition Older People (65 - 74),ADULT SERVICES,Employees,Direct employee expenses,04/01/2018,6199341,241.52,VENDOR,MAYDAY HEALTHCARE PLC,143537
Portsmouth City Council,PCC,Adult Social Care,Support with Memory and Cognition Older People (65 - 74),ADULT SERVICES,Employees,Direct employee expenses,04/01/2018,6199341,243.81,VENDOR,MAYDAY HEALTHCARE PLC,143537
Portsmouth City Council,PCC,Adult Social Care,Support with Memory and Cognition Older People (65 - 74),ADULT SERVICES,Employees,Direct employee expenses,04/01/2018,6199341,269.57,VENDOR,MAYDAY HEALTHCARE PLC,143537
Portsmouth City Council,PCC,Adult Social Care,Support with Memory and Cognition Older People (65 - 74),ADULT SERVICES,Employees,Direct employee expenses,04/01/2018,6199341,211.76,VENDOR,MAYDAY HEALTHCARE PLC,143537
Portsmouth City Council,PCC,Adult Social Care,Physical Support Older People (85+),ADULT SERVICES,Third Party Payments,Other establishments,25/01/2018,6203210,86.66,VENDOR,KARE PLUS NATIONAL,142667
Portsmouth City Council,PCC,Adult Social Care,Physical Support Adults (18 - 64),ADULT SERVICES,Third Party Payments,Other establishments,25/01/2018,6203210,577.5,VENDOR,KARE PLUS NATIONAL,142667
Portsmouth City Council,PCC,Adult Social Care,Physical Support Older People (85+),ADULT SERVICES,Third Party Payments,Other establishments,25/01/2018,6203210,503.3,VENDOR,KARE PLUS NATIONAL,142667
Portsmouth City Council,PCC,Adult Social Care,Social Support - Support for Carer,ADULT SERVICES,Third Party Payments,Other establishments,25/01/2018,6203210,66,VENDOR,KARE PLUS NATIONAL,142667
Portsmouth City Council,PCC,Adult Social Care,Physical Support Adults (18 - 64),ADULT SERVICES,Third Party Payments,Other establishments,25/01/2018,6203210,114.13,VENDOR,KARE PLUS NATIONAL,142667
Portsmouth City Council,PCC,Adult Social Care,Physical Support Older People (85+),ADULT SERVICES,Third Party Payments,Other establishments,25/01/2018,6203210,115.5,VENDOR,KARE PLUS NATIONAL,142667
Portsmouth City Council,PCC,Adult Social Care,Support with Memory and Cognition Older People (65 - 74),ADULT SERVICES,Employees,Direct employee expenses,04/01/2018,6199341,249.53,VENDOR,MAYDAY HEALTHCARE PLC,143537
Portsmouth City Council,PCC,Adult Social Care,Social Support - Support for Carer,ADULT SERVICES,Third Party Payments,Other establishments,25/01/2018,6203210,99,VENDOR,KARE PLUS NATIONAL,142667
Portsmouth City Council,PCC,Adult Social Care,Support with Memory and Cognition Older People (65 - 74),ADULT SERVICES,Employees,Direct employee expenses,04/01/2018,6199341,252.1,VENDOR,MAYDAY HEALTHCARE PLC,143537
Portsmouth City Council,PCC,Adult Social Care,Physical Support Older People (65-74),ADULT SERVICES,Third Party Payments,Other establishments,25/01/2018,6203210,519.82,VENDOR,KARE PLUS NATIONAL,142667
Portsmouth City Council,PCC,Adult Social Care,Support with Memory and Cognition Older People (65 - 74),ADULT SERVICES,Employees,Direct employee expenses,04/01/2018,6199341,532.14,VENDOR,MAYDAY HEALTHCARE PLC,143537
Portsmouth City Council,PCC,Adult Social Care,Support with Memory and Cognition Older People (65 - 74),ADULT SERVICES,Employees,Direct employee expenses,04/01/2018,6199341,352.56,VENDOR,MAYDAY HEALTHCARE PLC,143537
Portsmouth City Council,PCC,Adult Social Care,Physical Support Older People (85+),ADULT SERVICES,Third Party Payments,Other establishments,25/01/2018,6203210,470.26,VENDOR,KARE PLUS NATIONAL,142667
Portsmouth City Council,PCC,Adult Social Care,Social Care Activities,ADULT SERVICES,Third Party Payments,Other establishments,25/01/2018,6203210,462,VENDOR,KARE PLUS NATIONAL,142667
Portsmouth City Council,PCC,Adult Social Care,Physical Support Older People (85+),ADULT SERVICES,Third Party Payments,Other establishments,25/01/2018,6203210,462,VENDOR,KARE PLUS NATIONAL,142667
Portsmouth City Council,PCC,Adult Social Care,Physical Support Older People (85+),ADULT SERVICES,Third Party Payments,Other establishments,25/01/2018,6203210,33,VENDOR,KARE PLUS NATIONAL,142667
Portsmouth City Council,PCC,Adult Social Care,Physical Support Older People (85+),ADULT SERVICES,Third Party Payments,Other establishments,25/01/2018,6203210,462,VENDOR,KARE PLUS NATIONAL,142667
Portsmouth City Council,PCC,Adult Social Care,Physical Support Older People (85+),ADULT SERVICES,Third Party Payments,Other establishments,25/01/2018,6203210,99,VENDOR,KARE PLUS NATIONAL,142667
Portsmouth City Council,PCC,Adult Social Care,Social Support - Support for Carer,ADULT SERVICES,Third Party Payments,Other establishments,25/01/2018,6203210,99,VENDOR,KARE PLUS NATIONAL,142667
Portsmouth City Council,PCC,Adult Social Care,Physical Support Adults (18 - 64),ADULT SERVICES,Third Party Payments,Other establishments,25/01/2018,6203210,577.5,VENDOR,KARE PLUS NATIONAL,142667
Portsmouth City Council,PCC,Adult Social Care,Support with Memory and Cognition Older People (65 - 74),ADULT SERVICES,Employees,Direct employee expenses,15/01/2018,6200950,424.9,VENDOR,MAYDAY HEALTHCARE PLC,143537
Portsmouth City Council,PCC,Adult Social Care,Physical Support Older People (85+),ADULT SERVICES,Third Party Payments,Other establishments,25/01/2018,6203210,577.64,VENDOR,KARE PLUS NATIONAL,142667
Portsmouth City Council,PCC,Adult Social Care,Physical Support Older People (85+),ADULT SERVICES,Third Party Payments,Other establishments,25/01/2018,6203210,635.38,VENDOR,KARE PLUS NATIONAL,142667
Portsmouth City Council,PCC,Adult Social Care,Physical Support Older People (85+),ADULT SERVICES,Third Party Payments,Other establishments,25/01/2018,6203210,24.75,VENDOR,KARE PLUS NATIONAL,142667
Portsmouth City Council,PCC,Adult Social Care,Physical Support Older People (85+),ADULT SERVICES,Third Party Payments,Other establishments,25/01/2018,6203210,577.5,VENDOR,KARE PLUS NATIONAL,142667
Portsmouth City Council,PCC,Adult Social Care,Social Support - Support for Carer,ADULT SERVICES,Third Party Payments,Other establishments,25/01/2018,6203210,66,VENDOR,KARE PLUS NATIONAL,142667
Portsmouth City Council,PCC,Adult Social Care,Mental Health Support Older People (65 - 74),ADULT SERVICES,Third Party Payments,Other establishments,25/01/2018,6203210,49.5,VENDOR,KARE PLUS NATIONAL,142667
Portsmouth City Council,PCC,Adult Social Care,Support with Memory and Cognition Older People (65 - 74),ADULT SERVICES,Employees,Direct employee expenses,15/01/2018,6200950,252.1,VENDOR,MAYDAY HEALTHCARE PLC,143537
Portsmouth City Council,PCC,Adult Social Care,Support with Memory and Cognition Older People (65 - 74),ADULT SERVICES,Employees,Direct employee expenses,15/01/2018,6200950,257.55,VENDOR,MAYDAY HEALTHCARE PLC,143537
Portsmouth City Council,PCC,Adult Social Care,Physical Support Older People (85+),ADULT SERVICES,Third Party Payments,Other establishments,25/01/2018,6203210,247.54,VENDOR,KARE PLUS NATIONAL,142667
Portsmouth City Council,PCC,Adult Social Care,Physical Support Older People (85+),ADULT SERVICES,Third Party Payments,Other establishments,25/01/2018,6203210,37.14,VENDOR,KARE PLUS NATIONAL,142667
Portsmouth City Council,PCC,Adult Social Care,Social Support - Support for Carer,ADULT SERVICES,Third Party Payments,Other establishments,25/01/2018,6203210,33,VENDOR,KARE PLUS NATIONAL,142667
Portsmouth City Council,PCC,Adult Social Care,Social Care Activities,ADULT SERVICES,Third Party Payments,Other establishments,25/01/2018,6203210,569.39,VENDOR,KARE PLUS NATIONAL,142667
Portsmouth City Council,PCC,Adult Social Care,Social Care Activities,ADULT SERVICES,Third Party Payments,Other establishments,25/01/2018,6203210,132,VENDOR,KARE PLUS NATIONAL,142667
Portsmouth City Council,PCC,Adult Social Care,Support with Memory and Cognition Older People (65 - 74),ADULT SERVICES,Employees,Direct employee expenses,19/01/2018,6202315,1000.06,VENDOR,MAYDAY HEALTHCARE PLC,143537
Portsmouth City Council,PCC,Adult Social Care,Support with Memory and Cognition Older People (65 - 74),ADULT SERVICES,Employees,Direct employee expenses,19/01/2018,6202315,291.76,VENDOR,MAYDAY HEALTHCARE PLC,143537
Portsmouth City Council,PCC,Adult Social Care,Support with Memory and Cognition Older People (65 - 74),ADULT SERVICES,Employees,Direct employee expenses,19/01/2018,6202315,240.38,VENDOR,MAYDAY HEALTHCARE PLC,143537
Portsmouth City Council,PCC,Children's and Education Services,Children Looked After,CHILDREN SERVICES AND EDUCATION,Third Party Payments,Other establishments,05/01/2018,6199466,2903.88,VENDOR,FAMILYPLACEMENT.COM LIMITED,137231
Portsmouth City Council,PCC,Adult Social Care,Support with Memory and Cognition Older People (65 - 74),ADULT SERVICES,Employees,Direct employee expenses,19/01/2018,6202315,258.69,VENDOR,MAYDAY HEALTHCARE PLC,143537
Portsmouth City Council,PCC,Adult Social Care,Support with Memory and Cognition Older People (65 - 74),ADULT SERVICES,Employees,Direct employee expenses,19/01/2018,6202315,441.49,VENDOR,MAYDAY HEALTHCARE PLC,143537
Portsmouth City Council,PCC,Adult Social Care,Support with Memory and Cognition Older People (65 - 74),ADULT SERVICES,Employees,Direct employee expenses,25/01/2018,6203226,453.28,VENDOR,MAYDAY HEALTHCARE PLC,143537
Portsmouth City Council,PCC,Adult Social Care,Support with Memory and Cognition Older People (65 - 74),ADULT SERVICES,Employees,Direct employee expenses,25/01/2018,6203226,528.47,VENDOR,MAYDAY HEALTHCARE PLC,143537
Portsmouth City Council,PCC,Adult Social Care,Support with Memory and Cognition Older People (65 - 74),ADULT SERVICES,Employees,Direct employee expenses,25/01/2018,6203226,856.88,VENDOR,MAYDAY HEALTHCARE PLC,143537
Portsmouth City Council,PCC,Adult Social Care,Social Support - Support for Carer,ADULT SERVICES,Third Party Payments,Other establishments,23/01/2018,6202554,29.48,VENDOR,PLATINUM CARE SOLUTIONS,138675
Portsmouth City Council,PCC,Children's and Education Services,Children Looked After,CHILDREN SERVICES AND EDUCATION,Third Party Payments,Other establishments,02/01/2018,6198935,9127.02,VENDOR,COMPASS FOSTERING SOUTH LIMITED,103601
Portsmouth City Council,PCC,Children's and Education Services,Asylum seekers,CHILDREN SERVICES AND EDUCATION,Third Party Payments,Other establishments,18/01/2018,6202141,3542.68,VENDOR,COMPASS FOSTERING SOUTH LIMITED,103601
Portsmouth City Council,PCC,Other,Suspense and Capital Schemes,Capital - Education,Capital Charges,Capital Expenditure (WIP),09/01/2018,6199772,142962,COMPANY,HAMPSHIRE PARTITIONING CONTRACTS LTD,104637
Portsmouth City Council,PCC,Environmental and Regulatory Services,Agricultural and Fisheries Services,PORTSMOUTH INTERNATIONAL PORT,Third Party Payments,Private contractors,04/01/2018,6199332,2809.41,VENDOR,KEN BROWN BOATS LTD,100926
Portsmouth City Council,PCC,Children's and Education Services,Children Looked After,CHILDREN SERVICES AND EDUCATION,Third Party Payments,Other establishments,30/01/2018,6203469,-5299.56,VENDOR,COMPASS FOSTERING SOUTH LIMITED,103601
Portsmouth City Council,PCC,Housing Revenue Account,Repairs and Maintenance,PROPERTY & HOUSING,Premises-Related Expenditure,"Repairs, alterations and maintenance of buildings",15/01/2018,6200918,850.83,VENDOR,CROMA LOCKSMITHS AND SECURITY SOLUTIONS LTD,100255
Portsmouth City Council,PCC,Other,Suspense and Capital Schemes,Capital - Health & Social Care,Capital Charges,Capital Expenditure (WIP),11/01/2018,6200532,1206,VENDOR,SOUTHERN GAS NETWORKS,118601
Portsmouth City Council,PCC,Other,Suspense and Capital Schemes,Capital - Health & Social Care,Capital Charges,Capital Expenditure (WIP),11/01/2018,6200532,241.2,VENDOR,SOUTHERN GAS NETWORKS,118601
Portsmouth City Council,PCC,Housing Revenue Account,Repairs and Maintenance,PROPERTY & HOUSING,Premises-Related Expenditure,"Repairs, alterations and maintenance of buildings",15/01/2018,6200918,19.55,VENDOR,CROMA LOCKSMITHS AND SECURITY SOLUTIONS LTD,100255
Portsmouth City Council,PCC,Children's and Education Services,Asylum seekers,CHILDREN SERVICES AND EDUCATION,Third Party Payments,Other establishments,30/01/2018,6203469,3542.68,VENDOR,COMPASS FOSTERING SOUTH LIMITED,103601
Portsmouth City Council,PCC,Children's and Education Services,Asylum seekers,CHILDREN SERVICES AND EDUCATION,Third Party Payments,Other establishments,30/01/2018,6203469,3542.68,VENDOR,COMPASS FOSTERING SOUTH LIMITED,103601
Portsmouth City Council,PCC,Children's and Education Services,Asylum seekers,CHILDREN SERVICES AND EDUCATION,Third Party Payments,Other establishments,30/01/2018,6203469,3542.68,VENDOR,COMPASS FOSTERING SOUTH LIMITED,103601
Portsmouth City Council,PCC,Adult Social Care,Physical Support Older People (85+),ADULT SERVICES,Third Party Payments,Other establishments,25/01/2018,6203180,1763.15,VENDOR,FOUR DOZEN LIMITED T/A BLUEBIRD CARE,141083
Portsmouth City Council,PCC,Adult Social Care,Physical Support Older People (65-74),ADULT SERVICES,Third Party Payments,Other establishments,25/01/2018,6203180,880.85,VENDOR,FOUR DOZEN LIMITED T/A BLUEBIRD CARE,141083
Portsmouth City Council,PCC,Adult Social Care,Physical Support Older People (85+),ADULT SERVICES,Third Party Payments,Other establishments,25/01/2018,6203180,1112.25,VENDOR,FOUR DOZEN LIMITED T/A BLUEBIRD CARE,141083
Portsmouth City Council,PCC,Adult Social Care,Social Care Activities,ADULT SERVICES,Third Party Payments,Other establishments,25/01/2018,6203180,1708.35,VENDOR,FOUR DOZEN LIMITED T/A BLUEBIRD CARE,141083
Portsmouth City Council,PCC,Support Service / Transparency Costs Unallocated,Personnel,"HR, LEGAL & PERFORMANCE",Employees,Direct employee expenses,31/01/2018,6204066,2500,VENDOR,YOUNG PERSONS EVENTS LTD,143623
Portsmouth City Council,PCC,Adult Social Care,Physical Support Older People (85+),ADULT SERVICES,Third Party Payments,Other establishments,25/01/2018,6203180,334.3,VENDOR,FOUR DOZEN LIMITED T/A BLUEBIRD CARE,141083
Portsmouth City Council,PCC,Other,Suspense and Capital Schemes,Capital - Health & Social Care,Capital Charges,Capital Expenditure (WIP),11/01/2018,6200533,711,VENDOR,SOUTHERN GAS NETWORKS,118601
Portsmouth City Council,PCC,Other,Suspense and Capital Schemes,Capital - Health & Social Care,Capital Charges,Capital Expenditure (WIP),11/01/2018,6200533,142.2,VENDOR,SOUTHERN GAS NETWORKS,118601
Portsmouth City Council,PCC,Adult Social Care,Social Care Activities,ADULT SERVICES,Third Party Payments,Other establishments,10/01/2018,6200364,186.31,VENDOR,SAFEGUARDING GP,137636
Portsmouth City Council,PCC,Adult Social Care,Social Care Activities,ADULT SERVICES,Third Party Payments,Other establishments,10/01/2018,6200364,186.31,VENDOR,SAFEGUARDING GP,137636
Portsmouth City Council,PCC,Adult Social Care,Social Care Activities,ADULT SERVICES,Third Party Payments,Other establishments,10/01/2018,6200364,186.31,VENDOR,SAFEGUARDING GP,137636
Portsmouth City Council,PCC,Adult Social Care,Learning Disability Support  Adults (18 - 64),ADULT SERVICES,Third Party Payments,Other establishments,25/01/2018,6203180,550.4,VENDOR,FOUR DOZEN LIMITED T/A BLUEBIRD CARE,141083
Portsmouth City Council,PCC,Public Health,Sexual Health,PUBLIC HEALTH,Third Party Payments,Other establishments,03/01/2018,6199267,1071.49,VENDOR,WESTERN SUSSEX HOSPITALS NHS FOUNDATION TRUST,139914
Portsmouth City Council,PCC,Adult Social Care,Physical Support Older People (85+),ADULT SERVICES,Third Party Payments,Other establishments,25/01/2018,6203180,215.45,VENDOR,FOUR DOZEN LIMITED T/A BLUEBIRD CARE,141083
